Workbook

Sheet 0 - PUC (hidden)
C3: COMPANHIA RIOGRANDENSE DE SANEAMENTO | H3: Índice BDI
H4: adotado:
H5: =IF(R10=1,1.24,IF(R10=3,1.25,0)) -> 1.24 | I5: Serviços
H6: =IF(R10=1,1.165,IF(R10=3,1.175,0)) -> 1.165 | I6: Materiais
B7: PREÇOS UNITÁRIOS COMPOSTOS
C8: DISCRIMINAÇÃO | D8: UN | E8: MATERIAL | F8: MÃO DE OBRA | G8: OUTROS | H8: TOTAL SEM BDI | I8: =IF(H5=1,"TOTAL SEM BDI", "TOTAL COM BDI") -> TOTAL COM BDI
B9: CÓDIGO
M10: 3 | R10: 1
C11: Insumos SINAPI MARÇO 2020 NÃO DESONERADA - Encargos Sociais de 110,61% | M11: 2
B12: 01.00.00.00 | C12: CANTEIRO DE OBRAS
B13: 01.01.00.00 | C13: Construção do Canteiro
B14: 01.01.00.10 | C14: Ligação provisória de água e esgotos | D14: un | E14: 145.8 | F14: 408.8 | G14: 0 | H14: 554.6 | I14: =IF(H14="","",ROUND((H14*$H$5),2)) -> 687.7
B15: 01.01.00.12 | C15: Ligação provisória de força e luz | D15: un | E15: 982.71 | F15: 925.68 | G15: 0 | H15: 1908.39 | I15: =IF(H15="","",ROUND((H15*$H$5),2)) -> 2366.4
B16: 01.01.00.14 | C16: Ponto de água externo | D16: un | E16: 30.22 | F16: 138.36 | G16: 0 | H16: 168.58 | I16: 209.04
B17: 01.01.00.16 | C17: Ponto de luz externo | D17: un | E17: 104.3 | F17: 154.96 | G17: 0 | H17: 259.26 | I17: 321.48
B18: 01.01.00.20 | C18: Escritório módulo básico 15 m² | D18: un | E18: 996.64 | F18: 10645.24 | G18: 0 | H18: 11641.88 | I18: 14435.93
B19: 01.01.00.21 | C19: Escritório módulo adicional-1 10 m² | D19: un | E19: 665.1 | F19: 7090.39 | G19: 0 | H19: 7755.49 | I19: 9616.81
B20: 01.01.00.22 | C20: Escritório módulo adicional-2 15 m² | D20: un | E20: 996.64 | F20: 10645.24 | G20: 0 | H20: 11641.88 | I20: 14435.93
B21: 01.01.00.30 | C21: Almoxarifado módulo básico 10 m² | D21: un | E21: 1159.69 | F21: 4947.69 | G21: 0 | H21: 6107.38 | I21: 7573.15
B22: 01.01.00.31 | C22: Almoxarifado módulo adicional 10 m² | D22: un | E22: 1159.69 | F22: 4947.69 | G22: 0 | H22: 6107.38 | I22: 7573.15
B23: 01.01.00.40 | C23: Telheiro módulo básico 20 m² | D23: un | E23: 716.19 | F23: 1471.76 | G23: 252.4 | H23: 2440.35 | I23: 3026.03
B24: 01.01.00.41 | C24: Telheiro módulo adicional 10 m² | D24: un | E24: 258.28 | F24: 735.88 | G24: 63.1 | H24: 1057.26 | I24: 1311
B25: 01.01.00.42 | C25: Alojamento módulo básico 10 m² | D25: un | E25: 1055.29 | F25: 2053.36 | G25: 921.26 | H25: 4029.91 | I25: 4997.09
B26: 01.01.00.43 | C26: Refeitório módulo básico 30 m² | D26: un | E26: 2075.41 | F26: 0 | G26: 10134.43 | H26: 12209.84 | I26: 15140.2
B27: 01.01.00.44 | C27: Refeitório módulo básico 40 m² | D27: un | E27: 2765.16 | F27: 0 | G27: 13513.16 | H27: 16278.32 | I27: 20185.12
B28: 01.01.00.45 | C28: Refeitório módulo adicional 10 m² | D28: un | E28: 689.61 | F28: 0 | G28: 3379.8 | H28: 4069.41 | I28: 5046.07
B29: 01.01.00.48 | C29: Sanitário módulo 15 m² para 20 pessoas | D29: un | E29: 1167.39 | F29: 0 | G29: 9306.82 | H29: 10474.21 | I29: 12988.02
B30: 01.01.00.49 | C30: Sanitário módulo 10 m² para 12 pessoas | D30: un | E30: 775.08 | F30: 0 | G30: 6198.67 | H30: 6973.75 | I30: 8647.45
B31: 01.01.00.50 | C31: Guarita módulo 5 m² | D31: un | E31: 46.84 | F31: 0 | G31: 4123.31 | H31: 4170.15 | I31: 5170.99
B32: 01.01.00.60 | C32: Tapume de vedação padrão | D32: m2 | E32: 19.22 | F32: 37.87 | G32: 0 | H32: 57.09 | I32: 70.79
B33: 01.01.00.65 | C33: Tapume de vedação ecológico | D33: m2 | E33: 15.41 | F33: 29.08 | G33: 0 | H33: 44.49 | I33: 55.17
B34: 01.01.00.70 | C34: Cerca padrão para canteiro de obra | D34: m | E34: 9.59 | F34: 17.83 | G34: 0 | H34: 27.42 | I34: 34
B36: 01.02.00.00 | C36: Placas de Obra
B37: 01.02.00.03 | C37: Placa da Corsan - 6m² | D37: un | E37: 1800 | F37: 99.06 | G37: 0 | H37: 1899.06 | I37: 2354.83
B38: 01.02.00.04 | C38: Placa do agente financiador - 3m² | D38: un | E38: 900 | F38: 49.53 | G38: 0 | H38: 949.53 | I38: 1177.42
B39: 01.02.00.07 | C39: Placa de licenciamento ambiental - 2 m² | D39: un | E39: 600 | F39: 33.02 | G39: 0 | H39: 633.02 | I39: 784.94
B41: 01.03.00.00 | C41: Mobilização e Desmobilização
B42: 01.03.00.11 | C42: Mobilização para Canteiro de Obras tipo I | D42: un | E42: 1 | F42: 0 | G42: 21829.13 | H42: 21829.13 | I42: 27068.12
B43: 01.03.00.12 | C43: Mobilização para Canteiro de Obras tipo II | D43: un | E43: 0 | F43: 0 | G43: 26380.13 | H43: 26380.13 | I43: 32711.36
B44: 01.03.00.13 | C44: Mobilização para Canteiro de Obras tipo III | D44: un | E44: 0 | F44: 0 | G44: 29455.13 | H44: 29455.13 | I44: 36524.36
B45: 01.03.00.14 | C45: Mobilização para Canteiro de Obras tipo IV | D45: un | E45: 0 | F45: 0 | G45: 36589.13 | H45: 36589.13 | I45: 45370.52
B46: 01.03.00.15 | C46: Mobilização para Canteiro de Obras tipo V | D46: un | E46: 0 | F46: 0 | G46: 47167.13 | H46: 47167.13 | I46: 58487.24
B47: 01.03.00.21 | C47: Desmobilização para Canteiro de Obras tipo I | D47: un | E47: 0 | F47: 0 | G47: 12235.13 | H47: 12235.13 | I47: 15171.56
B48: 01.03.00.22 | C48: Desmobilização para Canteiro de Obras tipo II | D48: un | E48: 0 | F48: 0 | G48: 14203.13 | H48: 14203.13 | I48: 17611.88
B49: 01.03.00.23 | C49: Desmobilização para Canteiro de Obras tipo III | D49: un | E49: 0 | F49: 0 | G49: 15433.13 | H49: 15433.13 | I49: 19137.08
B50: 01.03.00.24 | C50: Desmobilização para Canteiro de Obras tipo IV | D50: un | E50: 0 | F50: 0 | G50: 17770.13 | H50: 17770.13 | I50: 22034.96
B51: 01.03.00.25 | C51: Desmobilização para Canteiro de Obras tipo V | D51: un | E51: 0 | F51: 0 | G51: 22444.13 | H51: 22444.13 | I51: 27830.72
B53: 01.04.00.00 | C53: Operação e Supervisão do Canteiro
B54: 01.04.01.10 | C54: Carga e descarga de entulho | D54: m3 | E54: 0.43 | F54: 3.84 | G54: 1.57 | H54: 5.84 | I54: 7.24
B55: 01.04.01.21 | C55: Transporte de entulho a 1 km | D55: m3 | E55: 0.97 | F55: 0.42 | G55: 0.77 | H55: 2.16 | I55: 2.68
B56: 01.04.01.22 | C56: Transporte de entulho a 2 km | D56: m3 | E56: 1.39 | F56: 0.59 | G56: 1.1 | H56: 3.08 | I56: 3.82
B57: 01.04.01.23 | C57: Transporte de entulho a 3 km | D57: m3 | E57: 1.67 | F57: 0.71 | G57: 1.32 | H57: 3.7 | I57: 4.59
B58: 01.04.01.25 | C58: Transporte de entulho a 5 km | D58: m3 | E58: 2.16 | F58: 0.92 | G58: 1.71 | H58: 4.79 | I58: 5.94
B59: 01.04.01.27 | C59: Transporte de entulho a 7 km | D59: m3 | E59: 2.57 | F59: 1.1 | G59: 2.03 | H59: 5.7 | I59: 7.07
B60: 01.04.01.30 | C60: Transporte de entulho a 10 km | D60: m3 | E60: 3.09 | F60: 1.32 | G60: 2.44 | H60: 6.85 | I60: 8.49
B61: 01.04.02.10 | C61: Administração local | D61: un | E61: 0 | F61: 0 | G61: 0 | H61: 0 | I61: 0
B62: 01.04.03.01 | C62: Vigilância diurna | D62: h | E62: 0 | F62: 12.95 | G62: 3.91 | H62: 16.86 | I62: 20.91
B63: 01.04.03.02 | C63: Vigilância noturna (das 22 horas às 5 horas) | D63: h | E63: 0 | F63: 17.73 | G63: 3.91 | H63: 21.64 | I63: 26.83
B65: 02.00.00.00 | C65: SERVIÇOS TÉCNICOS
B66: 02.01.00.00 | C66: Projetos Complementares
B68: 02.02.00.00 | C68: Controle Tecnológico
B69: 02.02.00.11 | C69: Dosagem do concreto e ensaios conforme as normas da ABNT | D69: un | E69: 0 | F69: 0 | G69: 0 | H69: 0 | I69: 0
B70: 02.02.01.10 | C70: Teste hidráulico em rede de esgoto com bola de isopor | D70: m | E70: 0.14 | F70: 0.41 | G70: 0.71 | H70: 1.26 | I70: 1.56
B72: 02.03.00.00 | C72: Sondagens
B73: 02.03.00.10 | C73: Mobilização e desmobilização para serviços de sondagem rotativa até 150 km | D73: un | E73: 0 | F73: 0 | G73: 0 | H73: 0 | I73: 0
B74: 02.03.00.20 | C74: Mobilização e desmobilização para serviços de sondagem rotativa de 151 a 300 km | D74: un | E74: 0 | F74: 0 | G74: 0 | H74: 0 | I74: 0
B75: 02.03.00.30 | C75: Mobilização e desmobilização para serviços de sondagem rotativa acima de 300 km | D75: un | E75: 0 | F75: 0 | G75: 0 | H75: 0 | I75: 0
B76: 02.03.00.40 | C76: Mobilização e desmobilização para serviços de sondagem a percussão/trado | D76: un | E76: 0 | F76: 0 | G76: 0 | H76: 0 | I76: 0
B77: 02.03.01.10 | C77: Sondagem a percussão | D77: m | E77: 0 | F77: 0 | G77: 0 | H77: 0 | I77: 0
B78: 02.03.02.10 | C78: Sondagem rotativa - execução em solo com ensaio SPT | D78: m | E78: 0 | F78: 0 | G78: 0 | H78: 0 | I78: 0
B79: 02.03.02.20 | C79: Sondagem rotativa - execução em solo com medida SPT e torque | D79: m | E79: 0 | F79: 0 | G79: 0 | H79: 0 | I79: 0
B80: 02.03.02.30 | C80: Sondagem rotativa - execução em rocha alterada | D80: m | E80: 0 | F80: 0 | G80: 0 | H80: 0 | I80: 0
B81: 02.03.02.40 | C81: Sondagem rotativa - execução em rocha sedimentar | D81: m | E81: 0 | F81: 0 | G81: 0 | H81: 0 | I81: 0
B82: 02.03.02.50 | C82: Sondagem rotativa - execução em rocha magmática (basalto) | D82: m | E82: 0 | F82: 0 | G82: 0 | H82: 0 | I82: 0
B83: 02.03.02.60 | C83: Sondagem rotativa - execução em rocha magmática (granito) | D83: m | E83: 0 | F83: 0 | G83: 0 | H83: 0 | I83: 0
B84: 02.03.03.10 | C84: Sondagem a trado | D84: m | E84: 0 | F84: 0 | G84: 0 | H84: 0 | I84: 0
B86: 02.04.00.00 | C86: Locação e Cadastro
B87: 02.04.01.10 | C87: Locação para obras de condutos forçados | D87: m | E87: 0 | F87: 0.28 | G87: 0.07 | H87: 0.35 | I87: =IF(H87="","",ROUND((H87*$H$5),2)) -> 0.43
B88: 02.04.01.20 | C88: Locação e nivelamento para obras de condutos livres | D88: m | E88: 0 | F88: 1.07 | G88: 0.19 | H88: 1.26 | I88: 1.56
B89: 02.04.01.30 | C89: Locação de obras localizadas | D89: m2 | E89: 2.08 | F89: 2.91 | G89: 0 | H89: 4.99 | I89: 6.19
B90: 02.04.01.31 | C90: Locação de muros ou cercas | D90: m | E90: 0.48 | F90: 3.63 | G90: 0 | H90: 4.11 | I90: 5.1
B91: 02.04.01.40 | C91: Locação e nivelamento de obras localizadas | D91: m2 | E91: 2.08 | F91: 3.73 | G91: 0.14 | H91: 5.95 | I91: 7.38
B92: 02.04.01.50 | C92: Locação e nivelamento para ramais prediais de esgotos | D92: m | E92: 0 | F92: 0.74 | G92: 0.12 | H92: 0.86 | I92: 1.07
B93: 02.04.02.10 | C93: Cadastro e desenho para obras de condutos forçados | D93: m | E93: 0.03 | F93: 0.32 | G93: 0.05 | H93: 0.4 | I93: 0.5
B94: 02.04.02.20 | C94: Cadastro e desenho para obras de condutos livres | D94: m | E94: 0.03 | F94: 0.74 | G94: 0.07 | H94: 0.84 | I94: 1.04
B95: 02.04.02.30 | C95: Cadastro e desenho para ligações prediais | D95: m | E95: 0.03 | F95: 1.12 | G95: 0.04 | H95: 1.19 | I95: 1.48
B96: 02.04.02.40 | C96: Cadastro e desenho para obras localizadas | D96: m2 | E96: 0.18 | F96: 4.57 | G96: 0 | H96: 4.75 | I96: 5.89
B98: 03.00.00.00 | C98: SERVIÇOS PRELIMINARES
B99: 03.01.00.00 | C99: Preparo do Terreno
B100: 03.01.00.10 | C100: Limpeza manual do terreno | D100: m2 | E100: 0 | F100: 4.13 | G100: 0 | H100: 4.13 | I100: 5.12
B101: 03.01.00.20 | C101: Limpeza mecanizada do terreno | D101: m2 | E101: 0 | F101: 0.02 | G101: 0.3 | H101: 0.32 | I101: 0.4
B102: 03.01.00.30 | C102: Destocamento mecânico de árvores diâmetro de 15 a 40 cm | D102: un | E102: 0.41 | F102: 6.49 | G102: 14.18 | H102: 21.08 | I102: 26.14
B104: 03.02.00.00 | C104: Trânsito e Segurança
B105: 03.02.00.10 | C105: Sinalização com cavaletes, placas e cones | D105: m | E105: 0.82 | F105: 0.33 | G105: 0 | H105: 1.15 | I105: 1.43
B106: 03.02.00.20 | C106: Sinalização luminosa com cavaletes, placas e cones | D106: m | E106: 1.41 | F106: 0.88 | G106: 0 | H106: 2.29 | I106: 2.84
B107: 03.02.00.30 | C107: Tapume de proteção | D107: m2 | E107: 9.28 | F107: 14.54 | G107: 0 | H107: 23.82 | I107: 29.54
B108: 03.02.00.35 | C108: Tela plástica (PVC/PEAD) laranja, para sinalização e isolamento, incluso estrutura de fixação | D108: m | E108: 0.25 | F108: 0.77 | G108: 0.07 | H108: 1.09 | I108: 1.35
B109: 03.02.00.40 | C109: Passadiço de madeira 1,00 x 2,00 m | D109: un | E109: 60.3 | F109: 36.35 | G109: 0 | H109: 96.65 | I109: 119.85
B110: 03.02.00.50 | C110: Passadiço de aço, espessura 3/4" - 2,00 x 1,00 m | D110: un | E110: 69.33 | F110: 44.23 | G110: 42.53 | H110: 156.09 | I110: 193.55
B111: 03.02.00.60 | C111: Instalações sanitárias móveis para obras lineares | D111: m | E111: 0.02 | F111: 0.02 | G111: 0.56 | H111: 0.6 | I111: 0.74
B112: 03.02.00.70 | C112: Elevador, andaime metálico e plataforma para reservatório elevado 250 m³ até 10 m | D112: cj | E112: 2220.72 | F112: 11978.92 | G112: 66382.04 | H112: 80581.68 | I112: 99921.28
B113: 03.02.00.71 | C113: Elevador, andaime metálico e plataforma para reservatório elevado 250 m³ até 15 m | D113: cj | E113: 3331.08 | F113: 17968.6 | G113: 74733.41 | H113: 96033.09 | I113: 119081.03
B114: 03.02.00.72 | C114: Elevador, andaime metálico e plataforma para reservatório elevado 250 m³ até 20 m | D114: cj | E114: 4441.44 | F114: 23958.27 | G114: 83084.77 | H114: 111484.48 | I114: 138240.76
B115: 03.02.00.73 | C115: Elevador, andaime metálico e plataforma para reservatório elevado 250 m³ até 25 m | D115: cj | E115: 5551.8 | F115: 29947.94 | G115: 91436.13 | H115: 126935.87 | I115: 157400.48
B116: 03.02.00.74 | C116: Elevador, andaime metálico e plataforma para reservatório elevado 250 m³ até 30 m | D116: cj | E116: 6662.16 | F116: 35937.19 | G116: 99786.81 | H116: 142386.16 | I116: 176558.84
B117: 03.02.00.75 | C117: Elevador, andaime metálico e plataforma para reservatório elevado 250 m³ até 35 m | D117: cj | E117: 7772.52 | F117: 41926.87 | G117: 108138.18 | H117: 157837.57 | I117: 195718.59
B118: 03.02.00.80 | C118: Elevador, andaime metálico e plataforma para reservatório elevado 500 m³ até 10 m | D118: cj | E118: 3442.8 | F118: 18551.27 | G118: 75541.51 | H118: 97535.58 | I118: 120944.12
B119: 03.02.00.81 | C119: Elevador, andaime metálico e plataforma para reservatório elevado 500 m³ até 15 m | D119: cj | E119: 5157.36 | F119: 27822.17 | G119: 88472.61 | H119: 121452.14 | I119: 150600.65
B120: 03.02.00.82 | C120: Elevador, andaime metálico e plataforma para reservatório elevado 500 m³ até 20 m | D120: cj | E120: 6876.48 | F120: 37095.95 | G120: 101403.03 | H120: 145375.46 | I120: 180265.57
B121: 03.02.00.83 | C121: Elevador, andaime metálico e plataforma para reservatório elevado 500 m³ até 25 m | D121: cj | E121: 8595.6 | F121: 46370.15 | G121: 114334.13 | H121: 169299.88 | I121: 209931.85
B122: 03.02.00.84 | C122: Elevador, andaime metálico e plataforma para reservatório elevado 500 m³ até 30 m | D122: cj | E122: 10314.72 | F122: 55644.35 | G122: 127265.23 | H122: 193224.3 | I122: 239598.13
B123: 03.02.00.85 | C123: Elevador, andaime metálico e plataforma para reservatório elevado 500 m³ até 35 m | D123: cj | E123: 12033.84 | F123: 64918.12 | G123: 140195.64 | H123: 217147.6 | I123: 269263.02
B124: 03.02.00.90 | C124: Elevador, andaime metálico e plataforma para reservatório elevado 1000 m³ até 10 m | D124: cj | E124: 4842.72 | F124: 26122.22 | G124: 86101.8 | H124: 117066.74 | I124: 145162.76
B125: 03.02.00.91 | C125: Elevador, andaime metálico e plataforma para reservatório elevado 1000 m³ até 15 m | D125: cj | E125: 7264.08 | F125: 39183.54 | G125: 104313.04 | H125: 150760.66 | I125: 186943.22
B126: 03.02.00.92 | C126: Elevador, andaime metálico e plataforma para reservatório elevado 1000 m³ até 20 m | D126: cj | E126: 9683.16 | F126: 52242.79 | G126: 122523.6 | H126: 184449.55 | I126: 228717.44
B127: 03.02.00.93 | C127: Elevador, andaime metálico e plataforma para reservatório elevado 1000 m³ até 25 m | D127: cj | E127: 12104.52 | F127: 65304.11 | G127: 140734.84 | H127: 218143.47 | I127: 270497.9
B128: 03.02.00.94 | C128: Elevador, andaime metálico e plataforma para reservatório elevado 1000 m³ até 30 m | D128: cj | E128: 14525.88 | F128: 78365 | G128: 158945.39 | H128: 251836.27 | I128: 312276.97
B129: 03.02.00.95 | C129: Elevador, andaime metálico e plataforma para reservatório elevado 1000 m³ até 35 m | D129: cj | E129: 16947.24 | F129: 91426.33 | G129: 177156.64 | H129: 285530.21 | I129: 354057.46
B130: 03.02.01.10 | C130: Escada modular em aço com piso auto acoplável para reservatório elevado - H = 0 a 10 m | D130: cj | E130: 0 | F130: 4100.48 | G130: 7497.92 | H130: 11598.4 | I130: 14382.02
B131: 03.02.01.11 | C131: Escada modular em aço com piso auto acoplável para reservatório elevado - H = 11 a 15 m | D131: cj | E131: 0 | F131: 5828.48 | G131: 10197.92 | H131: 16026.4 | I131: 19872.74
B132: 03.02.01.12 | C132: Escada modular em aço com piso auto acoplável para reservatório elevado - H = 16 a 20 m | D132: cj | E132: 0 | F132: 7556.48 | G132: 15597.92 | H132: 23154.4 | I132: 28711.46
B133: 03.02.01.13 | C133: Escada modular em aço com piso auto acoplável para reservatório elevado - H = 21 a 25 m | D133: cj | E133: 0 | F133: 9284.48 | G133: 18972.92 | H133: 28257.4 | I133: 35039.18
B134: 03.02.01.14 | C134: Escada modular em aço com piso auto acoplável para reservatório elevado - H = 26 a 30 m | D134: cj | E134: 0 | F134: 11012.48 | G134: 26397.92 | H134: 37410.4 | I134: 46388.9
B135: 03.02.01.15 | C135: Escada modular em aço com piso auto acoplável para reservatório elevado - H = 31 a 35 m | D135: cj | E135: 0 | F135: 12740.48 | G135: 30447.92 | H135: 43188.4 | I135: 53553.62
B136: 03.02.02.01 | C136: Andaime metálico fachadeiro, inclus. mont/desmont. - p/ estrutura de concreto - A≤100m2 | D136: m2 | E136: 5.45 | F136: 4.15 | G136: 0 | H136: 9.6 | I136: 11.9
B137: 03.02.02.02 | C137: Andaime metálico fachadeiro, inclus. mont/desmont. - p/ estrutura de concreto - 100≤A≤200m2 | D137: m2 | E137: 8.46 | F137: 4.15 | G137: 0 | H137: 12.61 | I137: 15.64
B138: 03.02.02.03 | C138: Andaime metálico fachadeiro, inclus. mont/desmont. - p/ estrutura de concreto - A≥200m2 | D138: m2 | E138: 9.79 | F138: 4.15 | G138: 0 | H138: 13.94 | I138: 17.29
B139: 03.02.02.11 | C139: Andaime metálico fachadeiro, inclus. mont/desmont. - p/ impermeabilização - A≤100m2 | D139: m2 | E139: 1.69 | F139: 4.15 | G139: 0 | H139: 5.84 | I139: 7.24
B140: 03.02.02.12 | C140: Andaime metálico fachadeiro, inclus. mont/desmont. - p/ impermeabilização - 100≤A≤200m2 | D140: m2 | E140: 2.93 | F140: 4.15 | G140: 0 | H140: 7.08 | I140: 8.78
B141: 03.02.02.13 | C141: Andaime metálico fachadeiro, inclus. mont/desmont. - p/ impermeabilização - A≥200m2 | D141: m2 | E141: 3.7 | F141: 4.15 | G141: 0 | H141: 7.85 | I141: 9.73
B142: 03.02.02.21 | C142: Andaime metálico fachadeiro, inclus. mont/desmont. - p/ pintura - A≤100m2 | D142: m2 | E142: 0.59 | F142: 4.15 | G142: 0 | H142: 4.74 | I142: 5.88
B143: 03.02.02.22 | C143: Andaime metálico fachadeiro, inclus. mont/desmont. - p/ pintura - 100≤A≤200m2 | D143: m2 | E143: 1.28 | F143: 4.15 | G143: 0 | H143: 5.43 | I143: 6.73
B144: 03.02.02.23 | C144: Andaime metálico fachadeiro, inclus. mont/desmont. - p/ pintura - A≥200m2 | D144: m2 | E144: 1.85 | F144: 4.15 | G144: 0 | H144: 6 | I144: 7.44
B146: 03.03.00.00 | C146: Acessos
B148: 03.04.00.00 | C148: Sustentações Diversas
B150: 03.05.00.00 | C150: Demolições
B151: 03.05.00.10 | C151: Demolição manual de concreto estrutural | D151: m3 | E151: 0 | F151: 444.22 | G151: 0 | H151: 444.22 | I151: =IF(H151="","",ROUND((H151*$H$5),2)) -> 550.83
B152: 03.05.00.20 | C152: Demolição mecânica de concreto estrutural | D152: m3 | E152: 74.85 | F152: 0 | G152: 99.87 | H152: 174.72 | I152: 216.65
B153: 03.05.00.30 | C153: Demolição alvenaria de tijolos, sem reaproveitamento | D153: m3 | E153: 0 | F153: 55.53 | G153: 0 | H153: 55.53 | I153: 68.86
B154: 03.05.00.40 | C154: Demolição de alvenaria de tijolos, com reaproveitamento | D154: m3 | E154: 0 | F154: 105.06 | G154: 0 | H154: 105.06 | I154: 130.27
B155: 03.05.00.50 | C155: Demolição de alvenaria de pedras | D155: m3 | E155: 0 | F155: 88.55 | G155: 0 | H155: 88.55 | I155: 109.8
B156: 03.05.00.60 | C156: Demolição de reboco | D156: m2 | E156: 0 | F156: 7 | G156: 0 | H156: 7 | I156: 8.68
B157: 03.05.00.64 | C157: Demolição de revestimento de azulejo | D157: m2 | E157: 0 | F157: 8.76 | G157: 0 | H157: 8.76 | I157: 10.86
B158: 03.05.00.70 | C158: Demolição de cobertura de telha cerâmica, com reaproveitamento | D158: m2 | E158: 0 | F158: 7.95 | G158: 0 | H158: 7.95 | I158: 9.86
B159: 03.05.00.74 | C159: Demolição de cobertura de telha de fibrocimento, com reaproveitamento | D159: m2 | E159: 0 | F159: 5.28 | G159: 0 | H159: 5.28 | I159: 6.55
B160: 03.05.00.80 | C160: Demolição de forro de madeira, com reaproveitamento | D160: m2 | E160: 0 | F160: 7.93 | G160: 0 | H160: 7.93 | I160: 9.83
B162: 03.06.00.00 | C162: Remanejamento de Interferência
B163: 03.06.00.21 | C163: Execução de tampa de boca de lobo | D163: un | E163: 17.38 | F163: 36.52 | G163: 0.01 | H163: 53.91 | I163: 66.85
B164: 03.06.00.22 | C164: Remanejamento de rede de água | D164: m | E164: 14.47 | F164: 49.66 | G164: 4.68 | H164: 68.81 | I164: 85.32
B165: 03.06.00.23 | C165: Conserto de rede de água | D165: m | E165: 36.87 | F165: 2.91 | G165: 0.13 | H165: 39.91 | I165: 49.49
B166: 03.06.00.24 | C166: Conserto de ramal de água | D166: m | E166: 5.53 | F166: 11.23 | G166: 3.56 | H166: 20.32 | I166: 25.2
B167: 03.06.00.25 | C167: Execução de caixa de pluvial | D167: un | E167: 809.12 | F167: 952.09 | G167: 31.68 | H167: 1792.89 | I167: 2223.18
B168: 03.06.00.26 | C168: Remanejamento de rede pluvial DN 300 | D168: m | E168: 87.48 | F168: 108.67 | G168: 49.64 | H168: 245.79 | I168: 304.78
B169: 03.06.00.27 | C169: Remanejamento de rede pluvial DN 400 | D169: m | E169: 96.67 | F169: 144.08 | G169: 55.74 | H169: 296.49 | I169: 367.65
B170: 03.06.00.28 | C170: Remanejamento de rede pluvial DN 500 | D170: m | E170: 120.06 | F170: 173.02 | G170: 60.78 | H170: 353.86 | I170: 438.79
B171: 03.06.00.29 | C171: Remanejamento de rede pluvial DN 600 | D171: m | E171: 148.7 | F171: 193.5 | G171: 64.71 | H171: 406.91 | I171: 504.57
B173: 03.08.00.00 | C173: Desmatamento ou Supressão Vegetal
B174: 03.08.00.01 | C174: Corte, Recorte e Remoção de Árvores inclusive raízes 5 cm < DAP < 15 cm | D174: un | E174: 0 | F174: 58.44 | G174: 66.77 | H174: 125.21 | I174: 155.26
B175: 03.08.00.02 | C175: Corte, Recorte e Remoção de Árvores inclusive raízes 15 cm < DAP < 30 cm | D175: un | E175: 0.82 | F175: 103.88 | G175: 124.26 | H175: 228.96 | I175: 283.91
B176: 03.08.00.03 | C176: Corte, Recorte e Remoção de Árvores inclusive raízes 30 cm < DAP < 60 cm | D176: un | E176: 0 | F176: 116.9 | G176: 226.54 | H176: 343.44 | I176: 425.87
B177: 03.08.00.04 | C177: Corte, Recorte e Remoção de Árvores inclusive raízes 60 cm < DAP < 90 cm | D177: un | E177: 0 | F177: 155.88 | G177: 302.06 | H177: 457.94 | I177: 567.85
B178: 03.08.00.05 | C178: Corte, Recorte e Remoção de Árvores inclusive raízes DAP > 90 cm | D178: un | E178: 0 | F178: 194.84 | G178: 377.56 | H178: 572.4 | I178: 709.78
B180: 04.00.00.00 | C180: MOVIMENTO DE SOLO
B181: 04.01.00.00 | C181: Escavação de Solo Localizada
B182: 04.01.01.42 | C182: Escavação localizada manual, solo 0-2 m | D182: m3 | E182: 0 | F182: 37.97 | G182: 0 | H182: 37.97 | I182: 47.08
B183: 04.01.01.43 | C183: Escavação localizada manual, solo 0-3 m | D183: m3 | E183: 0 | F183: 44.74 | G183: 0 | H183: 44.74 | I183: 55.48
B184: 04.01.01.44 | C184: Escavação localizada manual, solo 0-4 m | D184: m3 | E184: 0 | F184: 52.83 | G184: 0 | H184: 52.83 | I184: 65.51
B185: 04.01.01.52 | C185: Escavação localizada manual, rocha decomposta 0-2 m | D185: m3 | E185: 0 | F185: 62.41 | G185: 0 | H185: 62.41 | I185: 77.39
B186: 04.01.01.53 | C186: Escavação localizada manual, rocha decomposta 0-3 m | D186: m3 | E186: 0 | F186: 73.63 | G186: 0 | H186: 73.63 | I186: 91.3
B187: 04.01.01.54 | C187: Escavação localizada manual, rocha decomposta 0-4 m | D187: m3 | E187: 0 | F187: 86.84 | G187: 0 | H187: 86.84 | I187: 107.68
B188: 04.01.02.42 | C188: Escavação localizada mecânica, solo 0-2 m | D188: m3 | E188: 0.11 | F188: 3.5 | G188: 4.09 | H188: 7.7 | I188: 9.55
B189: 04.01.02.43 | C189: Escavação localizada mecânica, solo 0-3 m | D189: m3 | E189: 0.12 | F189: 3.76 | G189: 4.4 | H189: 8.28 | I189: 10.27
B190: 04.01.02.44 | C190: Escavação localizada mecânica, solo 0-4 m | D190: m3 | E190: 0.12 | F190: 4.07 | G190: 4.75 | H190: 8.94 | I190: 11.09
B191: 04.01.02.45 | C191: Escavação localizada mecânica, solo 0-5 m | D191: m3 | E191: 2.31 | F191: 3.24 | G191: 4.52 | H191: 10.07 | I191: 12.49
B192: 04.01.02.46 | C192: Escavação localizada mecânica, solo 0-6 m | D192: m3 | E192: 2.5 | F192: 3.5 | G192: 4.89 | H192: 10.89 | I192: 13.5
B193: 04.01.02.47 | C193: Escavação localizada mecânica, solo 0-7 m | D193: m3 | E193: 2.7 | F193: 3.77 | G193: 5.28 | H193: 11.75 | I193: 14.57
B194: 04.01.02.48 | C194: Escavação localizada mecânica, solo 0-8 m | D194: m3 | E194: 2.92 | F194: 4.07 | G194: 5.7 | H194: 12.69 | I194: 15.74
B195: 04.01.02.52 | C195: Escavação localizada mecânica, rocha decomposta 0-2 m | D195: m3 | E195: 0.14 | F195: 4.5 | G195: 5.25 | H195: 9.89 | I195: 12.26
B196: 04.01.02.53 | C196: Escavação localizada mecânica, rocha decomposta 0-3 m | D196: m3 | E196: 0.15 | F196: 4.83 | G196: 5.66 | H196: 10.64 | I196: 13.19
B197: 04.01.02.54 | C197: Escavação localizada mecânica, rocha decomposta 0-4 m | D197: m3 | E197: 0.16 | F197: 5.22 | G197: 6.12 | H197: 11.5 | I197: 14.26
B198: 04.01.02.55 | C198: Escavação localizada mecânica, rocha decomposta 0-5 m | D198: m3 | E198: 2.88 | F198: 4.09 | G198: 5.68 | H198: 12.65 | I198: 15.69
B199: 04.01.02.56 | C199: Escavação localizada mecânica, rocha decomposta 0-6 m | D199: m3 | E199: 3.08 | F199: 4.36 | G199: 6.07 | H199: 13.51 | I199: 16.75
B200: 04.01.02.57 | C200: Escavação localizada mecânica, rocha decomposta 0-7 m | D200: m3 | E200: 3.27 | F200: 4.64 | G200: 6.46 | H200: 14.37 | I200: 17.82
B201: 04.01.02.58 | C201: Escavação localizada mecânica, rocha decomposta 0-8 m | D201: m3 | E201: 3.49 | F201: 4.96 | G201: 6.9 | H201: 15.35 | I201: 19.03
B203: 04.02.00.00 | C203: Escavação de Solo Valas
B204: 04.02.01.42 | C204: Escavação de valas manual, solo 0-2 m | D204: m3 | E204: 0 | F204: 49.53 | G204: 0 | H204: 49.53 | I204: 61.42
B205: 04.02.01.43 | C205: Escavação de valas manual, solo 0-3 m | D205: m3 | E205: 0 | F205: 58.45 | G205: 0 | H205: 58.45 | I205: 72.48
B206: 04.02.01.44 | C206: Escavação de valas manual, solo 0-4 m | D206: m3 | E206: 0 | F206: 68.97 | G206: 0 | H206: 68.97 | I206: 85.52
B207: 04.02.01.52 | C207: Escavação de valas manual, rocha decomposta 0-2 m | D207: m3 | E207: 0 | F207: 67.69 | G207: 0 | H207: 67.69 | I207: 83.94
B208: 04.02.01.53 | C208: Escavação de valas manual, rocha decomposta 0-3 m | D208: m3 | E208: 0 | F208: 79.88 | G208: 0 | H208: 79.88 | I208: 99.05
B209: 04.02.01.54 | C209: Escavação de valas manual, rocha decomposta 0-4 m | D209: m3 | E209: 0 | F209: 94.25 | G209: 0 | H209: 94.25 | I209: 116.87
B210: 04.02.02.42 | C210: Escavação de valas mecânica, solo 0-2 m | D210: m3 | E210: 0 | F210: 0 | G210: 8.2 | H210: 8.2 | I210: 10.17
B211: 04.02.02.43 | C211: Escavação de valas mecânica, solo 0-3 m | D211: m3 | E211: 0 | F211: 0 | G211: 7.6 | H211: 7.6 | I211: 9.42
B212: 04.02.02.44 | C212: Escavação de valas mecânica, solo 0-4 m | D212: m3 | E212: 0 | F212: 0 | G212: 6.74 | H212: 6.74 | I212: 8.36
B213: 04.02.02.45 | C213: Escavação de valas mecânica, solo 0-5 m | D213: m3 | E213: 0 | F213: 0 | G213: 6.47 | H213: 6.47 | I213: 8.02
B214: 04.02.02.46 | C214: Escavação de valas mecânica, solo 0-6 m | D214: m3 | E214: 0 | F214: 0 | G214: 6.19 | H214: 6.19 | I214: 7.68
B215: 04.02.02.47 | C215: Escavação de valas mecânica, solo 0-7 m | D215: m3 | E215: 0 | F215: 0 | G215: 6.19 | H215: 6.19 | I215: 7.68
B216: 04.02.02.52 | C216: Escavação de valas mecânica, rocha decomposta 0-2 m | D216: m3 | E216: 0.18 | F216: 5.34 | G216: 6.56 | H216: 12.08 | I216: 14.98
B217: 04.02.02.53 | C217: Escavação de valas mecânica, rocha decomposta 0-3 m | D217: m3 | E217: 0.19 | F217: 5.75 | G217: 7.06 | H217: 13 | I217: 16.12
B218: 04.02.02.54 | C218: Escavação de valas mecânica, rocha decomposta 0-4 m | D218: m3 | E218: 0.21 | F218: 6.21 | G218: 7.64 | H218: 14.06 | I218: 17.43
... 991 more rows

Sheet 1 - DCCU
A1: =IF(OR('0 - PUC'!H764=0,'0 - PUC'!H765=0,'0 - PUC'!H766=0,'0 - PUC'!H847=0,'0 - PUC'!H848=0,'0 - PUC'!H849=0,'0 - PUC'!H850=0,'0 - PUC'!H851=0,'0 - PUC'!H852=0,'0 - PUC'!H853=0,'0 - PUC'!H854=0,'0 - PUC'!H855=0,'0 - PUC'!H856=0,'0 - PUC'!H857=0,'0 - PUC'!H858=0,'0 - PUC'!H859=0,'0 - PUC'!H860=0,'0 - PUC'!H861=0,'0 - PUC'!H862=0,'0 - PUC'!H863=0,'0 - PUC'!H864=0,'0 - PUC'!H865=0,'0 - PUC'!H866=0,'0 - PUC'!H867=0,'0 - PUC'!H868=0,'0 - PUC'!H869=0,'0 - PUC'!H870=0,'0 - PUC'!H871=0,'0 - PUC'!H872=0,'0 - PUC'!H873=0,'0 - PUC'!H874=0,'0 - PUC'!H875=0,'0 - PUC'!H876=0,'0 - PUC'!H877=0,'0 - PUC'!H878=0,'0 - PUC'!H879=0,'0 - PUC'!H880=0,'0 - PUC'!H881=0,'0 - PUC'!H882=0,'0 - PUC'!H883=0,'0 - PUC'!H884=0),0,1) -> 1
B2: =IF(A1=0,"PREENCHER A ABA '0 - PUC' COM OS VALORES"," SERVIÇOS DE ÁGUA E ESGOTO DE NOVO HAMBURGO") -> SERVIÇOS DE ÁGUA E ESGOTO DE NOVO HAMBURGO | J2: Data base do orçamento: | O2: 1
B3: =IF(A1=0,"DAS PEÇAS PRÉ-MOLDADAS DE CONCRETO DOS CAPÍTULOS 16.00.00.00 E 18.00.00.00","DEMONSTRATIVO DA COMPOSIÇÃO DO CUSTO UNITÁRIO") -> DEMONSTRATIVO DA COMPOSIÇÃO DO CUSTO UNITÁRIO | J3: AGO DE 2020 | M3: Digite na célula ao lado do botão quantas páginas vocês gostaria de acrescentar à este orçamento
B4: MUNICÍPIO: NOVO HAMBURGO | F4: I - SERVIÇOS PRELIMINARES | M4: MEMÓRIA DOS PREÇOS UNITÁRIOS
B5: OBRA: TERRAPLENAGEM ETE LUIZ RAU
A6: =IF(OR(E6="",E6="UN"),"","+") ->  | B6: ITEM | C6: DISCRIMINAÇÃO | D6: CÓDIGO | E6: UN | F6: QTDE | G6: CUSTO | I6: B.D.I. APLICADO | J6: PREÇO MÁXIMO ADMISSÍVEL
F7: QUANT | G7: (SEM B.D.I.) | J7: (COM B.D.I.) | M7: FORNECEDOR 1 | N7: CUSTO (SEM B.D.I.) | O7: FORNECEDOR 2 | P7: CUSTO (SEM B.D.I.) | Q7: FORNECEDOR 3 | R7: CUSTO (SEM B.D.I.) | S7: FORNECEDOR 4 | T7: CUSTO (SEM B.D.I.) | U7: CUSTO FINAL (SEM B.D.I.)
A8: =IF(OR(E8="",E8="UN"),"","+") ->  | G8: UNITÁRIO | H8: TOTAL | J8: UNITÁRIO | K8: TOTAL
A9: =IF(OR(E9="",E9="UN"),"","+") -> 
A10: =IF(OR(E10="",E10=0),"","+") ->  | B10: 1 | C10: CANTEIRO DE OBRAS | E10: =IF(D10="","",VLOOKUP(D10,ITENS,3,0)) ->  | G10: =IF(D10="","",VLOOKUP(D10,ITENS,7,0)) ->  | H10: =IF(OR(E10="",F10=""),"",ROUND(G10*F10,2)) ->  | I10: =IF(F10="","",IF(D10="***",'0 - PUC'!$H$6,IF(ISERR(SEARCH("18.",D10)),'0 - PUC'!$H$5,'0 - PUC'!$H$6))-1) ->  | J10: =IF(OR(E10="",F10=""),"",ROUND(G10*(1+I10),2)) ->  | K10: =IF(OR(E10="",F10=""),"",ROUND(J10*F10,2)) ->  | U10: =IF(M10<> "",IF(M10="SINAPI",IF(N10="INSUMO",VLOOKUP(O10,Sinapi_Insumos,4,0),IF(N10="SERVIÇO",VLOOKUP(O10,Sinapi_Compo,4,0),"ERRO")),IF(M10="Composição",ROUND(VLOOKUP(N10,Compo_Novas,11,0),2),ROUND(MEDIAN(R10,P10,N10,T10),2))),"") ->  | V10: =IF(U10="ERRO","Complete a coluna 'M' com 'SINAPI', e a coluna 'N' com 'Insumo' ou 'Serviço'", "") -> 
B11: 1.1 | C11: Construção do Canteiro | E11: =IF(D11="","",VLOOKUP(D11,ITENS,3,0)) ->  | G11: =IF(D11="","",VLOOKUP(D11,ITENS,7,0)) ->  | I11: =IF(F11="","",IF(D11="***",'0 - PUC'!$H$6,IF(ISERR(SEARCH("18.",D11)),'0 - PUC'!$H$5,'0 - PUC'!$H$6))-1) -> 
A12: + | B12: 1.1.1 | C12: Ligação provisória de água e esgotos | D12: ### | E12: un | F12: 1 | G12: =U12 -> 561.84 | H12: 561.84 | I12: =IF(F12="","",IF(D12="***",'0 - PUC'!$H$6,IF(ISERR(SEARCH("18.",D12)),'0 - PUC'!$H$5,'0 - PUC'!$H$6))-1) -> 0.24 | J12: 696.68 | K12: 696.68 | M12: composição | N12: comp 005 | U12: =IF(M12<> "",IF(M12="SINAPI",IF(N12="INSUMO",VLOOKUP(O12,Sinapi_Insumos,4,0),IF(N12="SERVIÇO",VLOOKUP(O12,Sinapi_Compo,4,0),"ERRO")),IF(M12="Composição",ROUND(VLOOKUP(N12,comp_Novas,11,0),2),ROUND(MEDIAN(R12,P12,N12,T12),2))),"") -> 561.84
A13: + | B13: 1.1.2 | C13: Ligação provisória de força e luz | D13: ### | E13: un | F13: 1 | G13: =U13 -> 1943.56 | H13: 1943.56 | I13: =IF(F13="","",IF(D13="***",'0 - PUC'!$H$6,IF(ISERR(SEARCH("18.",D13)),'0 - PUC'!$H$5,'0 - PUC'!$H$6))-1) -> 0.24 | J13: 2410.01 | K13: 2410.01 | M13: composição | N13: comp 006 | U13: =IF(M13<> "",IF(M13="SINAPI",IF(N13="INSUMO",VLOOKUP(O13,Sinapi_Insumos,4,0),IF(N13="SERVIÇO",VLOOKUP(O13,Sinapi_Compo,4,0),"ERRO")),IF(M13="Composição",ROUND(VLOOKUP(N13,comp_Novas,11,0),2),ROUND(MEDIAN(R13,P13,N13,T13),2))),"") -> 1943.56
A14: + | B14: 1.1.3 | C14: Ponto de água externo | D14: ### | E14: un | F14: 1 | G14: 171.54 | H14: 171.54 | I14: =IF(F14="","",IF(D14="***",'0 - PUC'!$H$6,IF(ISERR(SEARCH("18.",D14)),'0 - PUC'!$H$5,'0 - PUC'!$H$6))-1) -> 0.24 | J14: 212.71 | K14: 212.71 | M14: composição | N14: comp 007 | U14: =IF(M14<> "",IF(M14="SINAPI",IF(N14="INSUMO",VLOOKUP(O14,Sinapi_Insumos,4,0),IF(N14="SERVIÇO",VLOOKUP(O14,Sinapi_Compo,4,0),"ERRO")),IF(M14="Composição",ROUND(VLOOKUP(N14,comp_Novas,11,0),2),ROUND(MEDIAN(R14,P14,N14,T14),2))),"") -> 171.54
A15: + | B15: 1.1.4 | C15: Ponto de luz externo | D15: ### | E15: un | F15: 2 | G15: 273.04 | H15: 546.08 | I15: =IF(F15="","",IF(D15="***",'0 - PUC'!$H$6,IF(ISERR(SEARCH("18.",D15)),'0 - PUC'!$H$5,'0 - PUC'!$H$6))-1) -> 0.24 | J15: 338.57 | K15: 677.14 | M15: composição | N15: comp 008 | U15: =IF(M15<> "",IF(M15="SINAPI",IF(N15="INSUMO",VLOOKUP(O15,Sinapi_Insumos,4,0),IF(N15="SERVIÇO",VLOOKUP(O15,Sinapi_Compo,4,0),"ERRO")),IF(M15="Composição",ROUND(VLOOKUP(N15,comp_Novas,11,0),2),ROUND(MEDIAN(R15,P15,N15,T15),2))),"") -> 273.04
A16: + | B16: 1.1.5 | C16: Escritório módulo básico em chapa de madeira compensada | D16: ### | E16: m² | F16: 9 | G16: =U16 -> 792,38 | H16: 7131.42 | I16: =IF(F16="","",IF(D16="***",'0 - PUC'!$H$6,IF(ISERR(SEARCH("18.",D16)),'0 - PUC'!$H$5,'0 - PUC'!$H$6))-1) -> 0.24 | J16: 982.55 | K16: 8842.95 | M16: sinapi | N16: serviço | O16: 93207 | U16: =IF(M16<> "",IF(M16="SINAPI",IF(N16="INSUMO",VLOOKUP(O16,Sinapi_Insumos,4,0),IF(N16="SERVIÇO",VLOOKUP(O16,Sinapi_Compo,4,0),"ERRO")),IF(M16="Composição",ROUND(VLOOKUP(N16,Compo_Novas,11,0),2),ROUND(MEDIAN(T16,R16,P16,N16),2))),"") -> 792,38
A17: + | B17: 1.1.6 | C17: Refeitório módulo básico em chapa de madeira compensada 10 m² | D17: ### | E17: m² | F17: 10 | G17: =U17 -> 431,17 | H17: 4311.7 | I17: =IF(F17="","",IF(D17="***",'0 - PUC'!$H$6,IF(ISERR(SEARCH("18.",D17)),'0 - PUC'!$H$5,'0 - PUC'!$H$6))-1) -> 0.24 | J17: 534.65 | K17: 5346.5 | M17: sinapi | N17: serviço | O17: 93210 | U17: =IF(M17<> "",IF(M17="SINAPI",IF(N17="INSUMO",VLOOKUP(O17,Sinapi_Insumos,4,0),IF(N17="SERVIÇO",VLOOKUP(O17,Sinapi_Compo,4,0),"ERRO")),IF(M17="Composição",ROUND(VLOOKUP(N17,Compo_Novas,11,0),2),ROUND(MEDIAN(T17,R17,P17,N17),2))),"") -> 431,17
A18: =IF(OR(E18="",E18=0),"","+") -> + | B18: 1.1.7 | C18: Sanitário módulo 3 m² | D18: ### | E18: m² | F18: 3 | G18: 719,01 | H18: 2157.03 | I18: =IF(F18="","",IF(D18="***",'0 - PUC'!$H$6,IF(ISERR(SEARCH("18.",D18)),'0 - PUC'!$H$5,'0 - PUC'!$H$6))-1) -> 0.24 | J18: 891.57 | K18: 2674.71 | M18: sinapi | N18: serviço | O18: 93212 | U18: =IF(M18<> "",IF(M18="SINAPI",IF(N18="INSUMO",VLOOKUP(O18,Sinapi_Insumos,4,0),IF(N18="SERVIÇO",VLOOKUP(O18,Sinapi_Compo,4,0),"ERRO")),IF(M18="Composição",ROUND(VLOOKUP(N18,Compo_Novas,11,0),2),ROUND(MEDIAN(T18,R18,P18,N18),2))),"") -> 719,01
A19: + | B19: 1.1.8 | C19: Cerca padrão para canteiro de obra | D19: ### | E19: m | F19: 100 | G19: 30,48 | H19: 3048 | I19: =IF(F19="","",IF(D19="***",'0 - PUC'!$H$6,IF(ISERR(SEARCH("18.",D19)),'0 - PUC'!$H$5,'0 - PUC'!$H$6))-1) -> 0.24 | J19: 37.8 | K19: 3780 | M19: sinapi | N19: serviço | O19: 101202 | U19: =IF(M19<> "",IF(M19="SINAPI",IF(N19="INSUMO",VLOOKUP(O19,Sinapi_Insumos,4,0),IF(N19="SERVIÇO",VLOOKUP(O19,Sinapi_Compo,4,0),"ERRO")),IF(M19="Composição",ROUND(VLOOKUP(N19,Compo_Novas,11,0),2),ROUND(MEDIAN(R19,P19,N19,T19),2))),"") -> 30,48
A20: + | B20: 1.1.9 | C20: Placa do agente financiador - 3m² | D20: ### | E20: m² | F20: 1 | G20: 949.53 | H20: 949.53 | I20: =IF(F20="","",IF(D20="***",'0 - PUC'!$H$6,IF(ISERR(SEARCH("18.",D20)),'0 - PUC'!$H$5,'0 - PUC'!$H$6))-1) -> 0.24 | J20: 1177.42 | K20: 1177.42 | M20: composição | N20: comp 009 | U20: =IF(M20<> "",IF(M20="SINAPI",IF(N20="INSUMO",VLOOKUP(O20,Sinapi_Insumos,4,0),IF(N20="SERVIÇO",VLOOKUP(O20,Sinapi_Compo,4,0),"ERRO")),IF(M20="Composição",ROUND(VLOOKUP(N20,comp_Novas,11,0),2),ROUND(MEDIAN(R20,P20,N20,T20),2))),"") -> 949.53
A21: + | B21: 1.1.10 | C21: Portão | D21: ### | E21: un | F21: 1 | G21: 4435.67 | H21: 4435.67 | I21: =IF(F21="","",IF(D21="***",'0 - PUC'!$H$6,IF(ISERR(SEARCH("18.",D21)),'0 - PUC'!$H$5,'0 - PUC'!$H$6))-1) -> 0.24 | J21: 5500.23 | K21: 5500.23 | M21: composição | N21: comp 010 | U21: =IF(M21<> "",IF(M21="SINAPI",IF(N21="INSUMO",VLOOKUP(O21,Sinapi_Insumos,4,0),IF(N21="SERVIÇO",VLOOKUP(O21,Sinapi_Compo,4,0),"ERRO")),IF(M21="Composição",ROUND(VLOOKUP(N21,comp_Novas,11,0),2),ROUND(MEDIAN(R21,P21,N21,T21),2))),"") -> 4435.67
C22: =IF(D22="","",VLOOKUP(D22,ITENS,2,0)) ->  | E22: =IF(D22="","",VLOOKUP(D22,ITENS,3,0)) ->  | G22: =IF(D22="","",VLOOKUP(D22,ITENS,7,0)) ->  | I22: =IF(F22="","",IF(D22="***",'0 - PUC'!$H$6,IF(ISERR(SEARCH("18.",D22)),'0 - PUC'!$H$5,'0 - PUC'!$H$6))-1) ->  | U22: =IF(M22<> "",IF(M22="SINAPI",IF(N22="INSUMO",VLOOKUP(O22,Sinapi_Insumos,4,0),IF(N22="SERVIÇO",VLOOKUP(O22,Sinapi_Compo,4,0),"ERRO")),IF(M22="Composição",ROUND(VLOOKUP(N22,Compo_Novas,11,0),2),ROUND(MEDIAN(T22,R22,P22,N22),2))),"") -> 
B23: 1.2 | C23: Mobilização e Desmobilização | E23: =IF(D23="","",VLOOKUP(D23,ITENS,3,0)) ->  | G23: =IF(D23="","",VLOOKUP(D23,ITENS,7,0)) -> 
A24: + | B24: 1.2.1 | C24: Mobilização do canteiro | D24: ### | E24: un | F24: 1 | G24: =U24 -> 2778.2 | H24: 2778.2 | I24: 0.24 | J24: 3444.97 | K24: 3444.97 | M24: 11% do valor montagem | N24: =0.11*SUM(H12:H21) -> 2778.2007 | U24: 2778.2
A25: + | B25: 1.2.2 | C25: Desmobilização do canteiro | D25: ### | E25: un | F25: 1 | G25: =U25 -> 1767.95 | H25: 1767.95 | I25: 0.24 | J25: 2192.26 | K25: 2192.26 | M25: 7% valor montagem | N25: =0.07*SUM(H12:H21) -> 1767.9459 | U25: 1767.95
C26: =IF(D26="","",VLOOKUP(D26,ITENS,2,0)) ->  | E26: =IF(D26="","",VLOOKUP(D26,ITENS,3,0)) ->  | G26: =IF(D26="","",VLOOKUP(D26,ITENS,7,0)) ->  | I26: =IF(F26="","",IF(D26="***",'0 - PUC'!$H$6,IF(ISERR(SEARCH("18.",D26)),'0 - PUC'!$H$5,'0 - PUC'!$H$6))-1) -> 
G27: =IF(D27="","",VLOOKUP(D27,ITENS,7,0)) -> 
U28: =IF(M28<> "",IF(M28="SINAPI",IF(N28="INSUMO",VLOOKUP(O28,Sinapi_Insumos,4,0),IF(N28="SERVIÇO",VLOOKUP(O28,Sinapi_Compo,4,0),"ERRO")),IF(M28="Composição",ROUND(VLOOKUP(N28,Compo_Novas,11,0),2),ROUND(MEDIAN(R28,P28,N28,T28),2))),"") -> 
C29: =IF(D29="","",VLOOKUP(D29,ITENS,2,0)) ->  | G29: =IF(D29="","",VLOOKUP(D29,ITENS,7,0)) ->  | I29: =IF(F29="","",IF(D29="***",'0 - PUC'!$H$6,IF(ISERR(SEARCH("18.",D29)),'0 - PUC'!$H$5,'0 - PUC'!$H$6))-1) -> 
E30: =IF(D30="","",VLOOKUP(D30,ITENS,3,0)) ->  | I30: =IF(F30="","",IF(D30="***",'0 - PUC'!$H$6,IF(ISERR(SEARCH("18.",D30)),'0 - PUC'!$H$5,'0 - PUC'!$H$6))-1) -> 
I31: =IF(F31="","",IF(D31="***",'0 - PUC'!$H$6,IF(ISERR(SEARCH("18.",D31)),'0 - PUC'!$H$5,'0 - PUC'!$H$6))-1) -> 
I32: =IF(F32="","",IF(D32="***",'0 - PUC'!$H$6,IF(ISERR(SEARCH("18.",D32)),'0 - PUC'!$H$5,'0 - PUC'!$H$6))-1) ->  | U32: =IF(M32<> "",IF(M32="SINAPI",IF(N32="INSUMO",VLOOKUP(O32,Sinapi_Insumos,4,0),IF(N32="SERVIÇO",VLOOKUP(O32,Sinapi_Compo,4,0),"ERRO")),IF(M32="Composição",ROUND(VLOOKUP(N32,comp_Novas,11,0),2),ROUND(MEDIAN(R32,P32,N32,T32),2))),"") -> 
I33: =IF(F33="","",IF(D33="***",'0 - PUC'!$H$6,IF(ISERR(SEARCH("18.",D33)),'0 - PUC'!$H$5,'0 - PUC'!$H$6))-1) ->  | U33: =IF(M33<> "",IF(M33="SINAPI",IF(N33="INSUMO",VLOOKUP(O33,Sinapi_Insumos,4,0),IF(N33="SERVIÇO",VLOOKUP(O33,Sinapi_Compo,4,0),"ERRO")),IF(M33="Composição",ROUND(VLOOKUP(N33,Compo_Novas,11,0),2),ROUND(MEDIAN(R33,P33,N33,T33),2))),"") -> 
I34: =IF(F34="","",IF(D34="***",'0 - PUC'!$H$6,IF(ISERR(SEARCH("18.",D34)),'0 - PUC'!$H$5,'0 - PUC'!$H$6))-1) -> 
I35: =IF(F35="","",IF(D35="***",'0 - PUC'!$H$6,IF(ISERR(SEARCH("18.",D35)),'0 - PUC'!$H$5,'0 - PUC'!$H$6))-1) ->  | U35: =IF(M35<> "",IF(M35="SINAPI",IF(N35="INSUMO",VLOOKUP(O35,Sinapi_Insumos,4,0),IF(N35="SERVIÇO",VLOOKUP(O35,Sinapi_Compo,4,0),"ERRO")),IF(M35="Composição",ROUND(VLOOKUP(N35,comp_Novas,11,0),2),ROUND(MEDIAN(R35,P35,N35,T35),2))),"") -> 
I36: =IF(F36="","",IF(D36="***",'0 - PUC'!$H$6,IF(ISERR(SEARCH("18.",D36)),'0 - PUC'!$H$5,'0 - PUC'!$H$6))-1) ->  | U36: =IF(M36<> "",IF(M36="SINAPI",IF(N36="INSUMO",VLOOKUP(O36,Sinapi_Insumos,4,0),IF(N36="SERVIÇO",VLOOKUP(O36,Sinapi_Compo,4,0),"ERRO")),IF(M36="Composição",ROUND(VLOOKUP(N36,comp_Novas,11,0),2),ROUND(MEDIAN(R36,P36,N36,T36),2))),"") -> 
I37: =IF(F37="","",IF(D37="***",'0 - PUC'!$H$6,IF(ISERR(SEARCH("18.",D37)),'0 - PUC'!$H$5,'0 - PUC'!$H$6))-1) ->  | U37: =IF(M37<> "",IF(M37="SINAPI",IF(N37="INSUMO",VLOOKUP(O37,Sinapi_Insumos,4,0),IF(N37="SERVIÇO",VLOOKUP(O37,Sinapi_Compo,4,0),"ERRO")),IF(M37="Composição",ROUND(VLOOKUP(N37,Compo_Novas,11,0),2),ROUND(MEDIAN(R37,P37,N37,T37),2))),"") -> 
A38: =IF(E38="","","+") -> 
A39: =IF(E39="","","+") ->  | B39: =F4 -> I - SERVIÇOS PRELIMINARES | F39: TOTAL SEM B.D.I. | H39: =SUM(H10:H37) -> 29802.52 | I39: TOTAL COM B.D.I. | K39: =SUM(K10:K37) -> 36955.58
A40: =IF(E40="","","+") -> 
B41: =$B$4 -> MUNICÍPIO: NOVO HAMBURGO | F41: II - ADMINISTRAÇÃO LOCAL | M41: MEMÓRIA DOS PREÇOS UNITÁRIOS
B42: =$B$5 -> OBRA: TERRAPLENAGEM ETE LUIZ RAU
B43: ITEM | C43: DISCRIMINAÇÃO | D43: CÓDIGO | E43: UN | F43: QTDE | G43: CUSTO | I43: B.D.I. APLICADO | J43: PREÇO MÁXIMO ADMISSÍVEL
G44: (SEM B.D.I.) | J44: (COM B.D.I.) | M44: FORNECEDOR 1 | N44: CUSTO (SEM B.D.I.) | O44: FORNECEDOR 2 | P44: CUSTO (SEM B.D.I.) | Q44: FORNECEDOR 3 | R44: CUSTO (SEM B.D.I.) | S44: FORNECEDOR 4 | T44: CUSTO (SEM B.D.I.) | U44: CUSTO FINAL (SEM B.D.I.)
G45: UNITÁRIO | H45: TOTAL | J45: UNITÁRIO | K45: TOTAL
A47: =IF(OR(E47="",E47=0),"","+") ->  | B47: 1 | C47: CANTEIRO DE OBRAS | E47: =IF(D47="","",VLOOKUP(D47,ITENS,3,0)) ->  | G47: =IF(D47="","",VLOOKUP(D47,ITENS,7,0)) ->  | H47: =IF(OR(E47="",F47=""),"",ROUND(G47*F47,2)) ->  | J47: =IF(OR(E47="",F47=""),"",ROUND(G47*(1+I47),2)) ->  | K47: =IF(OR(E47="",F47=""),"",ROUND(J47*F47,2)) ->  | U47: =IF(M47<> "",IF(M47="SINAPI",IF(N47="INSUMO",VLOOKUP(O47,Sinapi_Insumos,4,0),IF(N47="SERVIÇO",VLOOKUP(O47,Sinapi_Compo,4,0),"ERRO")),IF(M47="Composição",ROUND(VLOOKUP(N47,Compo_Novas,11,0),2),ROUND(MEDIAN(R47,P47,N47,T47),2))),"") ->  | V47: =IF(U47="ERRO","Complete a coluna 'M' com 'SINAPI', e a coluna 'N' com 'Insumo' ou 'Serviço'", "") -> 
A48: =IF(OR(E48="",E48=0),"","+") ->  | B48: 1.1 | C48: Operação e Supervisão do Canteiro | E48: =IF(D48="","",VLOOKUP(D48,ITENS,3,0)) -> 
A49: + | B49: 1.1.1 | C49: Administração local | D49: ### | E49: un | F49: 1 | G49: =N49 -> 132136.6 | H49: 132136.6 | I49: 0.24 | J49: 163849.38 | K49: 163849.38 | M49: adm local | N49: 132136.6 | U49: =IF(M49<> "",IF(M49="SINAPI",IF(N49="INSUMO",VLOOKUP(O49+0,Sinapi_Insumos,4,0),IF(N49="SERVIÇO",VLOOKUP(O49+0,Sinapi_Compo,4,0),"ERRO")),IF(M49="Composição",ROUND(VLOOKUP(N49,Compo_Novas,11,0),2),ROUND(MEDIAN(R49,P49,N49,T49),2))),"") -> 132136.6
U50: =IF(M50<> "",IF(M50="SINAPI",IF(N50="INSUMO",VLOOKUP(O50,Sinapi_Insumos,4,0),IF(N50="SERVIÇO",VLOOKUP(O50,Sinapi_Compo,4,0),"ERRO")),IF(M50="Composição",ROUND(VLOOKUP(N50,comp_Novas,11,0),2),ROUND(MEDIAN(R50,P50,N50,T50),2))),"") -> 
C51: =IF(D51="","",VLOOKUP(D51,ITENS,2,0)) ->  | E51: =IF(D51="","",VLOOKUP(D51,ITENS,3,0)) ->  | G51: =IF(D51="","",VLOOKUP(D51,ITENS,7,0)) ->  | H51: =IF(OR(E51="",F51=""),"",ROUND(G51*F51,2)) ->  | I51: =IF(F51="","",IF(D51="***",'0 - PUC'!$H$6,IF(ISERR(SEARCH("18.",D51)),'0 - PUC'!$H$5,'0 - PUC'!$H$6))-1) ->  | J51: =IF(OR(E51="",F51=""),"",ROUND(G51*(1+I51),2)) ->  | K51: =IF(OR(E51="",F51=""),"",ROUND(J51*F51,2)) ->  | U51: =IF(M51<> "",IF(M51="SINAPI",IF(N51="INSUMO",VLOOKUP(O51,Sinapi_Insumos,4,0),IF(N51="SERVIÇO",VLOOKUP(O51,Sinapi_Compo,4,0),"ERRO")),IF(M51="Composição",ROUND(VLOOKUP(N51,Compo_Novas,11,0),2),ROUND(MEDIAN(R51,P51,N51,T51),2))),"") -> 
U54: =IF(M54<> "",IF(M54="SINAPI",IF(N54="INSUMO",VLOOKUP(O54+0,Sinapi_Insumos,4,0),IF(N54="SERVIÇO",VLOOKUP(O54+0,Sinapi_Compo,4,0),"ERRO")),IF(M54="Composição",ROUND(VLOOKUP(N54,Compo_Novas,11,0),2),ROUND(MEDIAN(R54,P54,N54,T54),2))),"") -> 
U59: =IF(M59<> "",IF(M59="SINAPI",IF(N59="INSUMO",VLOOKUP(O59,Sinapi_Insumos,4,0),IF(N59="SERVIÇO",VLOOKUP(O59,Sinapi_Compo,4,0),"ERRO")),IF(M59="Composição",ROUND(VLOOKUP(N59,comp_Novas,11,0),2),ROUND(MEDIAN(R59,P59,N59,T59),2))),"") -> 
U60: =IF(M60<> "",IF(M60="SINAPI",IF(N60="INSUMO",VLOOKUP(O60+0,Sinapi_Insumos,4,0),IF(N60="SERVIÇO",VLOOKUP(O60+0,Sinapi_Compo,4,0),"ERRO")),IF(M60="Composição",ROUND(VLOOKUP(N60,Compo_Novas,11,0),2),ROUND(MEDIAN(R60,P60,N60,T60),2))),"") ->  | V60: =IF(U60="ERRO","Complete a coluna 'M' com 'SINAPI', e a coluna 'N' com 'Insumo' ou 'Serviço'", "") -> 
U67: =IF(M67<> "",IF(M67="SINAPI",IF(N67="INSUMO",VLOOKUP(O67,Sinapi_Insumos,4,0),IF(N67="SERVIÇO",VLOOKUP(O67,Sinapi_Compo,4,0),"ERRO")),IF(M67="Composição",ROUND(VLOOKUP(N67,Compo_Novas,11,0),2),ROUND(MEDIAN(R67,P67,N67,T67),2))),"") -> 
U69: =IF(M69<> "",IF(M69="SINAPI",IF(N69="INSUMO",VLOOKUP(O69,Sinapi_Insumos,4,0),IF(N69="SERVIÇO",VLOOKUP(O69,Sinapi_Compo,4,0),"ERRO")),IF(M69="Composição",ROUND(VLOOKUP(N69,comp_Novas,11,0),2),ROUND(MEDIAN(R69,P69,N69,T69),2))),"") -> 
U70: =IF(M70<> "",IF(M70="SINAPI",IF(N70="INSUMO",VLOOKUP(O70,Sinapi_Insumos,4,0),IF(N70="SERVIÇO",VLOOKUP(O70,Sinapi_Compo,4,0),"ERRO")),IF(M70="Composição",ROUND(VLOOKUP(N70,Compo_Novas,11,0),2),ROUND(MEDIAN(R70,P70,N70,T70),2))),"") -> 
U72: =IF(M72<> "",IF(M72="SINAPI",IF(N72="INSUMO",VLOOKUP(O72,Sinapi_Insumos,4,0),IF(N72="SERVIÇO",VLOOKUP(O72,Sinapi_Compo,4,0),"ERRO")),IF(M72="Composição",ROUND(VLOOKUP(N72,comp_Novas,11,0),2),ROUND(MEDIAN(R72,P72,N72,T72),2))),"") ->  | V72: =IF(U72="ERRO","Complete a coluna 'M' com 'SINAPI', e a coluna 'N' com 'Insumo' ou 'Serviço'", "") -> 
U73: =IF(M73<> "",IF(M73="SINAPI",IF(N73="INSUMO",VLOOKUP(O73,Sinapi_Insumos,4,0),IF(N73="SERVIÇO",VLOOKUP(O73,Sinapi_Compo,4,0),"ERRO")),IF(M73="Composição",ROUND(VLOOKUP(N73,comp_Novas,11,0),2),ROUND(MEDIAN(R73,P73,N73,T73),2))),"") -> 
U74: =IF(M74<> "",IF(M74="SINAPI",IF(N74="INSUMO",VLOOKUP(O74,Sinapi_Insumos,4,0),IF(N74="SERVIÇO",VLOOKUP(O74,Sinapi_Compo,4,0),"ERRO")),IF(M74="Composição",ROUND(VLOOKUP(N74,Compo_Novas,11,0),2),ROUND(MEDIAN(R74,P74,N74,T74),2))),"") -> 
B76: =F41 -> II - ADMINISTRAÇÃO LOCAL | F76: TOTAL SEM B.D.I. | H76: =SUM(H47:H74) -> 132136.6 | I76: TOTAL COM B.D.I. | K76: =SUM(K47:K74) -> 163849.38
B78: =$B$4 -> MUNICÍPIO: NOVO HAMBURGO | F78: III - TERRAPLENAGEM | M78: MEMÓRIA DOS PREÇOS UNITÁRIOS
B79: =$B$5 -> OBRA: TERRAPLENAGEM ETE LUIZ RAU
B80: ITEM | C80: DISCRIMINAÇÃO | D80: CÓDIGO | E80: UN | F80: QTDE | G80: CUSTO | I80: B.D.I. APLICADO | J80: PREÇO MÁXIMO ADMISSÍVEL
G81: (SEM B.D.I.) | J81: (COM B.D.I.) | M81: FORNECEDOR 1 | N81: CUSTO (SEM B.D.I.) | O81: FORNECEDOR 2 | P81: CUSTO (SEM B.D.I.) | Q81: FORNECEDOR 3 | R81: CUSTO (SEM B.D.I.) | S81: FORNECEDOR 4 | T81: CUSTO (SEM B.D.I.) | U81: CUSTO FINAL (SEM B.D.I.)
G82: UNITÁRIO | H82: TOTAL | J82: UNITÁRIO | K82: TOTAL
A84: =IF(OR(E84="",E84=0),"","+") ->  | B84: 1 | C84: SERVIÇOS PRELIMINARES | E84: =IF(D84="","",VLOOKUP(D84,ITENS,3,0)) ->  | G84: =IF(D84="","",VLOOKUP(D84,ITENS,7,0)) ->  | H84: =IF(OR(E84="",F84=""),"",ROUND(G84*F84,2)) ->  | I84: =IF(F84="","",IF(D84="***",'0 - PUC'!$H$6,IF(ISERR(SEARCH("18.",D84)),'0 - PUC'!$H$5,'0 - PUC'!$H$6))-1) ->  | J84: =IF(OR(E84="",F84=""),"",ROUND(G84*(1+I84),2)) ->  | K84: =IF(OR(E84="",F84=""),"",ROUND(J84*F84,2)) ->  | U84: =IF(M84<> "",IF(M84="SINAPI",IF(N84="INSUMO",VLOOKUP(O84,Sinapi_Insumos,4,0),IF(N84="SERVIÇO",VLOOKUP(O84,Sinapi_Compo,4,0),"ERRO")),IF(M84="Composição",ROUND(VLOOKUP(N84,Compo_Novas,11,0),2),ROUND(MEDIAN(R84,P84,N84,T84),2))),"") ->  | V84: =IF(U84="ERRO","Complete a coluna 'M' com 'SINAPI', e a coluna 'N' com 'Insumo' ou 'Serviço'", "") -> 
A85: =IF(OR(E85="",E85=0),"","+") ->  | B85: 1.1 | C85: Desmatamento ou Supressão Vegetal | E85: =IF(D85="","",VLOOKUP(D85,ITENS,3,0)) ->  | G85: =IF(D85="","",VLOOKUP(D85,ITENS,7,0)) ->  | H85: =IF(OR(E85="",F85=""),"",ROUND(G85*F85,2)) ->  | I85: =IF(F85="","",IF(D85="***",'0 - PUC'!$H$6,IF(ISERR(SEARCH("18.",D85)),'0 - PUC'!$H$5,'0 - PUC'!$H$6))-1) ->  | J85: =IF(OR(E85="",F85=""),"",ROUND(G85*(1+I85),2)) ->  | K85: =IF(OR(E85="",F85=""),"",ROUND(J85*F85,2)) -> 
A86: + | B86: 1.1.1 | C86: Limpeza mecanizada de camada vegetal e pequenas árvores (diâmetro de tronco < 0,20 m) | D86: ### | E86: m² | F86: 42921 | G86: =U86 -> 0,26 | H86: 11159.46 | I86: =IF(F86="","",IF(D86="***",'0 - PUC'!$H$6,IF(ISERR(SEARCH("18.",D86)),'0 - PUC'!$H$5,'0 - PUC'!$H$6))-1) -> 0.24 | J86: 0.32 | K86: 13734.72 | M86: sinapi | N86: serviço | O86: 98525 | U86: =IF(M86<> "",IF(M86="SINAPI",IF(N86="INSUMO",VLOOKUP(O86+0,Sinapi_Insumos,4,0),IF(N86="SERVIÇO",VLOOKUP(O86+0,Sinapi_Compo,4,0),"ERRO")),IF(M86="Composição",ROUND(VLOOKUP(N86,Compo_Novas,11,0),2),ROUND(MEDIAN(R86,P86,N86,T86),2))),"") -> 0,26
A87: + | B87: 1.1.2 | C87: Recorte de Árvores 5 cm < DAP < 15 cm | D87: ### | E87: un | F87: 4585 | G87: =U87 -> 11.85 | H87: 54332.25 | I87: =IF(F87="","",IF(D87="***",'0 - PUC'!$H$6,IF(ISERR(SEARCH("18.",D87)),'0 - PUC'!$H$5,'0 - PUC'!$H$6))-1) -> 0.24 | J87: 14.69 | K87: 67353.65 | M87: composição | N87: comp 001 | U87: =IF(M87<> "",IF(M87="SINAPI",IF(N87="INSUMO",VLOOKUP(O87,Sinapi_Insumos,4,0),IF(N87="SERVIÇO",VLOOKUP(O87,Sinapi_Compo,4,0),"ERRO")),IF(M87="Composição",ROUND(VLOOKUP(N87,comp_Novas,11,0),2),ROUND(MEDIAN(R87,P87,N87,T87),2))),"") -> 11.85
C88: =IF(D88="","",VLOOKUP(D88,ITENS,2,0)) ->  | E88: =IF(D88="","",VLOOKUP(D88,ITENS,3,0)) ->  | G88: =IF(D88="","",VLOOKUP(D88,ITENS,7,0)) ->  | I88: =IF(F88="","",IF(D88="***",'0 - PUC'!$H$6,IF(ISERR(SEARCH("18.",D88)),'0 - PUC'!$H$5,'0 - PUC'!$H$6))-1) ->  | U88: =IF(M88<> "",IF(M88="SINAPI",IF(N88="INSUMO",VLOOKUP(O88,Sinapi_Insumos,4,0),IF(N88="SERVIÇO",VLOOKUP(O88,Sinapi_Compo,4,0),"ERRO")),IF(M88="Composição",ROUND(VLOOKUP(N88,Compo_Novas,11,0),2),ROUND(MEDIAN(R88,P88,N88,T88),2))),"") -> 
B89: 2 | C89: MOVIMENTO DE SOLO | I89: =IF(F89="","",IF(D89="***",'0 - PUC'!$H$6,IF(ISERR(SEARCH("18.",D89)),'0 - PUC'!$H$5,'0 - PUC'!$H$6))-1) -> 
B90: 2.1 | C90: Escavação de Solo Localizada | I90: =IF(F90="","",IF(D90="***",'0 - PUC'!$H$6,IF(ISERR(SEARCH("18.",D90)),'0 - PUC'!$H$5,'0 - PUC'!$H$6))-1) -> 
A91: + | B91: 2.2.1 | C91: Escavação em solo de 1ª categoria | D91: ### | E91: m3 | F91: 1842 | G91: =U91 -> 2,78 | H91: 5120.76 | I91: =IF(F91="","",IF(D91="***",'0 - PUC'!$H$6,IF(ISERR(SEARCH("18.",D91)),'0 - PUC'!$H$5,'0 - PUC'!$H$6))-1) -> 0.24 | J91: 3.45 | K91: 6354.9 | M91: sinapi | N91: serviço | O91: 101114 | U91: =IF(M91<> "",IF(M91="SINAPI",IF(N91="INSUMO",VLOOKUP(O91+0,Sinapi_Insumos,4,0),IF(N91="SERVIÇO",VLOOKUP(O91+0,Sinapi_Compo,4,0),"ERRO")),IF(M91="Composição",ROUND(VLOOKUP(N91,Compo_Novas,11,0),2),ROUND(MEDIAN(R91,P91,N91,T91),2))),"") -> 2,78
C92: =IF(D92="","",VLOOKUP(D92,ITENS,2,0)) ->  | E92: =IF(D92="","",VLOOKUP(D92,ITENS,3,0)) ->  | G92: =IF(D92="","",VLOOKUP(D92,ITENS,7,0)) ->  | I92: =IF(F92="","",IF(D92="***",'0 - PUC'!$H$6,IF(ISERR(SEARCH("18.",D92)),'0 - PUC'!$H$5,'0 - PUC'!$H$6))-1) ->  | U92: =IF(M92<> "",IF(M92="SINAPI",IF(N92="INSUMO",VLOOKUP(O92,Sinapi_Insumos,4,0),IF(N92="SERVIÇO",VLOOKUP(O92,Sinapi_Compo,4,0),"ERRO")),IF(M92="Composição",ROUND(VLOOKUP(N92,Compo_Novas,11,0),2),ROUND(MEDIAN(R92,P92,N92,T92),2))),"") -> 
B93: 2.2 | C93: Aterro, Reaterro, Lastro, Espalhamento e Nivelamento | I93: =IF(F93="","",IF(D93="***",'0 - PUC'!$H$6,IF(ISERR(SEARCH("18.",D93)),'0 - PUC'!$H$5,'0 - PUC'!$H$6))-1) -> 
A94: + | B94: 2.1.1 | C94: Argila | D94: *** | E94: m³ | F94: 105580 | G94: =U94 -> 16,50 | H94: 1742070 | I94: =IF(F94="","",IF(D94="***",'0 - PUC'!$H$6,IF(ISERR(SEARCH("18.",D94)),'0 - PUC'!$H$5,'0 - PUC'!$H$6))-1) -> 0.165 | J94: 19.22 | K94: 2029247.6 | M94: sinapi | N94: insumo | O94: 6077 | U94: 16,50
A95: + | B95: 2.1.2 | C95: Areia | D95: *** | E95: m³ | F95: 2902 | G95: 60,00 | H95: 174120 | I95: =IF(F95="","",IF(D95="***",'0 - PUC'!$H$6,IF(ISERR(SEARCH("18.",D95)),'0 - PUC'!$H$5,'0 - PUC'!$H$6))-1) -> 0.165 | J95: 69.9 | K95: 202849.8 | M95: sinapi | N95: insumo | O95: 370 | U95: 60,00
A96: + | B96: 2.1.3 | C96: Execução de enrocamento - inclui material e transporte | D96: ### | E96: m³ | F96: 1602 | G96: 73.9 | H96: 118387.8 | I96: =IF(F96="","",IF(D96="***",'0 - PUC'!$H$6,IF(ISERR(SEARCH("18.",D96)),'0 - PUC'!$H$5,'0 - PUC'!$H$6))-1) -> 0.24 | J96: 91.64 | K96: 146807.28 | M96: composição | N96: comp 002 | U96: =IF(M96<> "",IF(M96="SINAPI",IF(N96="INSUMO",VLOOKUP(O96,Sinapi_Insumos,4,0),IF(N96="SERVIÇO",VLOOKUP(O96,Sinapi_Compo,4,0),"ERRO")),IF(M96="Composição",ROUND(VLOOKUP(N96,comp_Novas,11,0),2),ROUND(MEDIAN(R96,P96,N96,T96),2))),"") -> 73.9
A97: + | B97: 2.1.4 | C97: Execução e compactação de aterro argiloso | D97: ### | E97: m³ | F97: 105580 | G97: 6,78 | H97: 715832.4 | I97: =IF(F97="","",IF(D97="***",'0 - PUC'!$H$6,IF(ISERR(SEARCH("18.",D97)),'0 - PUC'!$H$5,'0 - PUC'!$H$6))-1) -> 0.24 | J97: 8.41 | K97: 887927.8 | M97: sinapi | N97: serviço | O97: 96385 | U97: =IF(M97<> "",IF(M97="SINAPI",IF(N97="INSUMO",VLOOKUP(O97+0,Sinapi_Insumos,4,0),IF(N97="SERVIÇO",VLOOKUP(O97+0,Sinapi_Compo,4,0),"ERRO")),IF(M97="Composição",ROUND(VLOOKUP(N97,Compo_Novas,11,0),2),ROUND(MEDIAN(R97,P97,N97,T97),2))),"") -> 6,78 | V97: =IF(U97="ERRO","Complete a coluna 'M' com 'SINAPI', e a coluna 'N' com 'Insumo' ou 'Serviço'", "") -> 
A98: + | B98: 2.1.5 | C98: Execução de espalhamento de areia | D98: ### | E98: m³ | F98: 2902 | G98: 0,91 | H98: 2640.82 | I98: =IF(F98="","",IF(D98="***",'0 - PUC'!$H$6,IF(ISERR(SEARCH("18.",D98)),'0 - PUC'!$H$5,'0 - PUC'!$H$6))-1) -> 0.24 | J98: 1.13 | K98: 3279.26 | M98: sinapi | N98: serviço | O98: 100574 | U98: 0,91
I99: =IF(F99="","",IF(D99="***",'0 - PUC'!$H$6,IF(ISERR(SEARCH("18.",D99)),'0 - PUC'!$H$5,'0 - PUC'!$H$6))-1) -> 
B100: 2.3 | C100: Carga, Transporte, Descarga | E100: =IF(D100="","",VLOOKUP(D100,ITENS,3,0)) ->  | G100: =IF(D100="","",VLOOKUP(D100,ITENS,7,0)) ->  | I100: =IF(F100="","",IF(D100="***",'0 - PUC'!$H$6,IF(ISERR(SEARCH("18.",D100)),'0 - PUC'!$H$5,'0 - PUC'!$H$6))-1) -> 
A101: + | B101: 2.3.1 | C101: Transporte de argila para empréstimo até 30km | D101: ### | E101: m3xkm | F101: 1152934 | G101: =U101 -> 1,31 | H101: 1510343.54 | I101: =IF(F101="","",IF(D101="***",'0 - PUC'!$H$6,IF(ISERR(SEARCH("18.",D101)),'0 - PUC'!$H$5,'0 - PUC'!$H$6))-1) -> 0.24 | J101: 1.62 | K101: 1867753.08 | M101: sinapi | N101: serviço | O101: 95875 | U101: 1,31
A102: + | B102: 2.3.2 | C102: Transporte de areia para empréstimo até 30km | D102: ### | E102: m3xkm | F102: 24337 | G102: =U102 -> 1,31 | H102: 31881.47 | I102: =IF(F102="","",IF(D102="***",'0 - PUC'!$H$6,IF(ISERR(SEARCH("18.",D102)),'0 - PUC'!$H$5,'0 - PUC'!$H$6))-1) -> 0.24 | J102: 1.62 | K102: 39425.94 | M102: sinapi | N102: serviço | O102: 95875 | U102: 1,31
A103: + | B103: 2.3.3 | C103: Transporte de solos para bota-fora até 30km | D103: ### | E103: m3xkm | F103: 51660 | G103: =U103 -> 1,31 | H103: 67674.6 | I103: =IF(F103="","",IF(D103="***",'0 - PUC'!$H$6,IF(ISERR(SEARCH("18.",D103)),'0 - PUC'!$H$5,'0 - PUC'!$H$6))-1) -> 0.24 | J103: 1.62 | K103: 83689.2 | M103: sinapi | N103: serviço | O103: 95875 | U103: 1,31
C104: =IF(D104="","",VLOOKUP(D104,ITENS,2,0)) ->  | E104: =IF(D104="","",VLOOKUP(D104,ITENS,3,0)) ->  | G104: =IF(D104="","",VLOOKUP(D104,ITENS,7,0)) ->  | I104: =IF(F104="","",IF(D104="***",'0 - PUC'!$H$6,IF(ISERR(SEARCH("18.",D104)),'0 - PUC'!$H$5,'0 - PUC'!$H$6))-1) ->  | U104: =IF(M104<> "",IF(M104="SINAPI",IF(N104="INSUMO",VLOOKUP(O104,Sinapi_Insumos,4,0),IF(N104="SERVIÇO",VLOOKUP(O104,Sinapi_Compo,4,0),"ERRO")),IF(M104="Composição",ROUND(VLOOKUP(N104,Compo_Novas,11,0),2),ROUND(MEDIAN(R104,P104,N104,T104),2))),"") -> 
B105: 3 | C105: LAGOA DE AMORTECIMENTO | I105: =IF(F105="","",IF(D105="***",'0 - PUC'!$H$6,IF(ISERR(SEARCH("18.",D105)),'0 - PUC'!$H$5,'0 - PUC'!$H$6))-1) -> 
A106: + | B106: 3.1 | C106: Execução proteção mecânica em concreto simples | D106: ### | E106: m³ | F106: 271 | G106: =U106 -> 476.26 | H106: 129066.46 | I106: =IF(F106="","",IF(D106="***",'0 - PUC'!$H$6,IF(ISERR(SEARCH("18.",D106)),'0 - PUC'!$H$5,'0 - PUC'!$H$6))-1) -> 0.24 | J106: 590.56 | K106: 160041.76 | M106: composição | N106: comp 004 | U106: =IF(M106<> "",IF(M106="SINAPI",IF(N106="INSUMO",VLOOKUP(O106,Sinapi_Insumos,4,0),IF(N106="SERVIÇO",VLOOKUP(O106,Sinapi_Compo,4,0),"ERRO")),IF(M106="Composição",ROUND(VLOOKUP(N106,comp_Novas,11,0),2),ROUND(MEDIAN(R106,P106,N106,T106),2))),"") -> 476.26
A107: + | B107: 3.2 | C107: Bombeamento de concreto | D107: *** | E107: m³ | F107: 271 | G107: =U107 -> 30,47 | H107: 8257.37 | I107: =IF(F107="","",IF(D107="***",'0 - PUC'!$H$6,IF(ISERR(SEARCH("18.",D107)),'0 - PUC'!$H$5,'0 - PUC'!$H$6))-1) -> 0.165 | J107: 35.5 | K107: 9620.5 | M107: sinapi | N107: insumo | O107: 25950 | U107: =IF(M107<> "",IF(M107="SINAPI",IF(N107="INSUMO",VLOOKUP(O107,Sinapi_Insumos,4,0),IF(N107="SERVIÇO",VLOOKUP(O107,Sinapi_Compo,4,0),"ERRO")),IF(M107="Composição",ROUND(VLOOKUP(N107,Compo_Novas,11,0),2),ROUND(MEDIAN(R107,P107,N107,T107),2))),"") -> 30,47
A108: + | B108: 3.3 | C108: Manta termoplastica, pead, geomembrana lisa, e = 1,00 mm | D108: *** | E108: m² | F108: 4296 | G108: 18,18 | H108: 78101.28 | I108: =IF(F108="","",IF(D108="***",'0 - PUC'!$H$6,IF(ISERR(SEARCH("18.",D108)),'0 - PUC'!$H$5,'0 - PUC'!$H$6))-1) -> 0.165 | J108: 21.18 | K108: 90989.28 | M108: sinapi | N108: insumo | O108: 25863 | U108: 18,18
A109: + | B109: 3.4 | C109: Execução de solda em manta PEAD | D109: ### | E109: m² | F109: 4296 | G109: 3 | H109: 12888 | I109: =IF(F109="","",IF(D109="***",'0 - PUC'!$H$6,IF(ISERR(SEARCH("18.",D109)),'0 - PUC'!$H$5,'0 - PUC'!$H$6))-1) -> 0.24 | J109: 3.72 | K109: 15981.12 | M109: Wallau | N109: 3 | U109: =IF(M109<> "",IF(M109="SINAPI",IF(N109="INSUMO",VLOOKUP(O109,Sinapi_Insumos,4,0),IF(N109="SERVIÇO",VLOOKUP(O109,Sinapi_Compo,4,0),"ERRO")),IF(M109="Composição",ROUND(VLOOKUP(N109,comp_Novas,11,0),2),ROUND(MEDIAN(R109,P109,N109,T109),2))),"") -> 3 | V109: =IF(U109="ERRO","Complete a coluna 'M' com 'SINAPI', e a coluna 'N' com 'Insumo' ou 'Serviço'", "") -> 
A110: + | B110: 3.5 | C110: Execução de drenos em tubos drenantes, DN100mm envolto em geotêxtil | D110: ### | E110: m | F110: 100 | G110: 22.99 | H110: 2299 | I110: =IF(F110="","",IF(D110="***",'0 - PUC'!$H$6,IF(ISERR(SEARCH("18.",D110)),'0 - PUC'!$H$5,'0 - PUC'!$H$6))-1) -> 0.24 | J110: 28.51 | K110: 2851 | M110: composição | N110: comp 003 | U110: =IF(M110<> "",IF(M110="SINAPI",IF(N110="INSUMO",VLOOKUP(O110,Sinapi_Insumos,4,0),IF(N110="SERVIÇO",VLOOKUP(O110,Sinapi_Compo,4,0),"ERRO")),IF(M110="Composição",ROUND(VLOOKUP(N110,comp_Novas,11,0),2),ROUND(MEDIAN(R110,P110,N110,T110),2))),"") -> 22.99
A111: + | B111: 3.6 | C111: Execucao de dreno com manta geotextil 400 g/m2 | D111: ### | E111: m² | F111: 3101 | G111: 10,84 | H111: 33614.84 | I111: =IF(F111="","",IF(D111="***",'0 - PUC'!$H$6,IF(ISERR(SEARCH("18.",D111)),'0 - PUC'!$H$5,'0 - PUC'!$H$6))-1) -> 0.24 | J111: 13.44 | K111: 41677.44 | M111: sinapi | N111: serviço | O111: 73881/3 | U111: =IF(M111<> "",IF(M111="SINAPI",IF(N111="INSUMO",VLOOKUP(O111,Sinapi_Insumos,4,0),IF(N111="SERVIÇO",VLOOKUP(O111,Sinapi_Compo,4,0),"ERRO")),IF(M111="Composição",ROUND(VLOOKUP(N111,Compo_Novas,11,0),2),ROUND(MEDIAN(R111,P111,N111,T111),2))),"") -> 10,84
B113: =F78 -> III - TERRAPLENAGEM | F113: TOTAL SEM B.D.I. | H113: =SUM(H84:H111) -> 4697790.05 | I113: TOTAL COM B.D.I. | K113: =SUM(K84:K111) -> 5669584.33

Sheet 2 - CONFERÊNCIA
B1: SERVIÇOS DE ÁGUA E ESGOTO DE NOVO HAMBURGO
B2: VERIFICAÇÃO DE PREÇOS
B3: ITEM | C3: DISCRIMINAÇÃO | D3: CÓDIGO | E3: UN | F3: QTDE | G3: CUSTO | I3: B.D.I. APLICADO | J3: PREÇO MÁXIMO ADMISSÍVEL | M3: LINHA ONDE O ITEM SE ENCONTRA
F4: QUANT | G4: (SEM B.D.I.) | J4: (COM B.D.I.)
G5: UNITÁRIO | H5: TOTAL | J5: UNITÁRIO | K5: TOTAL
B8: Não há nenhum Item que apresente preço unitário igual a 'zero'.
B12: Não há nenhum Item idêntido que apresente preço unitário diferente entre si.
B16: Não há nenhum Item que apresente incoerência no BDI.
B20: Não há nenhum Item que apresente quantidade com decimal.
B24: Não há nenhum Item que apresente preço unitário com três casas decimais.
B28: Não há nenhum Item do orçamento que não esteja preenchido corretamente .
B32: Segue abaixo, em ordem alfabética, uma lista com todos os itens integrantes do orçamento, verifique se não há nenhum item com nome levemente diferente.
B34: 1.1.1 | C34: Administração local | D34: ### | E34: un | F34: 1 | G34: 132136.6 | H34: 132136.6 | I34: 0.24 | J34: 163849.38 | K34: 163849.38 | M34: 49
B35: 2.1.2 | C35: Areia | D35: *** | E35: m³ | F35: 2902 | G35: 60,00 | H35: 174120 | I35: 0.165 | J35: 69.9 | K35: 202849.8 | M35: 95
B36: 2.1.1 | C36: Argila | D36: *** | E36: m³ | F36: 105580 | G36: 16,50 | H36: 1742070 | I36: 0.165 | J36: 19.22 | K36: 2029247.6 | M36: 94
B37: 3.2 | C37: Bombeamento de concreto | D37: *** | E37: m³ | F37: 271 | G37: 30,47 | H37: 8257.37 | I37: 0.165 | J37: 35.5 | K37: 9620.5 | M37: 107
B38: 1.1.8 | C38: Cerca padrão para canteiro de obra | D38: ### | E38: m | F38: 100 | G38: 30,48 | H38: 3048 | I38: 0.24 | J38: 37.8 | K38: 3780 | M38: 19
B39: 1.2.2 | C39: Desmobilização do canteiro | D39: ### | E39: un | F39: 1 | G39: 1767.95 | H39: 1767.95 | I39: 0.24 | J39: 2192.26 | K39: 2192.26 | M39: 25
B40: 2.2.1 | C40: Escavação em solo de 1ª categoria | D40: ### | E40: m3 | F40: 1842 | G40: 2,78 | H40: 5120.76 | I40: 0.24 | J40: 3.45 | K40: 6354.9 | M40: 91
B41: 1.1.5 | C41: Escritório módulo básico em chapa de madeira compensada | D41: ### | E41: m² | F41: 9 | G41: 792,38 | H41: 7131.42 | I41: 0.24 | J41: 982.55 | K41: 8842.95 | M41: 16
B42: 3.6 | C42: Execucao de dreno com manta geotextil 400 g/m2 | D42: ### | E42: m² | F42: 3101 | G42: 10,84 | H42: 33614.84 | I42: 0.24 | J42: 13.44 | K42: 41677.44 | M42: 111
B43: 3.5 | C43: Execução de drenos em tubos drenantes, DN100mm envolto em geotêxtil | D43: ### | E43: m | F43: 100 | G43: 22.99 | H43: 2299 | I43: 0.24 | J43: 28.51 | K43: 2851 | M43: 110
B44: 2.1.3 | C44: Execução de enrocamento - inclui material e transporte | D44: ### | E44: m³ | F44: 1602 | G44: 73.9 | H44: 118387.8 | I44: 0.24 | J44: 91.64 | K44: 146807.28 | M44: 96
B45: 2.1.5 | C45: Execução de espalhamento de areia | D45: ### | E45: m³ | F45: 2902 | G45: 0,91 | H45: 2640.82 | I45: 0.24 | J45: 1.13 | K45: 3279.26 | M45: 98
B46: 3.4 | C46: Execução de solda em manta PEAD | D46: ### | E46: m² | F46: 4296 | G46: 3 | H46: 12888 | I46: 0.24 | J46: 3.72 | K46: 15981.12 | M46: 109
B47: 2.1.4 | C47: Execução e compactação de aterro argiloso | D47: ### | E47: m³ | F47: 105580 | G47: 6,78 | H47: 715832.4 | I47: 0.24 | J47: 8.41 | K47: 887927.8 | M47: 97
B48: 3.1 | C48: Execução proteção mecânica em concreto simples | D48: ### | E48: m³ | F48: 271 | G48: 476.26 | H48: 129066.46 | I48: 0.24 | J48: 590.56 | K48: 160041.76 | M48: 106
B49: 1.1.1 | C49: Ligação provisória de água e esgotos | D49: ### | E49: un | F49: 1 | G49: 561.84 | H49: 561.84 | I49: 0.24 | J49: 696.68 | K49: 696.68 | M49: 12
B50: 1.1.2 | C50: Ligação provisória de força e luz | D50: ### | E50: un | F50: 1 | G50: 1943.56 | H50: 1943.56 | I50: 0.24 | J50: 2410.01 | K50: 2410.01 | M50: 13
B51: 1.1.1 | C51: Limpeza mecanizada de camada vegetal e pequenas árvores (diâmetro de tronco < 0,20 m) | D51: ### | E51: m² | F51: 42921 | G51: 0,26 | H51: 11159.46 | I51: 0.24 | J51: 0.32 | K51: 13734.72 | M51: 86
B52: 3.3 | C52: Manta termoplastica, pead, geomembrana lisa, e = 1,00 mm | D52: *** | E52: m² | F52: 4296 | G52: 18,18 | H52: 78101.28 | I52: 0.165 | J52: 21.18 | K52: 90989.28 | M52: 108
B53: 1.2.1 | C53: Mobilização do canteiro | D53: ### | E53: un | F53: 1 | G53: 2778.2 | H53: 2778.2 | I53: 0.24 | J53: 3444.97 | K53: 3444.97 | M53: 24
B54: 1.1.9 | C54: Placa do agente financiador - 3m² | D54: ### | E54: m² | F54: 1 | G54: 949.53 | H54: 949.53 | I54: 0.24 | J54: 1177.42 | K54: 1177.42 | M54: 20
B55: 1.1.3 | C55: Ponto de água externo | D55: ### | E55: un | F55: 1 | G55: 171.54 | H55: 171.54 | I55: 0.24 | J55: 212.71 | K55: 212.71 | M55: 14
B56: 1.1.4 | C56: Ponto de luz externo | D56: ### | E56: un | F56: 2 | G56: 273.04 | H56: 546.08 | I56: 0.24 | J56: 338.57 | K56: 677.14 | M56: 15
B57: 1.1.10 | C57: Portão | D57: ### | E57: un | F57: 1 | G57: 4435.67 | H57: 4435.67 | I57: 0.24 | J57: 5500.23 | K57: 5500.23 | M57: 21
B58: 1.1.2 | C58: Recorte de Árvores 5 cm < DAP < 15 cm | D58: ### | E58: un | F58: 4585 | G58: 11.85 | H58: 54332.25 | I58: 0.24 | J58: 14.69 | K58: 67353.65 | M58: 87
B59: 1.1.6 | C59: Refeitório módulo básico em chapa de madeira compensada 10 m² | D59: ### | E59: m² | F59: 10 | G59: 431,17 | H59: 4311.7 | I59: 0.24 | J59: 534.65 | K59: 5346.5 | M59: 17
B60: 1.1.7 | C60: Sanitário módulo 3 m² | D60: ### | E60: m² | F60: 3 | G60: 719,01 | H60: 2157.03 | I60: 0.24 | J60: 891.57 | K60: 2674.71 | M60: 18
B61: 2.3.2 | C61: Transporte de areia para empréstimo até 30km | D61: ### | E61: m3xkm | F61: 24337 | G61: 1,31 | H61: 31881.47 | I61: 0.24 | J61: 1.62 | K61: 39425.94 | M61: 102
B62: 2.3.1 | C62: Transporte de argila para empréstimo até 30km | D62: ### | E62: m3xkm | F62: 1152934 | G62: 1,31 | H62: 1510343.54 | I62: 0.24 | J62: 1.62 | K62: 1867753.08 | M62: 101
B63: 2.3.3 | C63: Transporte de solos para bota-fora até 30km | D63: ### | E63: m3xkm | F63: 51660 | G63: 1,31 | H63: 67674.6 | I63: 0.24 | J63: 1.62 | K63: 83689.2 | M63: 103

Sheet 3 - DCCU Resumo
A1: SERVIÇOS DE ÁGUA E ESGOTO DE NOVO HAMBURGO
A2: RESUMO DO DEMONSTRATIVO DA COMPOSIÇÃO DO CUSTO UNITÁRIO - NÃO DESONERADO
A3: MUNICÍPIO: NOVO HAMBURGO
A4: OBRA: TERRAPLENAGEM ETE LUIZ RAU
A5: CAPÍTULO | B5: DISCRIMINAÇÃO | C5: TOTAL SEM B.D.I. | D5: TOTAL COM B.D.I.
A9: I | B9: SERVIÇOS PRELIMINARES | C9: =SUM('1 - DCCU'!H9:H38) -> 29802.52 | D9: =SUM('1 - DCCU'!K9:K38) -> 36955.58
A11: II | B11: ADMINISTRAÇÃO LOCAL | C11: =SUM('1 - DCCU'!H46:H75) -> 132136.6 | D11: =SUM('1 - DCCU'!K46:K75) -> 163849.38
A13: III | B13: TERRAPLENAGEM | C13: =SUM('1 - DCCU'!H83:H112) -> 4697790.05 | D13: =SUM('1 - DCCU'!K83:K112) -> 5669584.33
A50: TOTAL ( R$ ) | C50: =SUM(C8:C49) -> 4859729.17 | D50: =SUM(D8:D49) -> 5870389.29

Sheet 4 - ABC
A1: SERVIÇOS DE ÁGUA E ESGOTO DE NOVO HAMBURGO
A2: CURVA ABC
A3: MUNICÍPIO: NOVO HAMBURGO
A4: OBRA: TERRAPLENAGEM ETE LUIZ RAU | K4: Total DCCU Resumo | L4: ='3 - DCCU Resumo'!D50 -> 5870389.29
A5: ITEM | B5: DISCRIMINAÇÃO | C5: CÓDIGO | D5: UN | E5: QTDE | F5: PREÇO | H5: % | I5: % Acum. | L5: =SUM($G$9:$G$38) -> 5870389.29
E6: QUANT | L6: =L4-L5 -> 0
F7: UNITÁRIO | G7: TOTAL
A9: 1 | B9: Argila | C9: *** | D9: m³ | E9: 105580 | F9: 19.22 | G9: =F9*E9 -> 2029247.6 | H9: =$G$9/$L$5 -> 0.3456751332 | I9: =$I$8+$H$9 -> 0.3456751332 | K9: sinapi | L9: insumo | M9: 6077 | S9: 561.84
A10: 2 | B10: Transporte de argila para empréstimo até 30km | C10: ### | D10: m3xkm | E10: 1152934 | F10: 1.62 | G10: 1867753.08 | H10: =$G$10/$L$5 -> 0.3181651144 | I10: =$I$9+$H$10 -> 0.6638402476 | K10: sinapi | L10: serviço | M10: 95875 | S10: 1943.56
A11: 3 | B11: Execução e compactação de aterro argiloso | C11: ### | D11: m³ | E11: 105580 | F11: 8.41 | G11: 887927.8 | H11: =$G$11/$L$5 -> 0.1512553523 | I11: =$I$10+$H$11 -> 0.8150955999 | K11: sinapi | L11: serviço | M11: 96385 | S11: 171.54
A12: 4 | B12: Areia | C12: *** | D12: m³ | E12: 2902 | F12: 69.9 | G12: 202849.8 | H12: =$G$12/$L$5 -> 0.03455474415 | I12: =$I$11+$H$12 -> 0.8496503441 | K12: sinapi | L12: insumo | M12: 370 | S12: 273.04
A13: 5 | B13: Administração local | C13: ### | D13: un | E13: 1 | F13: 163849.38 | G13: 163849.38 | H13: =$G$13/$L$5 -> 0.0279111609 | I13: =$I$12+$H$13 -> 0.877561505 | K13: adm local | L13: 132136.6 | S13: 792,38
A14: 6 | B14: Execução proteção mecânica em concreto simples | C14: ### | D14: m³ | E14: 271 | F14: 590.56 | G14: 160041.76 | H14: =$G$14/$L$5 -> 0.02726254633 | I14: =$I$13+$H$14 -> 0.9048240513 | K14: composição | L14: comp 004 | S14: 431,17
A15: 7 | B15: Execução de enrocamento - inclui material e transporte | C15: ### | D15: m³ | E15: 1602 | F15: 91.64 | G15: 146807.28 | H15: =$G$15/$L$5 -> 0.02500809959 | I15: =$I$14+$H$15 -> 0.9298321509 | K15: composição | L15: comp 002 | S15: 719,01
A16: 8 | B16: Manta termoplastica, pead, geomembrana lisa, e = 1,00 mm | C16: *** | D16: m² | E16: 4296 | F16: 21.18 | G16: 90989.28 | H16: =$G$16/$L$5 -> 0.01549970121 | I16: =$I$15+$H$16 -> 0.9453318521 | K16: sinapi | L16: insumo | M16: 25863 | S16: 30,48
A17: 9 | B17: Transporte de solos para bota-fora até 30km | C17: ### | D17: m3xkm | E17: 51660 | F17: 1.62 | G17: 83689.2 | H17: =$G$17/$L$5 -> 0.01425615847 | I17: =$I$16+$H$17 -> 0.9595880106 | K17: sinapi | L17: serviço | M17: 95875 | S17: 949.53
A18: 10 | B18: Recorte de Árvores 5 cm < DAP < 15 cm | C18: ### | D18: un | E18: 4585 | F18: 14.69 | G18: 67353.65 | H18: =$G$18/$L$5 -> 0.01147345545 | I18: =$I$17+$H$18 -> 0.971061466 | K18: composição | L18: comp 001 | S18: 4435.67
A19: 11 | B19: Execucao de dreno com manta geotextil 400 g/m2 | C19: ### | D19: m² | E19: 3101 | F19: 13.44 | G19: 41677.44 | H19: =$G$19/$L$5 -> 0.007099604122 | I19: =$I$18+$H$19 -> 0.9781610701 | K19: sinapi | L19: serviço | M19: 73881/3 | S19: 2778.2
A20: 12 | B20: Transporte de areia para empréstimo até 30km | C20: ### | D20: m3xkm | E20: 24337 | F20: 1.62 | G20: 39425.94 | H20: =$G$20/$L$5 -> 0.00671606908 | I20: =$I$19+$H$20 -> 0.9848771392 | K20: sinapi | L20: serviço | M20: 95875 | S20: 1767.95
A21: 13 | B21: Execução de solda em manta PEAD | C21: ### | D21: m² | E21: 4296 | F21: 3.72 | G21: 15981.12 | H21: =$G$21/$L$5 -> 0.002722327125 | I21: =$I$20+$H$21 -> 0.9875994663 | K21: Wallau | L21: 3 | S21: 132136.6
A22: 14 | B22: Limpeza mecanizada de camada vegetal e pequenas árvores (diâmetro de tronco < 0,20 m) | C22: ### | D22: m² | E22: 42921 | F22: 0.32 | G22: 13734.72 | H22: =$G$22/$L$5 -> 0.002339660851 | I22: =$I$21+$H$22 -> 0.9899391272 | K22: sinapi | L22: serviço | M22: 98525 | S22: 0,26
A23: 15 | B23: Bombeamento de concreto | C23: *** | D23: m³ | E23: 271 | F23: 35.5 | G23: 9620.5 | H23: =$G$23/$L$5 -> 0.001638818062 | I23: =$I$22+$H$23 -> 0.9915779453 | K23: sinapi | L23: insumo | M23: 25950 | S23: 11.85
A24: 16 | B24: Escritório módulo básico em chapa de madeira compensada | C24: ### | D24: m² | E24: 9 | F24: 982.55 | G24: 8842.95 | H24: =$G$24/$L$5 -> 0.001506365177 | I24: =$I$23+$H$24 -> 0.9930843104 | K24: sinapi | L24: serviço | M24: 93207 | S24: 2,78
A25: 17 | B25: Escavação em solo de 1ª categoria | C25: ### | D25: m3 | E25: 1842 | F25: 3.45 | G25: 6354.9 | H25: =$G$25/$L$5 -> 0.001082534681 | I25: =$I$24+$H$25 -> 0.9941668451 | K25: sinapi | L25: serviço | M25: 101114 | S25: 16,50
A26: 18 | B26: Portão | C26: ### | D26: un | E26: 1 | F26: 5500.23 | G26: 5500.23 | H26: =$G$26/$L$5 -> 0.0009369446775 | I26: =$I$25+$H$26 -> 0.9951037898 | K26: composição | L26: comp 010 | S26: 60,00
A27: 19 | B27: Refeitório módulo básico em chapa de madeira compensada 10 m² | C27: ### | D27: m² | E27: 10 | F27: 534.65 | G27: 5346.5 | H27: =$G$27/$L$5 -> 0.0009107573171 | I27: =$I$26+$H$27 -> 0.9960145471 | K27: sinapi | L27: serviço | M27: 93210 | S27: 73.9
A28: 20 | B28: Cerca padrão para canteiro de obra | C28: ### | D28: m | E28: 100 | F28: 37.8 | G28: 3780 | H28: =$G$28/$L$5 -> 0.0006439095967 | I28: =$I$27+$H$28 -> 0.9966584567 | K28: sinapi | L28: serviço | M28: 101202 | S28: 6,78
A29: 21 | B29: Mobilização do canteiro | C29: ### | D29: un | E29: 1 | F29: 3444.97 | G29: 3444.97 | H29: =$G$29/$L$5 -> 0.0005868384241 | I29: =$I$28+$H$29 -> 0.9972452951 | K29: 11% do valor montagem | L29: 2778.2007 | S29: 0,91
A30: 22 | B30: Execução de espalhamento de areia | C30: ### | D30: m³ | E30: 2902 | F30: 1.13 | G30: 3279.26 | H30: =$G$30/$L$5 -> 0.0005586103132 | I30: =$I$29+$H$30 -> 0.9978039054 | K30: sinapi | L30: serviço | M30: 100574 | S30: 1,31
A31: 23 | B31: Execução de drenos em tubos drenantes, DN100mm envolto em geotêxtil | C31: ### | D31: m | E31: 100 | F31: 28.51 | G31: 2851 | H31: =$G$31/$L$5 -> 0.0004856577408 | I31: =$I$30+$H$31 -> 0.9982895632 | K31: composição | L31: comp 003 | S31: 1,31
A32: 24 | B32: Sanitário módulo 3 m² | C32: ### | D32: m² | E32: 3 | F32: 891.57 | G32: 2674.71 | H32: =$G$32/$L$5 -> 0.0004556273644 | I32: =$I$31+$H$32 -> 0.9987451905 | K32: sinapi | L32: serviço | M32: 93212 | S32: 1,31
A33: 25 | B33: Ligação provisória de força e luz | C33: ### | D33: un | E33: 1 | F33: 2410.01 | G33: 2410.01 | H33: =$G$33/$L$5 -> 0.000410536658 | I33: =$I$32+$H$33 -> 0.9991557272 | K33: composição | L33: comp 006 | S33: 476.26
A34: 26 | B34: Desmobilização do canteiro | C34: ### | D34: un | E34: 1 | F34: 2192.26 | G34: 2192.26 | H34: =$G$34/$L$5 -> 0.0003734437176 | I34: =$I$33+$H$34 -> 0.9995291709 | K34: 7% valor montagem | L34: 1767.9459 | S34: 30,47
A35: 27 | B35: Placa do agente financiador - 3m² | C35: ### | D35: m² | E35: 1 | F35: 1177.42 | G35: 1177.42 | H35: =$G$35/$L$5 -> 0.000200569322 | I35: =$I$34+$H$35 -> 0.9997297402 | K35: composição | L35: comp 009 | S35: 18,18
A36: 28 | B36: Ligação provisória de água e esgotos | C36: ### | D36: un | E36: 1 | F36: 696.68 | G36: 696.68 | H36: =$G$36/$L$5 -> 0.0001186769677 | I36: =$I$35+$H$36 -> 0.9998484172 | K36: composição | L36: comp 005 | S36: 3
A37: 29 | B37: Ponto de luz externo | C37: ### | D37: un | E37: 2 | F37: 338.57 | G37: 677.14 | H37: =$G$37/$L$5 -> 0.000115348398 | I37: =$I$36+$H$37 -> 0.9999637656 | K37: composição | L37: comp 008 | S37: 22.99
A38: 30 | B38: Ponto de água externo | C38: ### | D38: un | E38: 1 | F38: 212.71 | G38: 212.71 | H38: =$G$38/$L$5 -> 3.623439426e-05 | I38: =$I$37+$H$38 -> 1 | K38: composição | L38: comp 007 | S38: 10,84
A52: Curva ABC | C52: TOTAL (R$) | F52: =SUM(G9:$G$50) -> 5870389.29

Sheet 5 - PPU
B2: SERVIÇOS DE ÁGUA E ESGOTO DE NOVO HAMBURGO | G2: ='1 - DCCU'!J2 -> Data base do orçamento:
B3: PLANILHA DE PREÇOS UNITÁRIOS | G3: ='1 - DCCU'!J3 -> AGO DE 2020
B4: ='1 - DCCU'!$B$4:$E$4 -> MUNICÍPIO: NOVO HAMBURGO
B5: ='1 - DCCU'!$B$5:$E$5 -> OBRA: TERRAPLENAGEM ETE LUIZ RAU
B6: ITEM | C6: DISCRIMINAÇÃO | D6: CÓDIGO | E6: UN | F6: CUSTO UNITÁRIO (SEM B.D.I.) | G6: PREÇO UNITÁRIO (COM B.D.I.) | H6: B.D.I. APLICADO
B10: 1 | C10: =VLOOKUP(D10,ITENS,2,0) -> Ligação provisória de água e esgotos | D10: 01.01.00.10 | E10: =VLOOKUP(D10,ITENS,3,0) -> un | F10: =VLOOKUP(D10,ITENS,7,0) -> 554.6 | G10: =VLOOKUP(D10,ITENS,8,0) -> 687.7 | H10: =IF(F10="","",IF(ISERR(SEARCH("18.",D10)),'0 - PUC'!$H$5,'0 - PUC'!$H$6)-1) -> 0.24
B11: 2 | C11: Ligação provisória de força e luz | D11: 01.01.00.12 | E11: un | F11: 1908.39 | G11: 2366.4 | H11: =IF(F11="","",IF(ISERR(SEARCH("18.",D11)),'0 - PUC'!$H$5,'0 - PUC'!$H$6)-1) -> 0.24
B12: 3 | C12: Ponto de água externo | D12: 01.01.00.14 | E12: un | F12: 168.58 | G12: 209.04 | H12: =IF(F12="","",IF(ISERR(SEARCH("18.",D12)),'0 - PUC'!$H$5,'0 - PUC'!$H$6)-1) -> 0.24
B13: 4 | C13: Ponto de luz externo | D13: 01.01.00.16 | E13: un | F13: 259.26 | G13: 321.48 | H13: =IF(F13="","",IF(ISERR(SEARCH("18.",D13)),'0 - PUC'!$H$5,'0 - PUC'!$H$6)-1) -> 0.24
B14: 5 | C14: Escritório módulo básico 15 m² | D14: 01.01.00.20 | E14: un | F14: 11641.88 | G14: 14435.93 | H14: =IF(F14="","",IF(ISERR(SEARCH("18.",D14)),'0 - PUC'!$H$5,'0 - PUC'!$H$6)-1) -> 0.24
B15: 6 | C15: Escritório módulo adicional-1 10 m² | D15: 01.01.00.21 | E15: un | F15: 7755.49 | G15: 9616.81 | H15: =IF(F15="","",IF(ISERR(SEARCH("18.",D15)),'0 - PUC'!$H$5,'0 - PUC'!$H$6)-1) -> 0.24
B16: 7 | C16: Escritório módulo adicional-2 15 m² | D16: 01.01.00.22 | E16: un | F16: 11641.88 | G16: 14435.93 | H16: =IF(F16="","",IF(ISERR(SEARCH("18.",D16)),'0 - PUC'!$H$5,'0 - PUC'!$H$6)-1) -> 0.24
B17: 8 | C17: Almoxarifado módulo básico 10 m² | D17: 01.01.00.30 | E17: un | F17: 6107.38 | G17: 7573.15 | H17: =IF(F17="","",IF(ISERR(SEARCH("18.",D17)),'0 - PUC'!$H$5,'0 - PUC'!$H$6)-1) -> 0.24
B18: 9 | C18: Almoxarifado módulo adicional 10 m² | D18: 01.01.00.31 | E18: un | F18: 6107.38 | G18: 7573.15 | H18: =IF(F18="","",IF(ISERR(SEARCH("18.",D18)),'0 - PUC'!$H$5,'0 - PUC'!$H$6)-1) -> 0.24
B19: 10 | C19: Telheiro módulo básico 20 m² | D19: 01.01.00.40 | E19: un | F19: 2440.35 | G19: 3026.03 | H19: =IF(F19="","",IF(ISERR(SEARCH("18.",D19)),'0 - PUC'!$H$5,'0 - PUC'!$H$6)-1) -> 0.24
B20: 11 | C20: Telheiro módulo adicional 10 m² | D20: 01.01.00.41 | E20: un | F20: 1057.26 | G20: 1311 | H20: =IF(F20="","",IF(ISERR(SEARCH("18.",D20)),'0 - PUC'!$H$5,'0 - PUC'!$H$6)-1) -> 0.24
B21: 12 | C21: Alojamento módulo básico 10 m² | D21: 01.01.00.42 | E21: un | F21: 4029.91 | G21: 4997.09 | H21: =IF(F21="","",IF(ISERR(SEARCH("18.",D21)),'0 - PUC'!$H$5,'0 - PUC'!$H$6)-1) -> 0.24
B22: 13 | C22: Refeitório módulo básico 30 m² | D22: 01.01.00.43 | E22: un | F22: 12209.84 | G22: 15140.2 | H22: =IF(F22="","",IF(ISERR(SEARCH("18.",D22)),'0 - PUC'!$H$5,'0 - PUC'!$H$6)-1) -> 0.24
B23: 14 | C23: Refeitório módulo básico 40 m² | D23: 01.01.00.44 | E23: un | F23: 16278.32 | G23: 20185.12 | H23: =IF(F23="","",IF(ISERR(SEARCH("18.",D23)),'0 - PUC'!$H$5,'0 - PUC'!$H$6)-1) -> 0.24
B24: 15 | C24: Refeitório módulo adicional 10 m² | D24: 01.01.00.45 | E24: un | F24: 4069.41 | G24: 5046.07 | H24: =IF(F24="","",IF(ISERR(SEARCH("18.",D24)),'0 - PUC'!$H$5,'0 - PUC'!$H$6)-1) -> 0.24
B25: 16 | C25: Sanitário módulo 15 m² para 20 pessoas | D25: 01.01.00.48 | E25: un | F25: 10474.21 | G25: 12988.02 | H25: =IF(F25="","",IF(ISERR(SEARCH("18.",D25)),'0 - PUC'!$H$5,'0 - PUC'!$H$6)-1) -> 0.24
B26: 17 | C26: Sanitário módulo 10 m² para 12 pessoas | D26: 01.01.00.49 | E26: un | F26: 6973.75 | G26: 8647.45 | H26: =IF(F26="","",IF(ISERR(SEARCH("18.",D26)),'0 - PUC'!$H$5,'0 - PUC'!$H$6)-1) -> 0.24
B27: 18 | C27: Guarita módulo 5 m² | D27: 01.01.00.50 | E27: un | F27: 4170.15 | G27: 5170.99 | H27: =IF(F27="","",IF(ISERR(SEARCH("18.",D27)),'0 - PUC'!$H$5,'0 - PUC'!$H$6)-1) -> 0.24
B28: 19 | C28: Tapume de vedação padrão | D28: 01.01.00.60 | E28: m2 | F28: 57.09 | G28: 70.79 | H28: =IF(F28="","",IF(ISERR(SEARCH("18.",D28)),'0 - PUC'!$H$5,'0 - PUC'!$H$6)-1) -> 0.24
B29: 20 | C29: Tapume de vedação ecológico | D29: 01.01.00.65 | E29: =VLOOKUP(D29,ITENS,3,0) -> m2 | F29: =VLOOKUP(D29,ITENS,7,0) -> 44.49 | G29: =VLOOKUP(D29,ITENS,8,0) -> 55.17 | H29: =IF(F29="","",IF(ISERR(SEARCH("18.",D29)),'0 - PUC'!$H$5,'0 - PUC'!$H$6)-1) -> 0.24
B30: 21 | C30: Cerca padrão para canteiro de obra | D30: 01.01.00.70 | E30: m | F30: 27.42 | G30: 34 | H30: =IF(F30="","",IF(ISERR(SEARCH("18.",D30)),'0 - PUC'!$H$5,'0 - PUC'!$H$6)-1) -> 0.24
B31: 22 | C31: Placa da Corsan - 6m² | D31: 01.02.00.03 | E31: un | F31: 1899.06 | G31: 2354.83 | H31: =IF(F31="","",IF(ISERR(SEARCH("18.",D31)),'0 - PUC'!$H$5,'0 - PUC'!$H$6)-1) -> 0.24
B32: 23 | C32: Placa do agente financiador - 3m² | D32: 01.02.00.04 | E32: un | F32: 949.53 | G32: 1177.42 | H32: =IF(F32="","",IF(ISERR(SEARCH("18.",D32)),'0 - PUC'!$H$5,'0 - PUC'!$H$6)-1) -> 0.24
B33: 24 | C33: Placa de licenciamento ambiental - 2 m² | D33: 01.02.00.07 | E33: un | F33: 633.02 | G33: 784.94 | H33: =IF(F33="","",IF(ISERR(SEARCH("18.",D33)),'0 - PUC'!$H$5,'0 - PUC'!$H$6)-1) -> 0.24
B34: 25 | C34: Mobilização para Canteiro de Obras tipo I | D34: 01.03.00.11 | E34: un | F34: 21829.13 | G34: 27068.12 | H34: =IF(F34="","",IF(ISERR(SEARCH("18.",D34)),'0 - PUC'!$H$5,'0 - PUC'!$H$6)-1) -> 0.24
B35: 26 | C35: =VLOOKUP(D35,ITENS,2,0) -> Mobilização para Canteiro de Obras tipo II | D35: 01.03.00.12 | E35: =VLOOKUP(D35,ITENS,3,0) -> un | F35: =VLOOKUP(D35,ITENS,7,0) -> 26380.13 | G35: =VLOOKUP(D35,ITENS,8,0) -> 32711.36 | H35: =IF(F35="","",IF(ISERR(SEARCH("18.",D35)),'0 - PUC'!$H$5,'0 - PUC'!$H$6)-1) -> 0.24
B36: 27 | C36: Mobilização para Canteiro de Obras tipo III | D36: 01.03.00.13 | E36: un | F36: =VLOOKUP(D36,ITENS,7,0) -> 29455.13 | G36: =VLOOKUP(D36,ITENS,8,0) -> 36524.36 | H36: =IF(F36="","",IF(ISERR(SEARCH("18.",D36)),'0 - PUC'!$H$5,'0 - PUC'!$H$6)-1) -> 0.24
B37: 28 | C37: Mobilização para Canteiro de Obras tipo IV | D37: 01.03.00.14 | E37: un | F37: =VLOOKUP(D37,ITENS,7,0) -> 36589.13 | G37: =VLOOKUP(D37,ITENS,8,0) -> 45370.52 | H37: =IF(F37="","",IF(ISERR(SEARCH("18.",D37)),'0 - PUC'!$H$5,'0 - PUC'!$H$6)-1) -> 0.24
B39: RAZÃO SOCIAL DO PROPONENTE | D39: RESPONSÁVEL PROPONENTE | H39: DATA
B42: ='1 - DCCU'!$B$4:$E$4 -> MUNICÍPIO: NOVO HAMBURGO
B43: ='1 - DCCU'!$B$5:$E$5 -> OBRA: TERRAPLENAGEM ETE LUIZ RAU
B44: ITEM | C44: DISCRIMINAÇÃO | D44: CÓDIGO | E44: UN | F44: CUSTO UNITÁRIO (SEM B.D.I.) | G44: PREÇO UNITÁRIO (COM B.D.I.) | H44: B.D.I. APLICADO
B48: 29 | C48: =VLOOKUP(D48,ITENS,2,0) -> Mobilização para Canteiro de Obras tipo V | D48: 01.03.00.15 | E48: =VLOOKUP(D48,ITENS,3,0) -> un | F48: =VLOOKUP(D48,ITENS,7,0) -> 47167.13 | G48: =VLOOKUP(D48,ITENS,8,0) -> 58487.24 | H48: =IF(F48="","",IF(ISERR(SEARCH("18.",D48)),'0 - PUC'!$H$5,'0 - PUC'!$H$6)-1) -> 0.24
B49: 30 | C49: Desmobilização para Canteiro de Obras tipo I | D49: 01.03.00.21 | E49: =VLOOKUP(D49,ITENS,3,0) -> un | F49: =VLOOKUP(D49,ITENS,7,0) -> 12235.13 | G49: =VLOOKUP(D49,ITENS,8,0) -> 15171.56 | H49: =IF(F49="","",IF(ISERR(SEARCH("18.",D49)),'0 - PUC'!$H$5,'0 - PUC'!$H$6)-1) -> 0.24
B50: 31 | C50: Desmobilização para Canteiro de Obras tipo II | D50: 01.03.00.22 | E50: =VLOOKUP(D50,ITENS,3,0) -> un | F50: =VLOOKUP(D50,ITENS,7,0) -> 14203.13 | G50: =VLOOKUP(D50,ITENS,8,0) -> 17611.88 | H50: =IF(F50="","",IF(ISERR(SEARCH("18.",D50)),'0 - PUC'!$H$5,'0 - PUC'!$H$6)-1) -> 0.24
B51: 32 | C51: Desmobilização para Canteiro de Obras tipo III | D51: 01.03.00.23 | E51: =VLOOKUP(D51,ITENS,3,0) -> un | F51: =VLOOKUP(D51,ITENS,7,0) -> 15433.13 | G51: =VLOOKUP(D51,ITENS,8,0) -> 19137.08 | H51: =IF(F51="","",IF(ISERR(SEARCH("18.",D51)),'0 - PUC'!$H$5,'0 - PUC'!$H$6)-1) -> 0.24
B52: 33 | C52: =VLOOKUP(D52,ITENS,2,0) -> Desmobilização para Canteiro de Obras tipo IV | D52: 01.03.00.24 | E52: =VLOOKUP(D52,ITENS,3,0) -> un | F52: =VLOOKUP(D52,ITENS,7,0) -> 17770.13 | G52: =VLOOKUP(D52,ITENS,8,0) -> 22034.96 | H52: =IF(F52="","",IF(ISERR(SEARCH("18.",D52)),'0 - PUC'!$H$5,'0 - PUC'!$H$6)-1) -> 0.24
B53: 34 | C53: Desmobilização para Canteiro de Obras tipo V | D53: 01.03.00.25 | E53: =VLOOKUP(D53,ITENS,3,0) -> un | F53: =VLOOKUP(D53,ITENS,7,0) -> 22444.13 | G53: =VLOOKUP(D53,ITENS,8,0) -> 27830.72 | H53: =IF(F53="","",IF(ISERR(SEARCH("18.",D53)),'0 - PUC'!$H$5,'0 - PUC'!$H$6)-1) -> 0.24
B54: 35 | C54: Carga e descarga de entulho | D54: 01.04.01.10 | E54: m3 | F54: 5.84 | G54: 7.24 | H54: =IF(F54="","",IF(ISERR(SEARCH("18.",D54)),'0 - PUC'!$H$5,'0 - PUC'!$H$6)-1) -> 0.24
B55: 36 | C55: Transporte de entulho a 1 km | D55: 01.04.01.21 | E55: m3 | F55: 2.16 | G55: 2.68 | H55: =IF(F55="","",IF(ISERR(SEARCH("18.",D55)),'0 - PUC'!$H$5,'0 - PUC'!$H$6)-1) -> 0.24
B56: 37 | C56: Transporte de entulho a 2 km | D56: 01.04.01.22 | E56: m3 | F56: 3.08 | G56: 3.82 | H56: =IF(F56="","",IF(ISERR(SEARCH("18.",D56)),'0 - PUC'!$H$5,'0 - PUC'!$H$6)-1) -> 0.24
B57: 38 | C57: Transporte de entulho a 3 km | D57: 01.04.01.23 | E57: m3 | F57: 3.7 | G57: 4.59 | H57: =IF(F57="","",IF(ISERR(SEARCH("18.",D57)),'0 - PUC'!$H$5,'0 - PUC'!$H$6)-1) -> 0.24
B58: 39 | C58: Transporte de entulho a 5 km | D58: 01.04.01.25 | E58: m3 | F58: 4.79 | G58: 5.94 | H58: =IF(F58="","",IF(ISERR(SEARCH("18.",D58)),'0 - PUC'!$H$5,'0 - PUC'!$H$6)-1) -> 0.24
B59: 40 | C59: Transporte de entulho a 7 km | D59: 01.04.01.27 | E59: m3 | F59: 5.7 | G59: 7.07 | H59: =IF(F59="","",IF(ISERR(SEARCH("18.",D59)),'0 - PUC'!$H$5,'0 - PUC'!$H$6)-1) -> 0.24
B60: 41 | C60: Transporte de entulho a 10 km | D60: 01.04.01.30 | E60: m3 | F60: 6.85 | G60: 8.49 | H60: =IF(F60="","",IF(ISERR(SEARCH("18.",D60)),'0 - PUC'!$H$5,'0 - PUC'!$H$6)-1) -> 0.24
B61: 42 | C61: Vigilância diurna | D61: 01.04.03.01 | E61: h | F61: 16.86 | G61: 20.91 | H61: =IF(F61="","",IF(ISERR(SEARCH("18.",D61)),'0 - PUC'!$H$5,'0 - PUC'!$H$6)-1) -> 0.24
B62: 43 | C62: Vigilância noturna (das 22 horas às 5 horas) | D62: 01.04.03.02 | E62: h | F62: 21.64 | G62: 26.83 | H62: =IF(F62="","",IF(ISERR(SEARCH("18.",D62)),'0 - PUC'!$H$5,'0 - PUC'!$H$6)-1) -> 0.24
B63: 44 | C63: Teste hidráulico em rede de esgoto com bola de isopor | D63: 02.02.01.10 | E63: m | F63: 1.26 | G63: 1.56 | H63: =IF(F63="","",IF(ISERR(SEARCH("18.",D63)),'0 - PUC'!$H$5,'0 - PUC'!$H$6)-1) -> 0.24
B64: 45 | C64: Locação para obras de condutos forçados | D64: 02.04.01.10 | E64: m | F64: 0.35 | G64: 0.43 | H64: =IF(F64="","",IF(ISERR(SEARCH("18.",D64)),'0 - PUC'!$H$5,'0 - PUC'!$H$6)-1) -> 0.24
B65: 46 | C65: Locação e nivelamento para obras de condutos livres | D65: 02.04.01.20 | E65: m | F65: 1.26 | G65: 1.56 | H65: =IF(F65="","",IF(ISERR(SEARCH("18.",D65)),'0 - PUC'!$H$5,'0 - PUC'!$H$6)-1) -> 0.24
B66: 47 | C66: Locação de obras localizadas | D66: 02.04.01.30 | E66: m2 | F66: 4.99 | G66: 6.19 | H66: =IF(F66="","",IF(ISERR(SEARCH("18.",D66)),'0 - PUC'!$H$5,'0 - PUC'!$H$6)-1) -> 0.24
B67: 48 | C67: =VLOOKUP(D67,ITENS,2,0) -> Locação de muros ou cercas | D67: 02.04.01.31 | E67: =VLOOKUP(D67,ITENS,3,0) -> m | F67: =VLOOKUP(D67,ITENS,7,0) -> 4.11 | G67: =VLOOKUP(D67,ITENS,8,0) -> 5.1 | H67: =IF(F67="","",IF(ISERR(SEARCH("18.",D67)),'0 - PUC'!$H$5,'0 - PUC'!$H$6)-1) -> 0.24
B68: 49 | C68: =VLOOKUP(D68,ITENS,2,0) -> Locação e nivelamento de obras localizadas | D68: 02.04.01.40 | E68: =VLOOKUP(D68,ITENS,3,0) -> m2 | F68: =VLOOKUP(D68,ITENS,7,0) -> 5.95 | G68: =VLOOKUP(D68,ITENS,8,0) -> 7.38 | H68: =IF(F68="","",IF(ISERR(SEARCH("18.",D68)),'0 - PUC'!$H$5,'0 - PUC'!$H$6)-1) -> 0.24
B69: 50 | C69: Locação e nivelamento para ramais prediais de esgotos | D69: 02.04.01.50 | E69: m | F69: 0.86 | G69: 1.07 | H69: =IF(F69="","",IF(ISERR(SEARCH("18.",D69)),'0 - PUC'!$H$5,'0 - PUC'!$H$6)-1) -> 0.24
B70: 51 | C70: Cadastro e desenho para obras de condutos forçados | D70: 02.04.02.10 | E70: m | F70: 0.4 | G70: 0.5 | H70: =IF(F70="","",IF(ISERR(SEARCH("18.",D70)),'0 - PUC'!$H$5,'0 - PUC'!$H$6)-1) -> 0.24
B71: 52 | C71: Cadastro e desenho para obras de condutos livres | D71: 02.04.02.20 | E71: m | F71: 0.84 | G71: 1.04 | H71: =IF(F71="","",IF(ISERR(SEARCH("18.",D71)),'0 - PUC'!$H$5,'0 - PUC'!$H$6)-1) -> 0.24
B72: 53 | C72: Cadastro e desenho para ligações prediais | D72: 02.04.02.30 | E72: m | F72: 1.19 | G72: 1.48 | H72: =IF(F72="","",IF(ISERR(SEARCH("18.",D72)),'0 - PUC'!$H$5,'0 - PUC'!$H$6)-1) -> 0.24
B73: 54 | C73: Cadastro e desenho para obras localizadas | D73: 02.04.02.40 | E73: m2 | F73: 4.75 | G73: 5.89 | H73: =IF(F73="","",IF(ISERR(SEARCH("18.",D73)),'0 - PUC'!$H$5,'0 - PUC'!$H$6)-1) -> 0.24
B74: 55 | C74: Limpeza manual do terreno | D74: 03.01.00.10 | E74: m2 | F74: 4.13 | G74: 5.12 | H74: =IF(F74="","",IF(ISERR(SEARCH("18.",D74)),'0 - PUC'!$H$5,'0 - PUC'!$H$6)-1) -> 0.24
B75: 56 | C75: Limpeza mecanizada do terreno | D75: 03.01.00.20 | E75: m2 | F75: 0.32 | G75: 0.4 | H75: =IF(F75="","",IF(ISERR(SEARCH("18.",D75)),'0 - PUC'!$H$5,'0 - PUC'!$H$6)-1) -> 0.24
B77: RAZÃO SOCIAL DO PROPONENTE | D77: RESPONSÁVEL PROPONENTE | H77: DATA
B80: ='1 - DCCU'!$B$4:$E$4 -> MUNICÍPIO: NOVO HAMBURGO
B81: ='1 - DCCU'!$B$5:$E$5 -> OBRA: TERRAPLENAGEM ETE LUIZ RAU
B82: ITEM | C82: DISCRIMINAÇÃO | D82: CÓDIGO | E82: UN | F82: CUSTO UNITÁRIO (SEM B.D.I.) | G82: PREÇO UNITÁRIO (COM B.D.I.) | H82: B.D.I. APLICADO
B86: 57 | C86: =VLOOKUP(D86,ITENS,2,0) -> Destocamento mecânico de árvores diâmetro de 15 a 40 cm | D86: 03.01.00.30 | E86: =VLOOKUP(D86,ITENS,3,0) -> un | F86: =VLOOKUP(D86,ITENS,7,0) -> 21.08 | G86: =VLOOKUP(D86,ITENS,8,0) -> 26.14 | H86: =IF(F86="","",IF(ISERR(SEARCH("18.",D86)),'0 - PUC'!$H$5,'0 - PUC'!$H$6)-1) -> 0.24
B87: 58 | C87: =VLOOKUP(D87,ITENS,2,0) -> Sinalização com cavaletes, placas e cones | D87: 03.02.00.10 | E87: =VLOOKUP(D87,ITENS,3,0) -> m | F87: =VLOOKUP(D87,ITENS,7,0) -> 1.15 | G87: =VLOOKUP(D87,ITENS,8,0) -> 1.43 | H87: =IF(F87="","",IF(ISERR(SEARCH("18.",D87)),'0 - PUC'!$H$5,'0 - PUC'!$H$6)-1) -> 0.24
B88: 59 | C88: Sinalização luminosa com cavaletes, placas e cones | D88: 03.02.00.20 | E88: m | F88: 2.29 | G88: 2.84 | H88: =IF(F88="","",IF(ISERR(SEARCH("18.",D88)),'0 - PUC'!$H$5,'0 - PUC'!$H$6)-1) -> 0.24
B89: 60 | C89: Tapume de proteção | D89: 03.02.00.30 | E89: m2 | F89: 23.82 | G89: 29.54 | H89: =IF(F89="","",IF(ISERR(SEARCH("18.",D89)),'0 - PUC'!$H$5,'0 - PUC'!$H$6)-1) -> 0.24
B90: 61 | C90: Tela plástica (PVC/PEAD) laranja, para sinalização e isolamento, incluso estrutura de fixação | D90: 03.02.00.35 | E90: m | F90: 1.09 | G90: 1.35 | H90: =IF(F90="","",IF(ISERR(SEARCH("18.",D90)),'0 - PUC'!$H$5,'0 - PUC'!$H$6)-1) -> 0.24
B91: 62 | C91: Passadiço de madeira 1,00 x 2,00 m | D91: 03.02.00.40 | E91: un | F91: 96.65 | G91: 119.85 | H91: =IF(F91="","",IF(ISERR(SEARCH("18.",D91)),'0 - PUC'!$H$5,'0 - PUC'!$H$6)-1) -> 0.24
B92: 63 | C92: Passadiço de aço, espessura 3/4" - 2,00 x 1,00 m | D92: 03.02.00.50 | E92: un | F92: 156.09 | G92: 193.55 | H92: =IF(F92="","",IF(ISERR(SEARCH("18.",D92)),'0 - PUC'!$H$5,'0 - PUC'!$H$6)-1) -> 0.24
B93: 64 | C93: Instalações sanitárias móveis para obras lineares | D93: 03.02.00.60 | E93: m | F93: 0.6 | G93: 0.74 | H93: =IF(F93="","",IF(ISERR(SEARCH("18.",D93)),'0 - PUC'!$H$5,'0 - PUC'!$H$6)-1) -> 0.24
B94: 65 | C94: Elevador, andaime metálico e plataforma para reservatório elevado 250 m³ até 10 m | D94: 03.02.00.70 | E94: cj | F94: 80581.68 | G94: 99921.28 | H94: =IF(F94="","",IF(ISERR(SEARCH("18.",D94)),'0 - PUC'!$H$5,'0 - PUC'!$H$6)-1) -> 0.24
B95: 66 | C95: Elevador, andaime metálico e plataforma para reservatório elevado 250 m³ até 15 m | D95: 03.02.00.71 | E95: cj | F95: 96033.09 | G95: 119081.03 | H95: =IF(F95="","",IF(ISERR(SEARCH("18.",D95)),'0 - PUC'!$H$5,'0 - PUC'!$H$6)-1) -> 0.24
B96: 67 | C96: Elevador, andaime metálico e plataforma para reservatório elevado 250 m³ até 20 m | D96: 03.02.00.72 | E96: cj | F96: 111484.48 | G96: 138240.76 | H96: =IF(F96="","",IF(ISERR(SEARCH("18.",D96)),'0 - PUC'!$H$5,'0 - PUC'!$H$6)-1) -> 0.24
B97: 68 | C97: Elevador, andaime metálico e plataforma para reservatório elevado 250 m³ até 25 m | D97: 03.02.00.73 | E97: cj | F97: 126935.87 | G97: 157400.48 | H97: =IF(F97="","",IF(ISERR(SEARCH("18.",D97)),'0 - PUC'!$H$5,'0 - PUC'!$H$6)-1) -> 0.24
B98: 69 | C98: Elevador, andaime metálico e plataforma para reservatório elevado 250 m³ até 30 m | D98: 03.02.00.74 | E98: cj | F98: 142386.16 | G98: 176558.84 | H98: =IF(F98="","",IF(ISERR(SEARCH("18.",D98)),'0 - PUC'!$H$5,'0 - PUC'!$H$6)-1) -> 0.24
B99: 70 | C99: Elevador, andaime metálico e plataforma para reservatório elevado 250 m³ até 35 m | D99: 03.02.00.75 | E99: cj | F99: 157837.57 | G99: 195718.59 | H99: =IF(F99="","",IF(ISERR(SEARCH("18.",D99)),'0 - PUC'!$H$5,'0 - PUC'!$H$6)-1) -> 0.24
B100: 71 | C100: Elevador, andaime metálico e plataforma para reservatório elevado 500 m³ até 10 m | D100: 03.02.00.80 | E100: cj | F100: 97535.58 | G100: 120944.12 | H100: =IF(F100="","",IF(ISERR(SEARCH("18.",D100)),'0 - PUC'!$H$5,'0 - PUC'!$H$6)-1) -> 0.24
B101: 72 | C101: Elevador, andaime metálico e plataforma para reservatório elevado 500 m³ até 15 m | D101: 03.02.00.81 | E101: cj | F101: 121452.14 | G101: 150600.65 | H101: =IF(F101="","",IF(ISERR(SEARCH("18.",D101)),'0 - PUC'!$H$5,'0 - PUC'!$H$6)-1) -> 0.24
B102: 73 | C102: Elevador, andaime metálico e plataforma para reservatório elevado 500 m³ até 20 m | D102: 03.02.00.82 | E102: cj | F102: 145375.46 | G102: 180265.57 | H102: =IF(F102="","",IF(ISERR(SEARCH("18.",D102)),'0 - PUC'!$H$5,'0 - PUC'!$H$6)-1) -> 0.24
B103: 74 | C103: Elevador, andaime metálico e plataforma para reservatório elevado 500 m³ até 25 m | D103: 03.02.00.83 | E103: cj | F103: 169299.88 | G103: 209931.85 | H103: =IF(F103="","",IF(ISERR(SEARCH("18.",D103)),'0 - PUC'!$H$5,'0 - PUC'!$H$6)-1) -> 0.24
B104: 75 | C104: Elevador, andaime metálico e plataforma para reservatório elevado 500 m³ até 30 m | D104: 03.02.00.84 | E104: cj | F104: 193224.3 | G104: 239598.13 | H104: =IF(F104="","",IF(ISERR(SEARCH("18.",D104)),'0 - PUC'!$H$5,'0 - PUC'!$H$6)-1) -> 0.24
B105: 76 | C105: Elevador, andaime metálico e plataforma para reservatório elevado 500 m³ até 35 m | D105: 03.02.00.85 | E105: cj | F105: 217147.6 | G105: 269263.02 | H105: =IF(F105="","",IF(ISERR(SEARCH("18.",D105)),'0 - PUC'!$H$5,'0 - PUC'!$H$6)-1) -> 0.24
B106: 77 | C106: =VLOOKUP(D106,ITENS,2,0) -> Elevador, andaime metálico e plataforma para reservatório elevado 1000 m³ até 10 m | D106: 03.02.00.90 | E106: =VLOOKUP(D106,ITENS,3,0) -> cj | F106: =VLOOKUP(D106,ITENS,7,0) -> 117066.74 | G106: =VLOOKUP(D106,ITENS,8,0) -> 145162.76 | H106: =IF(F106="","",IF(ISERR(SEARCH("18.",D106)),'0 - PUC'!$H$5,'0 - PUC'!$H$6)-1) -> 0.24
B107: 78 | C107: Elevador, andaime metálico e plataforma para reservatório elevado 1000 m³ até 15 m | D107: 03.02.00.91 | E107: cj | F107: 150760.66 | G107: 186943.22 | H107: =IF(F107="","",IF(ISERR(SEARCH("18.",D107)),'0 - PUC'!$H$5,'0 - PUC'!$H$6)-1) -> 0.24
B108: 79 | C108: Elevador, andaime metálico e plataforma para reservatório elevado 1000 m³ até 20 m | D108: 03.02.00.92 | E108: cj | F108: 184449.55 | G108: 228717.44 | H108: =IF(F108="","",IF(ISERR(SEARCH("18.",D108)),'0 - PUC'!$H$5,'0 - PUC'!$H$6)-1) -> 0.24
B109: 80 | C109: Elevador, andaime metálico e plataforma para reservatório elevado 1000 m³ até 25 m | D109: 03.02.00.93 | E109: cj | F109: 218143.47 | G109: 270497.9 | H109: =IF(F109="","",IF(ISERR(SEARCH("18.",D109)),'0 - PUC'!$H$5,'0 - PUC'!$H$6)-1) -> 0.24
B110: 81 | C110: Elevador, andaime metálico e plataforma para reservatório elevado 1000 m³ até 30 m | D110: 03.02.00.94 | E110: cj | F110: 251836.27 | G110: 312276.97 | H110: =IF(F110="","",IF(ISERR(SEARCH("18.",D110)),'0 - PUC'!$H$5,'0 - PUC'!$H$6)-1) -> 0.24
B111: 82 | C111: Elevador, andaime metálico e plataforma para reservatório elevado 1000 m³ até 35 m | D111: 03.02.00.95 | E111: cj | F111: 285530.21 | G111: 354057.46 | H111: =IF(F111="","",IF(ISERR(SEARCH("18.",D111)),'0 - PUC'!$H$5,'0 - PUC'!$H$6)-1) -> 0.24
B112: 83 | C112: =VLOOKUP(D112,ITENS,2,0) -> Escada modular em aço com piso auto acoplável para reservatório elevado - H = 0 a 10 m | D112: 03.02.01.10 | E112: cj | F112: 11598.4 | G112: 14382.02 | H112: =IF(F112="","",IF(ISERR(SEARCH("18.",D112)),'0 - PUC'!$H$5,'0 - PUC'!$H$6)-1) -> 0.24
B113: 84 | C113: =VLOOKUP(D113,ITENS,2,0) -> Escada modular em aço com piso auto acoplável para reservatório elevado - H = 11 a 15 m | D113: 03.02.01.11 | E113: cj | F113: 16026.4 | G113: 19872.74 | H113: =IF(F113="","",IF(ISERR(SEARCH("18.",D113)),'0 - PUC'!$H$5,'0 - PUC'!$H$6)-1) -> 0.24
B115: RAZÃO SOCIAL DO PROPONENTE | D115: RESPONSÁVEL PROPONENTE | H115: DATA
B118: ='1 - DCCU'!$B$4:$E$4 -> MUNICÍPIO: NOVO HAMBURGO
B119: ='1 - DCCU'!$B$5:$E$5 -> OBRA: TERRAPLENAGEM ETE LUIZ RAU
B120: ITEM | C120: DISCRIMINAÇÃO | D120: CÓDIGO | E120: UN | F120: CUSTO UNITÁRIO (SEM B.D.I.) | G120: PREÇO UNITÁRIO (COM B.D.I.) | H120: B.D.I. APLICADO
B124: 85 | C124: =VLOOKUP(D124,ITENS,2,0) -> Escada modular em aço com piso auto acoplável para reservatório elevado - H = 16 a 20 m | D124: 03.02.01.12 | E124: =VLOOKUP(D124,ITENS,3,0) -> cj | F124: =VLOOKUP(D124,ITENS,7,0) -> 23154.4 | G124: =VLOOKUP(D124,ITENS,8,0) -> 28711.46 | H124: =IF(F124="","",IF(ISERR(SEARCH("18.",D124)),'0 - PUC'!$H$5,'0 - PUC'!$H$6)-1) -> 0.24
B125: 86 | C125: Escada modular em aço com piso auto acoplável para reservatório elevado - H = 21 a 25 m | D125: 03.02.01.13 | E125: cj | F125: 28257.4 | G125: 35039.18 | H125: =IF(F125="","",IF(ISERR(SEARCH("18.",D125)),'0 - PUC'!$H$5,'0 - PUC'!$H$6)-1) -> 0.24
B126: 87 | C126: Escada modular em aço com piso auto acoplável para reservatório elevado - H = 26 a 30 m | D126: 03.02.01.14 | E126: cj | F126: 37410.4 | G126: 46388.9 | H126: =IF(F126="","",IF(ISERR(SEARCH("18.",D126)),'0 - PUC'!$H$5,'0 - PUC'!$H$6)-1) -> 0.24
B127: 88 | C127: Escada modular em aço com piso auto acoplável para reservatório elevado - H = 31 a 35 m | D127: 03.02.01.15 | E127: cj | F127: 43188.4 | G127: 53553.62 | H127: =IF(F127="","",IF(ISERR(SEARCH("18.",D127)),'0 - PUC'!$H$5,'0 - PUC'!$H$6)-1) -> 0.24
B128: 89 | C128: Andaime metálico fachadeiro, inclus. mont/desmont. - p/ estrutura de concreto - A≤100m2 | D128: 03.02.02.01 | E128: m2 | F128: 9.6 | G128: 11.9 | H128: =IF(F128="","",IF(ISERR(SEARCH("18.",D128)),'0 - PUC'!$H$5,'0 - PUC'!$H$6)-1) -> 0.24
B129: 90 | C129: Andaime metálico fachadeiro, inclus. mont/desmont. - p/ estrutura de concreto - 100≤A≤200m2 | D129: 03.02.02.02 | E129: m2 | F129: 12.61 | G129: 15.64 | H129: =IF(F129="","",IF(ISERR(SEARCH("18.",D129)),'0 - PUC'!$H$5,'0 - PUC'!$H$6)-1) -> 0.24
B130: 91 | C130: Andaime metálico fachadeiro, inclus. mont/desmont. - p/ estrutura de concreto - A≥200m2 | D130: 03.02.02.03 | E130: m2 | F130: 13.94 | G130: 17.29 | H130: =IF(F130="","",IF(ISERR(SEARCH("18.",D130)),'0 - PUC'!$H$5,'0 - PUC'!$H$6)-1) -> 0.24
B131: 92 | C131: Andaime metálico fachadeiro, inclus. mont/desmont. - p/ impermeabilização - A≤100m2 | D131: 03.02.02.11 | E131: m2 | F131: 5.84 | G131: 7.24 | H131: =IF(F131="","",IF(ISERR(SEARCH("18.",D131)),'0 - PUC'!$H$5,'0 - PUC'!$H$6)-1) -> 0.24
B132: 93 | C132: Andaime metálico fachadeiro, inclus. mont/desmont. - p/ impermeabilização - 100≤A≤200m2 | D132: 03.02.02.12 | E132: m2 | F132: 7.08 | G132: 8.78 | H132: =IF(F132="","",IF(ISERR(SEARCH("18.",D132)),'0 - PUC'!$H$5,'0 - PUC'!$H$6)-1) -> 0.24
B133: 94 | C133: =VLOOKUP(D133,ITENS,2,0) -> Andaime metálico fachadeiro, inclus. mont/desmont. - p/ impermeabilização - A≥200m2 | D133: 03.02.02.13 | E133: =VLOOKUP(D133,ITENS,3,0) -> m2 | F133: =VLOOKUP(D133,ITENS,7,0) -> 7.85 | G133: =VLOOKUP(D133,ITENS,8,0) -> 9.73 | H133: =IF(F133="","",IF(ISERR(SEARCH("18.",D133)),'0 - PUC'!$H$5,'0 - PUC'!$H$6)-1) -> 0.24
B134: 95 | C134: =VLOOKUP(D134,ITENS,2,0) -> Andaime metálico fachadeiro, inclus. mont/desmont. - p/ pintura - A≤100m2 | D134: 03.02.02.21 | E134: m2 | F134: 4.74 | G134: 5.88 | H134: =IF(F134="","",IF(ISERR(SEARCH("18.",D134)),'0 - PUC'!$H$5,'0 - PUC'!$H$6)-1) -> 0.24
B135: 96 | C135: Andaime metálico fachadeiro, inclus. mont/desmont. - p/ pintura - 100≤A≤200m2 | D135: 03.02.02.22 | E135: m2 | F135: 5.43 | G135: 6.73 | H135: =IF(F135="","",IF(ISERR(SEARCH("18.",D135)),'0 - PUC'!$H$5,'0 - PUC'!$H$6)-1) -> 0.24
B136: 97 | C136: Andaime metálico fachadeiro, inclus. mont/desmont. - p/ pintura - A≥200m2 | D136: 03.02.02.23 | E136: m2 | F136: 6 | G136: 7.44 | H136: =IF(F136="","",IF(ISERR(SEARCH("18.",D136)),'0 - PUC'!$H$5,'0 - PUC'!$H$6)-1) -> 0.24
B137: 98 | C137: Demolição manual de concreto estrutural | D137: 03.05.00.10 | E137: m3 | F137: 444.22 | G137: 550.83 | H137: =IF(F137="","",IF(ISERR(SEARCH("18.",D137)),'0 - PUC'!$H$5,'0 - PUC'!$H$6)-1) -> 0.24
B138: 99 | C138: Demolição mecânica de concreto estrutural | D138: 03.05.00.20 | E138: m3 | F138: 174.72 | G138: 216.65 | H138: =IF(F138="","",IF(ISERR(SEARCH("18.",D138)),'0 - PUC'!$H$5,'0 - PUC'!$H$6)-1) -> 0.24
B139: 100 | C139: Demolição alvenaria de tijolos, sem reaproveitamento | D139: 03.05.00.30 | E139: m3 | F139: 55.53 | G139: 68.86 | H139: =IF(F139="","",IF(ISERR(SEARCH("18.",D139)),'0 - PUC'!$H$5,'0 - PUC'!$H$6)-1) -> 0.24
B140: 101 | C140: Demolição de alvenaria de tijolos, com reaproveitamento | D140: 03.05.00.40 | E140: m3 | F140: 105.06 | G140: 130.27 | H140: =IF(F140="","",IF(ISERR(SEARCH("18.",D140)),'0 - PUC'!$H$5,'0 - PUC'!$H$6)-1) -> 0.24
B141: 102 | C141: Demolição de alvenaria de pedras | D141: 03.05.00.50 | E141: m3 | F141: 88.55 | G141: 109.8 | H141: =IF(F141="","",IF(ISERR(SEARCH("18.",D141)),'0 - PUC'!$H$5,'0 - PUC'!$H$6)-1) -> 0.24
B142: 103 | C142: Demolição de reboco | D142: 03.05.00.60 | E142: m2 | F142: 7 | G142: 8.68 | H142: =IF(F142="","",IF(ISERR(SEARCH("18.",D142)),'0 - PUC'!$H$5,'0 - PUC'!$H$6)-1) -> 0.24
B143: 104 | C143: Demolição de revestimento de azulejo | D143: 03.05.00.64 | E143: m2 | F143: 8.76 | G143: 10.86 | H143: =IF(F143="","",IF(ISERR(SEARCH("18.",D143)),'0 - PUC'!$H$5,'0 - PUC'!$H$6)-1) -> 0.24
B144: 105 | C144: Demolição de cobertura de telha cerâmica, com reaproveitamento | D144: 03.05.00.70 | E144: m2 | F144: 7.95 | G144: 9.86 | H144: =IF(F144="","",IF(ISERR(SEARCH("18.",D144)),'0 - PUC'!$H$5,'0 - PUC'!$H$6)-1) -> 0.24
B145: 106 | C145: Demolição de cobertura de telha de fibrocimento, com reaproveitamento | D145: 03.05.00.74 | E145: m2 | F145: 5.28 | G145: 6.55 | H145: =IF(F145="","",IF(ISERR(SEARCH("18.",D145)),'0 - PUC'!$H$5,'0 - PUC'!$H$6)-1) -> 0.24
B146: 107 | C146: Demolição de forro de madeira, com reaproveitamento | D146: 03.05.00.80 | E146: m2 | F146: 7.93 | G146: 9.83 | H146: =IF(F146="","",IF(ISERR(SEARCH("18.",D146)),'0 - PUC'!$H$5,'0 - PUC'!$H$6)-1) -> 0.24
B147: 108 | C147: Execução de tampa de boca de lobo | D147: 03.06.00.21 | E147: un | F147: 53.91 | G147: 66.85 | H147: =IF(F147="","",IF(ISERR(SEARCH("18.",D147)),'0 - PUC'!$H$5,'0 - PUC'!$H$6)-1) -> 0.24
B148: 109 | C148: Remanejamento de rede de água | D148: 03.06.00.22 | E148: m | F148: 68.81 | G148: 85.32 | H148: =IF(F148="","",IF(ISERR(SEARCH("18.",D148)),'0 - PUC'!$H$5,'0 - PUC'!$H$6)-1) -> 0.24
B149: 110 | C149: Conserto de rede de água | D149: 03.06.00.23 | E149: m | F149: 39.91 | G149: 49.49 | H149: =IF(F149="","",IF(ISERR(SEARCH("18.",D149)),'0 - PUC'!$H$5,'0 - PUC'!$H$6)-1) -> 0.24
B150: 111 | C150: Conserto de ramal de água | D150: 03.06.00.24 | E150: m | F150: 20.32 | G150: 25.2 | H150: =IF(F150="","",IF(ISERR(SEARCH("18.",D150)),'0 - PUC'!$H$5,'0 - PUC'!$H$6)-1) -> 0.24
B151: 112 | C151: Execução de caixa de pluvial | D151: 03.06.00.25 | E151: un | F151: 1792.89 | G151: 2223.18 | H151: =IF(F151="","",IF(ISERR(SEARCH("18.",D151)),'0 - PUC'!$H$5,'0 - PUC'!$H$6)-1) -> 0.24
B153: RAZÃO SOCIAL DO PROPONENTE | D153: RESPONSÁVEL PROPONENTE | H153: DATA
B156: ='1 - DCCU'!$B$4:$E$4 -> MUNICÍPIO: NOVO HAMBURGO
B157: ='1 - DCCU'!$B$5:$E$5 -> OBRA: TERRAPLENAGEM ETE LUIZ RAU
B158: ITEM | C158: DISCRIMINAÇÃO | D158: CÓDIGO | E158: UN | F158: CUSTO UNITÁRIO (SEM B.D.I.) | G158: PREÇO UNITÁRIO (COM B.D.I.) | H158: B.D.I. APLICADO
B162: 113 | C162: =VLOOKUP(D162,ITENS,2,0) -> Remanejamento de rede pluvial DN 300 | D162: 03.06.00.26 | E162: =VLOOKUP(D162,ITENS,3,0) -> m | F162: =VLOOKUP(D162,ITENS,7,0) -> 245.79 | G162: =VLOOKUP(D162,ITENS,8,0) -> 304.78 | H162: =IF(F162="","",IF(ISERR(SEARCH("18.",D162)),'0 - PUC'!$H$5,'0 - PUC'!$H$6)-1) -> 0.24
B163: 114 | C163: Remanejamento de rede pluvial DN 400 | D163: 03.06.00.27 | E163: m | F163: 296.49 | G163: 367.65 | H163: =IF(F163="","",IF(ISERR(SEARCH("18.",D163)),'0 - PUC'!$H$5,'0 - PUC'!$H$6)-1) -> 0.24
B164: 115 | C164: Remanejamento de rede pluvial DN 500 | D164: 03.06.00.28 | E164: m | F164: 353.86 | G164: 438.79 | H164: =IF(F164="","",IF(ISERR(SEARCH("18.",D164)),'0 - PUC'!$H$5,'0 - PUC'!$H$6)-1) -> 0.24
B165: 116 | C165: Remanejamento de rede pluvial DN 600 | D165: 03.06.00.29 | E165: m | F165: 406.91 | G165: 504.57 | H165: =IF(F165="","",IF(ISERR(SEARCH("18.",D165)),'0 - PUC'!$H$5,'0 - PUC'!$H$6)-1) -> 0.24
B166: 117 | C166: Corte, Recorte e Remoção de Árvores inclusive raízes 5 cm < DAP < 15 cm | D166: 03.08.00.01 | E166: un | F166: 125.21 | G166: 155.26 | H166: =IF(F166="","",IF(ISERR(SEARCH("18.",D166)),'0 - PUC'!$H$5,'0 - PUC'!$H$6)-1) -> 0.24
B167: 118 | C167: Corte, Recorte e Remoção de Árvores inclusive raízes 15 cm < DAP < 30 cm | D167: 03.08.00.02 | E167: un | F167: 228.96 | G167: 283.91 | H167: =IF(F167="","",IF(ISERR(SEARCH("18.",D167)),'0 - PUC'!$H$5,'0 - PUC'!$H$6)-1) -> 0.24
B168: 119 | C168: Corte, Recorte e Remoção de Árvores inclusive raízes 30 cm < DAP < 60 cm | D168: 03.08.00.03 | E168: un | F168: 343.44 | G168: 425.87 | H168: =IF(F168="","",IF(ISERR(SEARCH("18.",D168)),'0 - PUC'!$H$5,'0 - PUC'!$H$6)-1) -> 0.24
B169: 120 | C169: Corte, Recorte e Remoção de Árvores inclusive raízes 60 cm < DAP < 90 cm | D169: 03.08.00.04 | E169: un | F169: 457.94 | G169: 567.85 | H169: =IF(F169="","",IF(ISERR(SEARCH("18.",D169)),'0 - PUC'!$H$5,'0 - PUC'!$H$6)-1) -> 0.24
B170: 121 | C170: Corte, Recorte e Remoção de Árvores inclusive raízes DAP > 90 cm | D170: 03.08.00.05 | E170: un | F170: 572.4 | G170: 709.78 | H170: =IF(F170="","",IF(ISERR(SEARCH("18.",D170)),'0 - PUC'!$H$5,'0 - PUC'!$H$6)-1) -> 0.24
B171: 122 | C171: =VLOOKUP(D171,ITENS,2,0) -> Escavação localizada manual, solo 0-2 m | D171: 04.01.01.42 | E171: =VLOOKUP(D171,ITENS,3,0) -> m3 | F171: =VLOOKUP(D171,ITENS,7,0) -> 37.97 | G171: =VLOOKUP(D171,ITENS,8,0) -> 47.08 | H171: =IF(F171="","",IF(ISERR(SEARCH("18.",D171)),'0 - PUC'!$H$5,'0 - PUC'!$H$6)-1) -> 0.24
B172: 123 | C172: =VLOOKUP(D172,ITENS,2,0) -> Escavação localizada manual, solo 0-3 m | D172: 04.01.01.43 | E172: =VLOOKUP(D172,ITENS,3,0) -> m3 | F172: =VLOOKUP(D172,ITENS,7,0) -> 44.74 | G172: =VLOOKUP(D172,ITENS,8,0) -> 55.48 | H172: =IF(F172="","",IF(ISERR(SEARCH("18.",D172)),'0 - PUC'!$H$5,'0 - PUC'!$H$6)-1) -> 0.24
B173: 124 | C173: =VLOOKUP(D173,ITENS,2,0) -> Escavação localizada manual, solo 0-4 m | D173: 04.01.01.44 | E173: =VLOOKUP(D173,ITENS,3,0) -> m3 | F173: =VLOOKUP(D173,ITENS,7,0) -> 52.83 | G173: =VLOOKUP(D173,ITENS,8,0) -> 65.51 | H173: =IF(F173="","",IF(ISERR(SEARCH("18.",D173)),'0 - PUC'!$H$5,'0 - PUC'!$H$6)-1) -> 0.24
B174: 125 | C174: Escavação localizada manual, rocha decomposta 0-2 m | D174: 04.01.01.52 | E174: m3 | F174: 62.41 | G174: 77.39 | H174: =IF(F174="","",IF(ISERR(SEARCH("18.",D174)),'0 - PUC'!$H$5,'0 - PUC'!$H$6)-1) -> 0.24
B175: 126 | C175: Escavação localizada manual, rocha decomposta 0-3 m | D175: 04.01.01.53 | E175: m3 | F175: 73.63 | G175: 91.3 | H175: =IF(F175="","",IF(ISERR(SEARCH("18.",D175)),'0 - PUC'!$H$5,'0 - PUC'!$H$6)-1) -> 0.24
B176: 127 | C176: Escavação localizada manual, rocha decomposta 0-4 m | D176: 04.01.01.54 | E176: m3 | F176: 86.84 | G176: 107.68 | H176: =IF(F176="","",IF(ISERR(SEARCH("18.",D176)),'0 - PUC'!$H$5,'0 - PUC'!$H$6)-1) -> 0.24
B177: 128 | C177: Escavação localizada mecânica, solo 0-2 m | D177: 04.01.02.42 | E177: m3 | F177: 7.7 | G177: 9.55 | H177: =IF(F177="","",IF(ISERR(SEARCH("18.",D177)),'0 - PUC'!$H$5,'0 - PUC'!$H$6)-1) -> 0.24
B178: 129 | C178: Escavação localizada mecânica, solo 0-3 m | D178: 04.01.02.43 | E178: m3 | F178: 8.28 | G178: 10.27 | H178: =IF(F178="","",IF(ISERR(SEARCH("18.",D178)),'0 - PUC'!$H$5,'0 - PUC'!$H$6)-1) -> 0.24
B179: 130 | C179: Escavação localizada mecânica, solo 0-4 m | D179: 04.01.02.44 | E179: m3 | F179: 8.94 | G179: 11.09 | H179: =IF(F179="","",IF(ISERR(SEARCH("18.",D179)),'0 - PUC'!$H$5,'0 - PUC'!$H$6)-1) -> 0.24
B180: 131 | C180: Escavação localizada mecânica, solo 0-5 m | D180: 04.01.02.45 | E180: m3 | F180: 10.07 | G180: 12.49 | H180: =IF(F180="","",IF(ISERR(SEARCH("18.",D180)),'0 - PUC'!$H$5,'0 - PUC'!$H$6)-1) -> 0.24
B181: 132 | C181: Escavação localizada mecânica, solo 0-6 m | D181: 04.01.02.46 | E181: m3 | F181: 10.89 | G181: 13.5 | H181: =IF(F181="","",IF(ISERR(SEARCH("18.",D181)),'0 - PUC'!$H$5,'0 - PUC'!$H$6)-1) -> 0.24
B182: 133 | C182: Escavação localizada mecânica, solo 0-7 m | D182: 04.01.02.47 | E182: m3 | F182: 11.75 | G182: 14.57 | H182: =IF(F182="","",IF(ISERR(SEARCH("18.",D182)),'0 - PUC'!$H$5,'0 - PUC'!$H$6)-1) -> 0.24
B183: 134 | C183: Escavação localizada mecânica, solo 0-8 m | D183: 04.01.02.48 | E183: m3 | F183: 12.69 | G183: 15.74 | H183: =IF(F183="","",IF(ISERR(SEARCH("18.",D183)),'0 - PUC'!$H$5,'0 - PUC'!$H$6)-1) -> 0.24
B184: 135 | C184: Escavação localizada mecânica, rocha decomposta 0-2 m | D184: 04.01.02.52 | E184: m3 | F184: 9.89 | G184: 12.26 | H184: =IF(F184="","",IF(ISERR(SEARCH("18.",D184)),'0 - PUC'!$H$5,'0 - PUC'!$H$6)-1) -> 0.24
B185: 136 | C185: Escavação localizada mecânica, rocha decomposta 0-3 m | D185: 04.01.02.53 | E185: m3 | F185: 10.64 | G185: 13.19 | H185: =IF(F185="","",IF(ISERR(SEARCH("18.",D185)),'0 - PUC'!$H$5,'0 - PUC'!$H$6)-1) -> 0.24
B186: 137 | C186: Escavação localizada mecânica, rocha decomposta 0-4 m | D186: 04.01.02.54 | E186: m3 | F186: 11.5 | G186: 14.26 | H186: =IF(F186="","",IF(ISERR(SEARCH("18.",D186)),'0 - PUC'!$H$5,'0 - PUC'!$H$6)-1) -> 0.24
B187: 138 | C187: Escavação localizada mecânica, rocha decomposta 0-5 m | D187: 04.01.02.55 | E187: m3 | F187: 12.65 | G187: 15.69 | H187: =IF(F187="","",IF(ISERR(SEARCH("18.",D187)),'0 - PUC'!$H$5,'0 - PUC'!$H$6)-1) -> 0.24
B188: 139 | C188: Escavação localizada mecânica, rocha decomposta 0-6 m | D188: 04.01.02.56 | E188: m3 | F188: 13.51 | G188: 16.75 | H188: =IF(F188="","",IF(ISERR(SEARCH("18.",D188)),'0 - PUC'!$H$5,'0 - PUC'!$H$6)-1) -> 0.24
B189: 140 | C189: Escavação localizada mecânica, rocha decomposta 0-7 m | D189: 04.01.02.57 | E189: m3 | F189: 14.37 | G189: 17.82 | H189: =IF(F189="","",IF(ISERR(SEARCH("18.",D189)),'0 - PUC'!$H$5,'0 - PUC'!$H$6)-1) -> 0.24
B191: RAZÃO SOCIAL DO PROPONENTE | D191: RESPONSÁVEL PROPONENTE | H191: DATA
B194: ='1 - DCCU'!$B$4:$E$4 -> MUNICÍPIO: NOVO HAMBURGO
B195: ='1 - DCCU'!$B$5:$E$5 -> OBRA: TERRAPLENAGEM ETE LUIZ RAU
B196: ITEM | C196: DISCRIMINAÇÃO | D196: CÓDIGO | E196: UN | F196: CUSTO UNITÁRIO (SEM B.D.I.) | G196: PREÇO UNITÁRIO (COM B.D.I.) | H196: B.D.I. APLICADO
B200: 141 | C200: =VLOOKUP(D200,ITENS,2,0) -> Escavação localizada mecânica, rocha decomposta 0-8 m | D200: 04.01.02.58 | E200: =VLOOKUP(D200,ITENS,3,0) -> m3 | F200: =VLOOKUP(D200,ITENS,7,0) -> 15.35 | G200: =VLOOKUP(D200,ITENS,8,0) -> 19.03 | H200: =IF(F200="","",IF(ISERR(SEARCH("18.",D200)),'0 - PUC'!$H$5,'0 - PUC'!$H$6)-1) -> 0.24
B201: 142 | C201: Escavação de valas manual, solo 0-2 m | D201: 04.02.01.42 | E201: m3 | F201: 49.53 | G201: 61.42 | H201: =IF(F201="","",IF(ISERR(SEARCH("18.",D201)),'0 - PUC'!$H$5,'0 - PUC'!$H$6)-1) -> 0.24
B202: 143 | C202: Escavação de valas manual, solo 0-3 m | D202: 04.02.01.43 | E202: m3 | F202: 58.45 | G202: 72.48 | H202: =IF(F202="","",IF(ISERR(SEARCH("18.",D202)),'0 - PUC'!$H$5,'0 - PUC'!$H$6)-1) -> 0.24
B203: 144 | C203: Escavação de valas manual, solo 0-4 m | D203: 04.02.01.44 | E203: m3 | F203: 68.97 | G203: 85.52 | H203: =IF(F203="","",IF(ISERR(SEARCH("18.",D203)),'0 - PUC'!$H$5,'0 - PUC'!$H$6)-1) -> 0.24
B204: 145 | C204: Escavação de valas manual, rocha decomposta 0-2 m | D204: 04.02.01.52 | E204: m3 | F204: 67.69 | G204: 83.94 | H204: =IF(F204="","",IF(ISERR(SEARCH("18.",D204)),'0 - PUC'!$H$5,'0 - PUC'!$H$6)-1) -> 0.24
B205: 146 | C205: Escavação de valas manual, rocha decomposta 0-3 m | D205: 04.02.01.53 | E205: m3 | F205: 79.88 | G205: 99.05 | H205: =IF(F205="","",IF(ISERR(SEARCH("18.",D205)),'0 - PUC'!$H$5,'0 - PUC'!$H$6)-1) -> 0.24
B206: 147 | C206: Escavação de valas manual, rocha decomposta 0-4 m | D206: 04.02.01.54 | E206: m3 | F206: 94.25 | G206: 116.87 | H206: =IF(F206="","",IF(ISERR(SEARCH("18.",D206)),'0 - PUC'!$H$5,'0 - PUC'!$H$6)-1) -> 0.24
B207: 148 | C207: Escavação de valas mecânica, solo 0-2 m | D207: 04.02.02.42 | E207: m3 | F207: 8.2 | G207: 10.17 | H207: =IF(F207="","",IF(ISERR(SEARCH("18.",D207)),'0 - PUC'!$H$5,'0 - PUC'!$H$6)-1) -> 0.24
B208: 149 | C208: Escavação de valas mecânica, solo 0-3 m | D208: 04.02.02.43 | E208: m3 | F208: 7.6 | G208: 9.42 | H208: =IF(F208="","",IF(ISERR(SEARCH("18.",D208)),'0 - PUC'!$H$5,'0 - PUC'!$H$6)-1) -> 0.24
B209: 150 | C209: =VLOOKUP(D209,ITENS,2,0) -> Escavação de valas mecânica, solo 0-4 m | D209: 04.02.02.44 | E209: =VLOOKUP(D209,ITENS,3,0) -> m3 | F209: =VLOOKUP(D209,ITENS,7,0) -> 6.74 | G209: =VLOOKUP(D209,ITENS,8,0) -> 8.36 | H209: =IF(F209="","",IF(ISERR(SEARCH("18.",D209)),'0 - PUC'!$H$5,'0 - PUC'!$H$6)-1) -> 0.24
B210: 151 | C210: Escavação de valas mecânica, solo 0-5 m | D210: 04.02.02.45 | E210: m3 | F210: 6.47 | G210: 8.02 | H210: =IF(F210="","",IF(ISERR(SEARCH("18.",D210)),'0 - PUC'!$H$5,'0 - PUC'!$H$6)-1) -> 0.24
B211: 152 | C211: Escavação de valas mecânica, solo 0-6 m | D211: 04.02.02.46 | E211: m3 | F211: 6.19 | G211: 7.68 | H211: =IF(F211="","",IF(ISERR(SEARCH("18.",D211)),'0 - PUC'!$H$5,'0 - PUC'!$H$6)-1) -> 0.24
B212: 153 | C212: Escavação de valas mecânica, solo 0-7 m | D212: 04.02.02.47 | E212: m3 | F212: 6.19 | G212: 7.68 | H212: =IF(F212="","",IF(ISERR(SEARCH("18.",D212)),'0 - PUC'!$H$5,'0 - PUC'!$H$6)-1) -> 0.24
B213: 154 | C213: Escavação de valas mecânica, rocha decomposta 0-2 m | D213: 04.02.02.52 | E213: m3 | F213: 12.08 | G213: 14.98 | H213: =IF(F213="","",IF(ISERR(SEARCH("18.",D213)),'0 - PUC'!$H$5,'0 - PUC'!$H$6)-1) -> 0.24
B214: 155 | C214: Escavação de valas mecânica, rocha decomposta 0-3 m | D214: 04.02.02.53 | E214: m3 | F214: 13 | G214: 16.12 | H214: =IF(F214="","",IF(ISERR(SEARCH("18.",D214)),'0 - PUC'!$H$5,'0 - PUC'!$H$6)-1) -> 0.24
B215: 156 | C215: Escavação de valas mecânica, rocha decomposta 0-4 m | D215: 04.02.02.54 | E215: m3 | F215: 14.06 | G215: 17.43 | H215: =IF(F215="","",IF(ISERR(SEARCH("18.",D215)),'0 - PUC'!$H$5,'0 - PUC'!$H$6)-1) -> 0.24
B216: 157 | C216: Escavação de valas mecânica, rocha decomposta 0-5 m | D216: 04.02.02.55 | E216: m3 | F216: 14.46 | G216: 17.93 | H216: =IF(F216="","",IF(ISERR(SEARCH("18.",D216)),'0 - PUC'!$H$5,'0 - PUC'!$H$6)-1) -> 0.24
B217: 158 | C217: Escavação de valas mecânica, rocha decomposta 0-6 m | D217: 04.02.02.56 | E217: m3 | F217: 15.36 | G217: 19.05 | H217: =IF(F217="","",IF(ISERR(SEARCH("18.",D217)),'0 - PUC'!$H$5,'0 - PUC'!$H$6)-1) -> 0.24
B218: 159 | C218: Escavação de valas mecânica, rocha decomposta 0-7 m | D218: 04.02.02.57 | E218: m3 | F218: 16.26 | G218: 20.16 | H218: =IF(F218="","",IF(ISERR(SEARCH("18.",D218)),'0 - PUC'!$H$5,'0 - PUC'!$H$6)-1) -> 0.24
B219: 160 | C219: Escavação em rocha branda localizada a frio 0-2 m | D219: 04.03.02.02 | E219: m3 | F219: 73.55 | G219: 91.2 | H219: =IF(F219="","",IF(ISERR(SEARCH("18.",D219)),'0 - PUC'!$H$5,'0 - PUC'!$H$6)-1) -> 0.24
B220: 161 | C220: Escavação em rocha branda localizada a frio 0-3 m | D220: 04.03.02.03 | E220: m3 | F220: 80.84 | G220: 100.24 | H220: =IF(F220="","",IF(ISERR(SEARCH("18.",D220)),'0 - PUC'!$H$5,'0 - PUC'!$H$6)-1) -> 0.24
B221: 162 | C221: Escavação em rocha branda localizada a frio 0-4 m | D221: 04.03.02.04 | E221: m3 | F221: 88.32 | G221: 109.52 | H221: =IF(F221="","",IF(ISERR(SEARCH("18.",D221)),'0 - PUC'!$H$5,'0 - PUC'!$H$6)-1) -> 0.24
B222: 163 | C222: Escavação em rocha branda localizada a frio 0-5 m | D222: 04.03.02.05 | E222: m3 | F222: 91.6 | G222: 113.58 | H222: =IF(F222="","",IF(ISERR(SEARCH("18.",D222)),'0 - PUC'!$H$5,'0 - PUC'!$H$6)-1) -> 0.24
B223: 164 | C223: Escavação em rocha branda localizada a frio 0-6 m | D223: 04.03.02.06 | E223: m3 | F223: 98.57 | G223: 122.23 | H223: =IF(F223="","",IF(ISERR(SEARCH("18.",D223)),'0 - PUC'!$H$5,'0 - PUC'!$H$6)-1) -> 0.24
B224: 165 | C224: Escavação em rocha branda localizada a frio 0-7 m | D224: 04.03.02.07 | E224: m3 | F224: 106.01 | G224: 131.45 | H224: =IF(F224="","",IF(ISERR(SEARCH("18.",D224)),'0 - PUC'!$H$5,'0 - PUC'!$H$6)-1) -> 0.24
B225: 166 | C225: Escavação em rocha branda localizada a frio 0-8 m | D225: 04.03.02.08 | E225: m3 | F225: 114.05 | G225: 141.42 | H225: =IF(F225="","",IF(ISERR(SEARCH("18.",D225)),'0 - PUC'!$H$5,'0 - PUC'!$H$6)-1) -> 0.24
B226: 167 | C226: Escavação em rocha branda valas a frio 0-2 m | D226: 04.04.02.02 | E226: m3 | F226: 84.4 | G226: 104.66 | H226: =IF(F226="","",IF(ISERR(SEARCH("18.",D226)),'0 - PUC'!$H$5,'0 - PUC'!$H$6)-1) -> 0.24
B227: 168 | C227: Escavação em rocha branda valas a frio 0-3 m | D227: 04.04.02.03 | E227: m3 | F227: 92.87 | G227: 115.16 | H227: =IF(F227="","",IF(ISERR(SEARCH("18.",D227)),'0 - PUC'!$H$5,'0 - PUC'!$H$6)-1) -> 0.24
B229: RAZÃO SOCIAL DO PROPONENTE | D229: RESPONSÁVEL PROPONENTE | H229: DATA
B232: ='1 - DCCU'!$B$4:$E$4 -> MUNICÍPIO: NOVO HAMBURGO
B233: ='1 - DCCU'!$B$5:$E$5 -> OBRA: TERRAPLENAGEM ETE LUIZ RAU
B234: ITEM | C234: DISCRIMINAÇÃO | D234: CÓDIGO | E234: UN | F234: CUSTO UNITÁRIO (SEM B.D.I.) | G234: PREÇO UNITÁRIO (COM B.D.I.) | H234: B.D.I. APLICADO
B238: 169 | C238: =VLOOKUP(D238,ITENS,2,0) -> Escavação em rocha branda valas a frio 0-4 m | D238: 04.04.02.04 | E238: =VLOOKUP(D238,ITENS,3,0) -> m3 | F238: =VLOOKUP(D238,ITENS,7,0) -> 101.29 | G238: =VLOOKUP(D238,ITENS,8,0) -> 125.6 | H238: =IF(F238="","",IF(ISERR(SEARCH("18.",D238)),'0 - PUC'!$H$5,'0 - PUC'!$H$6)-1) -> 0.24
B239: 170 | C239: Escavação em rocha branda valas a frio 0-5 m | D239: 04.04.02.05 | E239: =VLOOKUP(D239,ITENS,3,0) -> m3 | F239: =VLOOKUP(D239,ITENS,7,0) -> 101.15 | G239: =VLOOKUP(D239,ITENS,8,0) -> 125.43 | H239: =IF(F239="","",IF(ISERR(SEARCH("18.",D239)),'0 - PUC'!$H$5,'0 - PUC'!$H$6)-1) -> 0.24
B240: 171 | C240: Escavação em rocha branda valas a frio 0-6 m | D240: 04.04.02.06 | E240: m3 | F240: =VLOOKUP(D240,ITENS,7,0) -> 108.96 | G240: =VLOOKUP(D240,ITENS,8,0) -> 135.11 | H240: =IF(F240="","",IF(ISERR(SEARCH("18.",D240)),'0 - PUC'!$H$5,'0 - PUC'!$H$6)-1) -> 0.24
... 942 more rows

Sheet 6 - BDI
B2: SERVIÇOS DE ÁGUA E ESGOTO DE NOVO HAMBURGO
B3: COMPOSIÇÃO ANALÍTICA DO B.D.I. (BENEFÍCIOS E DESPESAS INDIRETAS) - SERVIÇOS
B4: ='1 - DCCU'!$B$4:$E$4 -> MUNICÍPIO: NOVO HAMBURGO
B5: ='1 - DCCU'!$B$5:$E$5 -> OBRA: TERRAPLENAGEM ETE LUIZ RAU
B7: ITEM | C7: DISCRIMINAÇÃO | D7: TOTAL
B10: 1 | C10: DESPESAS INDIRETAS - DI
B11: 1.1 | C11: Administração Central | D11: 0.051
B13: 2 | C13: DESPESAS EVENTUAIS E RISCOS - DE
B14: 2.1 | C14: Risco | D14: =IF('0 - PUC'!$H$5=1.24,0.0065,IF('0 - PUC'!$H$5=1.25,0.00687,0)) -> 0.0065
B15: 2.2 | C15: Seguro de Responsabilidade Civil | D15: 0.0024
B16: 2.3 | C16: Custo Financeiro da Caução | D16: 0.0021
B18: 3 | C18: DESPESAS FINANCEIRAS - DF
B19: 3.1 | C19: Despesas Financeiras | D19: 0.01
B21: 4 | C21: LUCRO BRUTO - LB
B22: 4.1 | C22: Lucro Bruto | D22: =IF('0 - PUC'!$H$5=1.24,0.091,IF('0 - PUC'!$H$5=1.25,0.0875,0)) -> 0.091
B24: 5 | C24: DESPESAS LEGAIS - DL
B25: 5.1 | C25: ISS | D25: 0.02
B26: 5.2 | C26: PIS | D26: 0.0065
B27: 5.3 | C27: COFINS | D27: 0.03
C42: MEMÓRIA DE CÁLCULO
C43: (1 + DI + DE) | D43: =1+D11+D14+D15+D16 -> 1.062
C44: (1 + DF) | D44: =1+D19 -> 1.01
C45: (1 + LB) | D45: =1+D22 -> 1.091
C46: (1 + (DI + DE) x (1 + DF) x (1 + LB) | D46: =D43*D44*D45 -> 1.17022842
C47: (1 - DL) | D47: =1-D25-D26-D27-D28-D29 -> 0.9435
C48: (((1 + (DI + DE) x (1 + DF) x (1 + LB)) / (1 - DL)) - 1 | D48: =(D46/D47-1) -> 0.2403056916
B51: BDI ( % ) | D51: =ROUND(D48*100,1) -> 24
B55: COMPOSIÇÃO ANALÍTICA DO B.D.I. (BENEFÍCIOS E DESPESAS INDIRETAS) - MATERIAIS
B56: ='1 - DCCU'!$B$4:$E$4 -> MUNICÍPIO: NOVO HAMBURGO
B57: ='1 - DCCU'!$B$5:$E$5 -> OBRA: TERRAPLENAGEM ETE LUIZ RAU
B59: ITEM | C59: DISCRIMINAÇÃO | D59: TOTAL
B62: 1 | C62: DESPESAS INDIRETAS - DI
B63: 1.1 | C63: Administração Central | D63: 0.04
B65: 2 | C65: DESPESAS EVENTUAIS E RISCOS - DE
B66: 2.1 | C66: Risco | D66: 0.005
B67: 2.2 | C67: Seguro de Responsabilidade Civil | D67: 0.0024
B68: 2.3 | C68: Custo Financeiro da Caução | D68: 0.0021
B70: 3 | C70: DESPESAS FINANCEIRAS - DF
B71: 3.1 | C71: Despesas Financeiras | D71: 0.01
B73: 4 | C73: LUCRO BRUTO - LB
B74: 4.1 | C74: Lucro Bruto | D74: =IF('0 - PUC'!$H$5=1.24,0.059,IF('0 - PUC'!$H$5=1.25,0.057,0)) -> 0.059
B76: 5 | C76: DESPESAS LEGAIS - DL
B77: 5.1 | C77: ISS | D77: 0,0000
B78: 5.2 | C78: PIS | D78: 0.0065
B79: 5.3 | C79: COFINS | D79: 0.03
C94: MEMÓRIA DE CÁLCULO
C95: (1 + DI + DE) | D95: =1+D63+D66+D67+D68 -> 1.0495
C96: (1 + DF) | D96: =1+D71 -> 1.01
C97: (1 + LB) | D97: =1+D74 -> 1.059
C98: (1 + (DI + DE) x (1 + DF) x (1 + LB) | D98: =D95*D96*D97 -> 1.122534705
C99: (1 - DL) | D99: =1-D77-D78-D79-D80-D81 -> 0.9635
C100: (((1 + (DI + DE) x (1 + DF) x (1 + LB)) / (1 - DL)) - 1 | D100: =(D98/D99-1) -> 0.1650593721
B103: BDI ( % ) | D103: =ROUND(D100*100,1) -> 16.5

Sheet 7 - ES
B2: SERVIÇOS DE ÁGUA E ESGOTO DE NOVO HAMBURGO
B3: DEMONSTRATIVO DA COMPOSIÇÃO DOS ENCARGOS SOCIAIS SOBRE MÃO DE OBRA - NÃO DESONERADO
B4: ='1 - DCCU'!$B$4:$E$4 -> MUNICÍPIO: NOVO HAMBURGO
B5: ='1 - DCCU'!$B$5:$E$5 -> OBRA: TERRAPLENAGEM ETE LUIZ RAU
B7: ITEM | C7: DISCRIMINAÇÃO | D7: TOTAL
B10: 1 | C10: GRUPO A
B11: A1 | C11: INSS | D11: 20
B12: A2 | C12: SESI | D12: 1.5
B13: A3 | C13: SENAI | D13: 1
B14: A4 | C14: INCRA | D14: 0.2
B15: A5 | C15: SEBRAE | D15: 0.6
B16: A6 | C16: Salário Educação | D16: 2.5
B17: A7 | C17: Seguro Contra Acidentes de Trabalho | D17: 3
B18: A8 | C18: FGTS | D18: 8
B19: A9 | C19: SECONCI | D19: -
C20: TOTAL | D20: =SUM(D11:D19) -> 36.8
C22: GRUPO B
B23: B1 | C23: Repouso Semanal Remunerado | D23: 17.93
B24: B2 | C24: Feriados | D24: 4.24
B25: B3 | C25: Auxílio - enfermidade | D25: 0.89
B26: B4 | C26: 13º Salário | D26: 10.77
B27: B5 | C27: Licença Paternidade | D27: 0.07
B28: B6 | C28: Faltas Justificadas | D28: 0.72
B29: B7 | C29: Dias de Chuvas | D29: 1.53
B30: B8 | C30: Auxílio Acidente de Trabalho | D30: 0.11
B31: B9 | C31: Férias Gozadas | D31: 7.4
B32: B10 | C32: Salário Maternidade | D32: 0.03
C33: TOTAL | D33: =SUM(D23:D32) -> 43.69
C35: GRUPO C
B36: C1 | C36: Aviso Prévio Indenizado | D36: 4.28
B37: C2 | C37: Aviso Prévio Trabalhado | D37: 0.1
B38: C3 | C38: Férias Indenizadas | D38: 5.29
B39: C4 | C39: Depósito Rescisão sem Justa Causa | D39: 3.63
B40: C5 | C40: Indenização Adicional | D40: 0.36
C41: TOTAL | D41: =SUM(D36:D40) -> 13.66
C43: GRUPO D
B44: D1 | C44: Reincidência do Grupo A sobre o Grupo B | D44: 16.08
B45: D2 | C45: Reincidência do Grupo A sobre Aviso Prévio Trabalhado e Reincidência do FGTS | D45: 0.38
C46: sobre Aviso Prévio Indenizado
C47: TOTAL | D47: =SUM(D42:D46) -> 16.46
B51: Total ( % ) | D51: =SUM(D47,D41,D33,D20) -> 110.61

Sheet 8 - APOIO
B2: M112 - Administração Local
B3: Custo Total da Obra (Sem B.D.I): | D3: ='3 - DCCU Resumo'!C50 -> 4859729.17
B4: Custo dos Serviços da Obra (Sem B.D.I): | D4: =SUMIF('1 - DCCU'!I10:I10000,'0 - PUC'!H5-1,'1 - DCCU'!H10:H10000) -> 2857180.52

Sheet Sinapi(Composições)
A1: PCI.817.01 - CUSTO DE COMPOSIÇÕES - SINTÉTICO DATA DE EMISSÃO: 11/09/2020 23:58:42 DATA DE RT: 11/09/2020
A2: ENCARGOS SOCIAIS SOBRE PREÇOS DA MÃO-DE-OBRA: 110,61%(HORA) 68,86%(MÊS)
A3: ABRANGÊNCIA : NACIONAL LOCALIDADE : PORTO ALEGRE DATA DE PREÇO : 08/2020 REFERÊNCIA COLETA : MEDIANO
A5: CODIGO DA COMPOSICAO | B5: DESCRICAO DA COMPOSICAO | C5: UNIDADE | D5: CUSTO TOTAL | E5: VINCULO
A7: 97141 | B7: ASSENTAMENTO DE TUBO DE FERRO FUNDIDO PARA REDE DE ÁGUA, DN 80 MM, JUNTA ELÁSTICA, INSTALADO EM LOCAL COM NÍVEL ALTO DE INTERFERÊNCIAS (NÃO INCLUI FORNECIMENTO). AF_11/2017 | C7: M | D7: 6.23 | E7: CAIXA REFERENCIAL | G7: =A7*1 -> 97141 | H7: 97141
A8: 97142 | B8: ASSENTAMENTO DE TUBO DE FERRO FUNDIDO PARA REDE DE ÁGUA, DN 100 MM, JUNTA ELÁSTICA, INSTALADO EM LOCAL COM NÍVEL ALTO DE INTERFERÊNCIAS (NÃO INCLUI FORNECIMENTO). AF_11/2017 | C8: M | D8: 6,98 | E8: CAIXA REFERENCIAL | G8: =A8*1 -> 97142 | H8: 97142
A9: 97143 | B9: ASSENTAMENTO DE TUBO DE FERRO FUNDIDO PARA REDE DE ÁGUA, DN 150 MM, JUNTA ELÁSTICA, INSTALADO EM LOCAL COM NÍVEL ALTO DE INTERFERÊNCIAS (NÃO INCLUI FORNECIMENTO). AF_11/2017 | C9: M | D9: 8,82 | E9: CAIXA REFERENCIAL | G9: 97143 | H9: 97143
A10: 97144 | B10: ASSENTAMENTO DE TUBO DE FERRO FUNDIDO PARA REDE DE ÁGUA, DN 200 MM, JUNTA ELÁSTICA, INSTALADO EM LOCAL COM NÍVEL ALTO DE INTERFERÊNCIAS (NÃO INCLUI FORNECIMENTO). AF_11/2017 | C10: M | D10: 10,66 | E10: CAIXA REFERENCIAL | G10: 97144 | H10: 97144
A11: 97145 | B11: ASSENTAMENTO DE TUBO DE FERRO FUNDIDO PARA REDE DE ÁGUA, DN 250 MM, JUNTA ELÁSTICA, INSTALADO EM LOCAL COM NÍVEL ALTO DE INTERFERÊNCIAS (NÃO INCLUI FORNECIMENTO). AF_11/2017 | C11: M | D11: 12,54 | E11: CAIXA REFERENCIAL | G11: 97145 | H11: 97145
A12: 97146 | B12: ASSENTAMENTO DE TUBO DE FERRO FUNDIDO PARA REDE DE ÁGUA, DN 300 MM, JUNTA ELÁSTICA, INSTALADO EM LOCAL COM NÍVEL ALTO DE INTERFERÊNCIAS (NÃO INCLUI FORNECIMENTO). AF_11/2017 | C12: M | D12: 14,39 | E12: CAIXA REFERENCIAL | G12: 97146 | H12: 97146
A13: 97147 | B13: ASSENTAMENTO DE TUBO DE FERRO FUNDIDO PARA REDE DE ÁGUA, DN 350 MM, JUNTA ELÁSTICA, INSTALADO EM LOCAL COM NÍVEL ALTO DE INTERFERÊNCIAS (NÃO INCLUI FORNECIMENTO). AF_11/2017 | C13: M | D13: 16,27 | E13: CAIXA REFERENCIAL | G13: 97147 | H13: 97147
A14: 97148 | B14: ASSENTAMENTO DE TUBO DE FERRO FUNDIDO PARA REDE DE ÁGUA, DN 400 MM, JUNTA ELÁSTICA, INSTALADO EM LOCAL COM NÍVEL ALTO DE INTERFERÊNCIAS (NÃO INCLUI FORNECIMENTO). AF_11/2017 | C14: M | D14: 18,12 | E14: CAIXA REFERENCIAL | G14: 97148 | H14: 97148
A15: 97149 | B15: ASSENTAMENTO DE TUBO DE FERRO FUNDIDO PARA REDE DE ÁGUA, DN 450 MM, JUNTA ELÁSTICA, INSTALADO EM LOCAL COM NÍVEL ALTO DE INTERFERÊNCIAS (NÃO INCLUI FORNECIMENTO). AF_11/2017 | C15: M | D15: 20,00 | E15: CAIXA REFERENCIAL | G15: 97149 | H15: 97149
A16: 97150 | B16: ASSENTAMENTO DE TUBO DE FERRO FUNDIDO PARA REDE DE ÁGUA, DN 500 MM, JUNTA ELÁSTICA, INSTALADO EM LOCAL COM NÍVEL ALTO DE INTERFERÊNCIAS (NÃO INCLUI FORNECIMENTO). AF_11/2017 | C16: M | D16: 24,37 | E16: CAIXA REFERENCIAL | G16: 97150 | H16: 97150
A17: 97151 | B17: ASSENTAMENTO DE TUBO DE FERRO FUNDIDO PARA REDE DE ÁGUA, DN 600 MM, JUNTA ELÁSTICA, INSTALADO EM LOCAL COM NÍVEL ALTO DE INTERFERÊNCIAS (NÃO INCLUI FORNECIMENTO). AF_11/2017 | C17: M | D17: 28,50 | E17: CAIXA REFERENCIAL | G17: 97151 | H17: 97151
A18: 97152 | B18: ASSENTAMENTO DE TUBO DE FERRO FUNDIDO PARA REDE DE ÁGUA, DN 700 MM, JUNTA ELÁSTICA, INSTALADO EM LOCAL COM NÍVEL ALTO DE INTERFERÊNCIAS (NÃO INCLUI FORNECIMENTO). AF_11/2017 | C18: M | D18: 32,41 | E18: CAIXA REFERENCIAL | G18: 97152 | H18: 97152
A19: 97153 | B19: ASSENTAMENTO DE TUBO DE FERRO FUNDIDO PARA REDE DE ÁGUA, DN 800 MM, JUNTA ELÁSTICA, INSTALADO EM LOCAL COM NÍVEL ALTO DE INTERFERÊNCIAS (NÃO INCLUI FORNECIMENTO). AF_11/2017 | C19: M | D19: 36,45 | E19: CAIXA REFERENCIAL | G19: 97153 | H19: 97153
A20: 97154 | B20: ASSENTAMENTO DE TUBO DE FERRO FUNDIDO PARA REDE DE ÁGUA, DN 900 MM, JUNTA ELÁSTICA, INSTALADO EM LOCAL COM NÍVEL ALTO DE INTERFERÊNCIAS (NÃO INCLUI FORNECIMENTO). AF_11/2017 | C20: M | D20: 40,51 | E20: CAIXA REFERENCIAL | G20: 97154 | H20: 97154
A21: 97155 | B21: ASSENTAMENTO DE TUBO DE FERRO FUNDIDO PARA REDE DE ÁGUA, DN 1000 MM, JUNTA ELÁSTICA, INSTALADO EM LOCAL COM NÍVEL ALTO DE INTERFERÊNCIAS (NÃO INCLUI FORNECIMENTO). AF_11/2017 | C21: M | D21: 44,57 | E21: CAIXA REFERENCIAL | G21: 97155 | H21: 97155
A22: 97156 | B22: ASSENTAMENTO DE TUBO DE FERRO FUNDIDO PARA REDE DE ÁGUA, DN 1200 MM, JUNTA ELÁSTICA, INSTALADO EM LOCAL COM NÍVEL ALTO DE INTERFERÊNCIAS (NÃO INCLUI FORNECIMENTO). AF_11/2017 | C22: M | D22: 53,08 | E22: CAIXA REFERENCIAL | G22: 97156 | H22: 97156
A23: 97157 | B23: ASSENTAMENTO DE TUBO DE FERRO FUNDIDO PARA REDE DE ÁGUA, DN 80 MM, JUNTA ELÁSTICA, INSTALADO EM LOCAL COM NÍVEL BAIXO DE INTERFERÊNCIAS (NÃO INCLUI FORNECIMENTO). AF_11/2017 | C23: M | D23: 3,75 | E23: CAIXA REFERENCIAL | G23: 97157 | H23: 97157
A24: 97158 | B24: ASSENTAMENTO DE TUBO DE FERRO FUNDIDO PARA REDE DE ÁGUA, DN 100 MM, JUNTA ELÁSTICA, INSTALADO EM LOCAL COM NÍVEL BAIXO DE INTERFERÊNCIAS (NÃO INCLUI FORNECIMENTO). AF_11/2017 | C24: M | D24: 4,22 | E24: CAIXA REFERENCIAL | G24: 97158 | H24: 97158
A25: 97159 | B25: ASSENTAMENTO DE TUBO DE FERRO FUNDIDO PARA REDE DE ÁGUA, DN 150 MM, JUNTA ELÁSTICA, INSTALADO EM LOCAL COM NÍVEL BAIXO DE INTERFERÊNCIAS (NÃO INCLUI FORNECIMENTO). AF_11/2017 | C25: M | D25: 5,33 | E25: CAIXA REFERENCIAL | G25: 97159 | H25: 97159
A26: 97160 | B26: ASSENTAMENTO DE TUBO DE FERRO FUNDIDO PARA REDE DE ÁGUA, DN 200 MM, JUNTA ELÁSTICA, INSTALADO EM LOCAL COM NÍVEL BAIXO DE INTERFERÊNCIAS (NÃO INCLUI FORNECIMENTO). AF_11/2017 | C26: M | D26: 6,45 | E26: CAIXA REFERENCIAL | G26: 97160 | H26: 97160
A27: 97161 | B27: ASSENTAMENTO DE TUBO DE FERRO FUNDIDO PARA REDE DE ÁGUA, DN 250 MM, JUNTA ELÁSTICA, INSTALADO EM LOCAL COM NÍVEL BAIXO DE INTERFERÊNCIAS (NÃO INCLUI FORNECIMENTO). AF_11/2017 | C27: M | D27: 7,61 | E27: CAIXA REFERENCIAL | G27: 97161 | H27: 97161
A28: 97162 | B28: ASSENTAMENTO DE TUBO DE FERRO FUNDIDO PARA REDE DE ÁGUA, DN 300 MM, JUNTA ELÁSTICA, INSTALADO EM LOCAL COM NÍVEL BAIXO DE INTERFERÊNCIAS (NÃO INCLUI FORNECIMENTO). AF_11/2017 | C28: M | D28: 8,73 | E28: CAIXA REFERENCIAL | G28: 97162 | H28: 97162
A29: 97163 | B29: ASSENTAMENTO DE TUBO DE FERRO FUNDIDO PARA REDE DE ÁGUA, DN 350 MM, JUNTA ELÁSTICA, INSTALADO EM LOCAL COM NÍVEL BAIXO DE INTERFERÊNCIAS (NÃO INCLUI FORNECIMENTO). AF_11/2017 | C29: M | D29: 9,88 | E29: CAIXA REFERENCIAL | G29: 97163 | H29: 97163
A30: 97164 | B30: ASSENTAMENTO DE TUBO DE FERRO FUNDIDO PARA REDE DE ÁGUA, DN 400 MM, JUNTA ELÁSTICA, INSTALADO EM LOCAL COM NÍVEL BAIXO DE INTERFERÊNCIAS (NÃO INCLUI FORNECIMENTO). AF_11/2017 | C30: M | D30: 11,01 | E30: CAIXA REFERENCIAL | G30: 97164 | H30: 97164
A31: 97165 | B31: ASSENTAMENTO DE TUBO DE FERRO FUNDIDO PARA REDE DE ÁGUA, DN 450 MM, JUNTA ELÁSTICA, INSTALADO EM LOCAL COM NÍVEL BAIXO DE INTERFERÊNCIAS (NÃO INCLUI FORNECIMENTO). AF_11/2017 | C31: M | D31: 12,18 | E31: CAIXA REFERENCIAL | G31: 97165 | H31: 97165
A32: 97166 | B32: ASSENTAMENTO DE TUBO DE FERRO FUNDIDO PARA REDE DE ÁGUA, DN 500 MM, JUNTA ELÁSTICA, INSTALADO EM LOCAL COM NÍVEL BAIXO DE INTERFERÊNCIAS (NÃO INCLUI FORNECIMENTO). AF_11/2017 | C32: M | D32: 14,84 | E32: CAIXA REFERENCIAL | G32: 97166 | H32: 97166
A33: 97167 | B33: ASSENTAMENTO DE TUBO DE FERRO FUNDIDO PARA REDE DE ÁGUA, DN 600 MM, JUNTA ELÁSTICA, INSTALADO EM LOCAL COM NÍVEL BAIXO DE INTERFERÊNCIAS (NÃO INCLUI FORNECIMENTO). AF_11/2017 | C33: M | D33: 17,39 | E33: CAIXA REFERENCIAL | G33: 97167 | H33: 97167
A34: 97168 | B34: ASSENTAMENTO DE TUBO DE FERRO FUNDIDO PARA REDE DE ÁGUA, DN 700 MM, JUNTA ELÁSTICA, INSTALADO EM LOCAL COM NÍVEL BAIXO DE INTERFERÊNCIAS (NÃO INCLUI FORNECIMENTO). AF_11/2017 | C34: M | D34: 19,71 | E34: CAIXA REFERENCIAL | G34: 97168 | H34: 97168
A35: 97169 | B35: ASSENTAMENTO DE TUBO DE FERRO FUNDIDO PARA REDE DE ÁGUA, DN 800 MM, JUNTA ELÁSTICA, INSTALADO EM LOCAL COM NÍVEL BAIXO DE INTERFERÊNCIAS (NÃO INCLUI FORNECIMENTO). AF_11/2017 | C35: M | D35: 22,16 | E35: CAIXA REFERENCIAL | G35: 97169 | H35: 97169
A36: 97170 | B36: ASSENTAMENTO DE TUBO DE FERRO FUNDIDO PARA REDE DE ÁGUA, DN 900 MM, JUNTA ELÁSTICA, INSTALADO EM LOCAL COM NÍVEL BAIXO DE INTERFERÊNCIAS (NÃO INCLUI FORNECIMENTO). AF_11/2017 | C36: M | D36: 24,64 | E36: CAIXA REFERENCIAL | G36: 97170 | H36: 97170
A37: 97171 | B37: ASSENTAMENTO DE TUBO DE FERRO FUNDIDO PARA REDE DE ÁGUA, DN 1000 MM, JUNTA ELÁSTICA, INSTALADO EM LOCAL COM NÍVEL BAIXO DE INTERFERÊNCIAS (NÃO INCLUI FORNECIMENTO). AF_11/2017 | C37: M | D37: 27,12 | E37: CAIXA REFERENCIAL | G37: 97171 | H37: 97171
A38: 97172 | B38: ASSENTAMENTO DE TUBO DE FERRO FUNDIDO PARA REDE DE ÁGUA, DN 1200 MM, JUNTA ELÁSTICA, INSTALADO EM LOCAL COM NÍVEL BAIXO DE INTERFERÊNCIAS (NÃO INCLUI FORNECIMENTO). AF_11/2017 | C38: M | D38: 32,46 | E38: CAIXA REFERENCIAL | G38: 97172 | H38: 97172
A39: 97173 | B39: ASSENTAMENTO DE TUBO DE AÇO CARBONO PARA REDE DE ÁGUA, DN 600 MM (24), JUNTA SOLDADA, INSTALADO EM LOCAL COM NÍVEL ALTO DE INTERFERÊNCIAS (NÃO INCLUI FORNECIMENTO). AF_11/2017 | C39: M | D39: 29,36 | E39: CAIXA REFERENCIAL | G39: 97173 | H39: 97173
A40: 97174 | B40: ASSENTAMENTO DE TUBO DE AÇO CARBONO PARA REDE DE ÁGUA, DN 700 MM (28), JUNTA SOLDADA, INSTALADO EM LOCAL COM NÍVEL ALTO DE INTERFERÊNCIAS (NÃO INCLUI FORNECIMENTO). AF_11/2017 | C40: M | D40: 33,99 | E40: CAIXA REFERENCIAL | G40: 97174 | H40: 97174
A41: 97175 | B41: ASSENTAMENTO DE TUBO DE AÇO CARBONO PARA REDE DE ÁGUA, DN 800 MM (32), JUNTA SOLDADA, INSTALADO EM LOCAL COM NÍVEL ALTO DE INTERFERÊNCIAS (NÃO INCLUI FORNECIMENTO). AF_11/2017 | C41: M | D41: 38,59 | E41: CAIXA REFERENCIAL | G41: 97175 | H41: 97175
A42: 97176 | B42: ASSENTAMENTO DE TUBO DE AÇO CARBONO PARA REDE DE ÁGUA, DN 900 MM (36), JUNTA SOLDADA, INSTALADO EM LOCAL COM NÍVEL ALTO DE INTERFERÊNCIAS (NÃO INCLUI FORNECIMENTO). AF_11/2017 | C42: M | D42: 43,20 | E42: CAIXA REFERENCIAL | G42: 97176 | H42: 97176
A43: 97177 | B43: ASSENTAMENTO DE TUBO DE AÇO CARBONO PARA REDE DE ÁGUA, DN 1000 MM (40) OU DN 1100 MM (44), JUNTA SOLDADA, INSTALADO EM LOCAL COM NÍVEL ALTO DE INTERFERÊNCIAS (NÃO INCLUI FORNECIMENTO). AF_11/2017 | C43: M | D43: 52,44 | E43: CAIXA REFERENCIAL | G43: 97177 | H43: 97177
A44: 97178 | B44: ASSENTAMENTO DE TUBO DE AÇO CARBONO PARA REDE DE ÁGUA, DN 1200 MM (48) OU DN 1300 MM (52), JUNTA SOLDADA, INSTALADO EM LOCAL COM NÍVEL ALTO DE INTERFERÊNCIAS (NÃO INCLUI FORNECIMENTO). AF_11/2017 | C44: M | D44: 61,67 | E44: CAIXA REFERENCIAL | G44: 97178 | H44: 97178
A45: 97179 | B45: ASSENTAMENTO DE TUBO DE AÇO CARBONO PARA REDE DE ÁGUA, DN 1400 MM (56'') OU DN 1500 MM (60), JUNTA SOLDADA, INSTALADO EM LOCAL COM NÍVEL ALTO DE INTERFERÊNCIAS (NÃO INCLUI FORNECIMENTO). AF_11/2017 | C45: M | D45: 70,89 | E45: CAIXA REFERENCIAL | G45: 97179 | H45: 97179
A46: 97180 | B46: ASSENTAMENTO DE TUBO DE AÇO CARBONO PARA REDE DE ÁGUA, DN 1600 MM (64) OU DN 1700 MM (68), JUNTA SOLDADA, INSTALADO EM LOCAL COM NÍVEL ALTO DE INTERFERÊNCIAS (NÃO INCLUI FORNECIMENTO). AF_11/2017 | C46: M | D46: 80,12 | E46: CAIXA REFERENCIAL | G46: 97180 | H46: 97180
A47: 97181 | B47: ASSENTAMENTO DE TUBO DE AÇO CARBONO PARA REDE DE ÁGUA, DN 1800 MM (72) OU DN 1900 MM (76), JUNTA SOLDADA, INSTALADO EM LOCAL COM NÍVEL ALTO DE INTERFERÊNCIAS (NÃO INCLUI FORNECIMENTO). AF_11/2017 | C47: M | D47: 91,83 | E47: CAIXA REFERENCIAL | G47: 97181 | H47: 97181
A48: 97182 | B48: ASSENTAMENTO DE TUBO DE AÇO CARBONO PARA REDE DE ÁGUA, DN 2000 MM (80) OU DN 2100 MM (84), JUNTA SOLDADA, INSTALADO EM LOCAL COM NÍVEL ALTO DE INTERFERÊNCIAS (NÃO INCLUI FORNECIMENTO). AF_11/2017 | C48: M | D48: 101,33 | E48: CAIXA REFERENCIAL | G48: 97182 | H48: 97182
A49: 97183 | B49: ASSENTAMENTO DE TUBO DE AÇO CARBONO PARA REDE DE ÁGUA, DN 600 MM (24), JUNTA SOLDADA, INSTALADO EM LOCAL COM NÍVEL BAIXO DE INTERFERÊNCIAS (NÃO INCLUI FORNECIMENTO). AF_11/2017 | C49: M | D49: 24,50 | E49: CAIXA REFERENCIAL | G49: 97183 | H49: 97183
A50: 97184 | B50: ASSENTAMENTO DE TUBO DE AÇO CARBONO PARA REDE DE ÁGUA, DN 700 MM (28), JUNTA SOLDADA, INSTALADO EM LOCAL COM NÍVEL BAIXO DE INTERFERÊNCIAS (NÃO INCLUI FORNECIMENTO). AF_11/2017 | C50: M | D50: 28,40 | E50: CAIXA REFERENCIAL | G50: 97184 | H50: 97184
A51: 97185 | B51: ASSENTAMENTO DE TUBO DE AÇO CARBONO PARA REDE DE ÁGUA, DN 800 MM (32), JUNTA SOLDADA, INSTALADO EM LOCAL COM NÍVEL BAIXO DE INTERFERÊNCIAS (NÃO INCLUI FORNECIMENTO). AF_11/2017 | C51: M | D51: 32,32 | E51: CAIXA REFERENCIAL | G51: 97185 | H51: 97185
A52: 97186 | B52: ASSENTAMENTO DE TUBO DE AÇO CARBONO PARA REDE DE ÁGUA, DN 900 MM (36), JUNTA SOLDADA, INSTALADO EM LOCAL COM NÍVEL BAIXO DE INTERFERÊNCIAS (NÃO INCLUI FORNECIMENTO). AF_11/2017 | C52: M | D52: 36,23 | E52: CAIXA REFERENCIAL | G52: 97186 | H52: 97186
A53: 97187 | B53: ASSENTAMENTO DE TUBO DE AÇO CARBONO PARA REDE DE ÁGUA, DN 1000 MM (40 ) OU DN 1100 MM (44 ), JUNTA SOLDADA, INSTALADO EM LOCAL COM NÍVEL BAIXO DE INTERFERÊNCIAS (NÃO INCLUI FORNECIMENTO). AF_11/2017 | C53: M | D53: 44,07 | E53: CAIXA REFERENCIAL | G53: 97187 | H53: 97187
A54: 97188 | B54: ASSENTAMENTO DE TUBO DE AÇO CARBONO PARA REDE DE ÁGUA, DN 1200 MM (48) OU DN 1300 MM (52), JUNTA SOLDADA, INSTALADO EM LOCAL COM NÍVEL BAIXO DE INTERFERÊNCIAS (NÃO INCLUI FORNECIMENTO). AF_11/2017 | C54: M | D54: 51,89 | E54: CAIXA REFERENCIAL | G54: 97188 | H54: 97188
A55: 97189 | B55: ASSENTAMENTO DE TUBO DE AÇO CARBONO PARA REDE DE ÁGUA, DN 1400 MM (56'') OU DN 1500 MM (60), JUNTA SOLDADA, INSTALADO EM LOCAL COM NÍVEL BAIXO DE INTERFERÊNCIAS (NÃO INCLUI FORNECIMENTO). AF_11/2017 | C55: M | D55: 59,71 | E55: CAIXA REFERENCIAL | G55: 97189 | H55: 97189
A56: 97190 | B56: ASSENTAMENTO DE TUBO DE AÇO CARBONO PARA REDE DE ÁGUA, DN 1600 MM (64) OU DN 1700 MM (68), JUNTA SOLDADA, INSTALADO EM LOCAL COM NÍVEL BAIXO DE INTERFERÊNCIAS (NÃO INCLUI FORNECIMENTO). AF_11/2017 | C56: M | D56: 67,53 | E56: CAIXA REFERENCIAL | G56: 97190 | H56: 97190
A57: 97191 | B57: ASSENTAMENTO DE TUBO DE AÇO CARBONO PARA REDE DE ÁGUA, DN 1800 MM (72) OU DN 1900 MM (76), JUNTA SOLDADA, INSTALADO EM LOCAL COM NÍVEL BAIXO DE INTERFERÊNCIAS (NÃO INCLUI FORNECIMENTO). AF_11/2017 | C57: M | D57: 77,20 | E57: CAIXA REFERENCIAL | G57: 97191 | H57: 97191
A58: 97192 | B58: ASSENTAMENTO DE TUBO DE AÇO CARBONO PARA REDE DE ÁGUA, DN 2000 MM (80) OU DN 2100 MM (84), JUNTA SOLDADA, INSTALADO EM LOCAL COM NÍVEL BAIXO DE INTERFERÊNCIAS (NÃO INCLUI FORNECIMENTO). AF_11/2017 | C58: M | D58: 85,22 | E58: CAIXA REFERENCIAL | G58: 97192 | H58: 97192
A59: 90694 | B59: TUBO DE PVC PARA REDE COLETORA DE ESGOTO DE PAREDE MACIÇA, DN 100 MM, JUNTA ELÁSTICA, INSTALADO EM LOCAL COM NÍVEL BAIXO DE INTERFERÊNCIAS - FORNECIMENTO E ASSENTAMENTO. AF_06/2015 | C59: M | D59: 19,81 | E59: CAIXA REFERENCIAL | G59: 90694 | H59: 90694
A60: 90695 | B60: TUBO DE PVC PARA REDE COLETORA DE ESGOTO DE PAREDE MACIÇA, DN 150 MM, JUNTA ELÁSTICA, INSTALADO EM LOCAL COM NÍVEL BAIXO DE INTERFERÊNCIAS - FORNECIMENTO E ASSENTAMENTO. AF_06/2015 | C60: M | D60: 40,42 | E60: CAIXA REFERENCIAL | G60: 90695 | H60: 90695
A61: 90696 | B61: TUBO DE PVC PARA REDE COLETORA DE ESGOTO DE PAREDE MACIÇA, DN 200 MM, JUNTA ELÁSTICA, INSTALADO EM LOCAL COM NÍVEL BAIXO DE INTERFERÊNCIAS - FORNECIMENTO E ASSENTAMENTO. AF_06/2015 | C61: M | D61: 59,71 | E61: CAIXA REFERENCIAL | G61: 90696 | H61: 90696
A62: 90697 | B62: TUBO DE PVC PARA REDE COLETORA DE ESGOTO DE PAREDE MACIÇA, DN 250 MM, JUNTA ELÁSTICA, INSTALADO EM LOCAL COM NÍVEL BAIXO DE INTERFERÊNCIAS - FORNECIMENTO E ASSENTAMENTO. AF_06/2015 | C62: M | D62: 99,86 | E62: CAIXA REFERENCIAL | G62: 90697 | H62: 90697
A63: 90698 | B63: TUBO DE PVC PARA REDE COLETORA DE ESGOTO DE PAREDE MACIÇA, DN 300 MM, JUNTA ELÁSTICA, INSTALADO EM LOCAL COM NÍVEL BAIXO DE INTERFERÊNCIAS - FORNECIMENTO E ASSENTAMENTO. AF_06/2015 | C63: M | D63: 159,29 | E63: CAIXA REFERENCIAL | G63: 90698 | H63: 90698
A64: 90699 | B64: TUBO DE PVC PARA REDE COLETORA DE ESGOTO DE PAREDE MACIÇA, DN 350 MM, JUNTA ELÁSTICA, INSTALADO EM LOCAL COM NÍVEL BAIXO DE INTERFERÊNCIAS - FORNECIMENTO E ASSENTAMENTO. AF_06/2015 | C64: M | D64: 196,72 | E64: CAIXA REFERENCIAL | G64: 90699 | H64: 90699
A65: 90700 | B65: TUBO DE PVC PARA REDE COLETORA DE ESGOTO DE PAREDE MACIÇA, DN 400 MM, JUNTA ELÁSTICA, INSTALADO EM LOCAL COM NÍVEL BAIXO DE INTERFERÊNCIAS - FORNECIMENTO E ASSENTAMENTO. AF_06/2015 | C65: M | D65: 258,86 | E65: CAIXA REFERENCIAL | G65: 90700 | H65: 90700
A66: 90701 | B66: TUBO DE PVC CORRUGADO DE DUPLA PAREDE PARA REDE COLETORA DE ESGOTO, DN 150 MM, JUNTA ELÁSTICA, INSTALADO EM LOCAL COM NÍVEL BAIXO DE INTERFERÊNCIAS - FORNECIMENTO E ASSENTAMENTO. AF_06/2015 | C66: M | D66: 35,66 | E66: CAIXA REFERENCIAL | G66: 90701 | H66: 90701
A67: 90702 | B67: TUBO DE PVC CORRUGADO DE DUPLA PAREDE PARA REDE COLETORA DE ESGOTO, DN 200 MM, JUNTA ELÁSTICA, INSTALADO EM LOCAL COM NÍVEL BAIXO DE INTERFERÊNCIAS - FORNECIMENTO E ASSENTAMENTO. AF_06/2015 | C67: M | D67: 54,91 | E67: CAIXA REFERENCIAL | G67: 90702 | H67: 90702
A68: 90703 | B68: TUBO DE PVC CORRUGADO DE DUPLA PAREDE PARA REDE COLETORA DE ESGOTO, DN 250 MM, JUNTA ELÁSTICA, INSTALADO EM LOCAL COM NÍVEL BAIXO DE INTERFERÊNCIAS - FORNECIMENTO E ASSENTAMENTO. AF_06/2015 | C68: M | D68: 88,08 | E68: CAIXA REFERENCIAL | G68: 90703 | H68: 90703
A69: 90704 | B69: TUBO DE PVC CORRUGADO DE DUPLA PAREDE PARA REDE COLETORA DE ESGOTO, DN 300 MM, JUNTA ELÁSTICA, INSTALADO EM LOCAL COM NÍVEL BAIXO DE INTERFERÊNCIAS - FORNECIMENTO E ASSENTAMENTO. AF_06/2015 | C69: M | D69: 120,56 | E69: CAIXA REFERENCIAL | G69: 90704 | H69: 90704
A70: 90705 | B70: TUBO DE PVC CORRUGADO DE DUPLA PAREDE PARA REDE COLETORA DE ESGOTO, DN 350 MM, JUNTA ELÁSTICA, INSTALADO EM LOCAL COM NÍVEL BAIXO DE INTERFERÊNCIAS - FORNECIMENTO E ASSENTAMENTO. AF_06/2015 | C70: M | D70: 168,34 | E70: CAIXA REFERENCIAL | G70: 90705 | H70: 90705
A71: 90706 | B71: TUBO DE PVC CORRUGADO DE DUPLA PAREDE PARA REDE COLETORA DE ESGOTO, DN 400 MM, JUNTA ELÁSTICA, INSTALADO EM LOCAL COM NÍVEL BAIXO DE INTERFERÊNCIAS - FORNECIMENTO E ASSENTAMENTO. AF_06/2015 | C71: M | D71: 202,49 | E71: CAIXA REFERENCIAL | G71: 90706 | H71: 90706
A72: 90708 | B72: TUBO DE PEAD CORRUGADO DE DUPLA PAREDE PARA REDE COLETORA DE ESGOTO, DN 600 MM, JUNTA ELÁSTICA INTEGRADA, INSTALADO EM LOCAL COM NÍVEL BAIXO DE INTERFERÊNCIAS - FORNECIMENTO E ASSENTAMENTO. AF_06/2015 | C72: M | D72: 539,64 | E72: CAIXA REFERENCIAL | G72: =A72*1 -> 90708 | H72: 90708
A73: 90709 | B73: TUBO DE PVC PARA REDE COLETORA DE ESGOTO DE PAREDE MACIÇA, DN 100 MM, JUNTA ELÁSTICA, INSTALADO EM LOCAL COM NÍVEL ALTO DE INTERFERÊNCIAS - FORNECIMENTO E ASSENTAMENTO. AF_06/2015 | C73: M | D73: 21,59 | E73: CAIXA REFERENCIAL | G73: 90709 | H73: 90709
A74: 90710 | B74: TUBO DE PVC PARA REDE COLETORA DE ESGOTO DE PAREDE MACIÇA, DN 150 MM, JUNTA ELÁSTICA, INSTALADO EM LOCAL COM NÍVEL ALTO DE INTERFERÊNCIAS - FORNECIMENTO E ASSENTAMENTO. AF_06/2015 | C74: M | D74: 42,22 | E74: CAIXA REFERENCIAL | G74: 90710 | H74: 90710
A75: 90711 | B75: TUBO DE PVC PARA REDE COLETORA DE ESGOTO DE PAREDE MACIÇA, DN 200 MM, JUNTA ELÁSTICA, INSTALADO EM LOCAL COM NÍVEL ALTO DE INTERFERÊNCIAS - FORNECIMENTO E ASSENTAMENTO. AF_06/2015 | C75: M | D75: 61,49 | E75: CAIXA REFERENCIAL | G75: 90711 | H75: 90711
A76: 90712 | B76: TUBO DE PVC PARA REDE COLETORA DE ESGOTO DE PAREDE MACIÇA, DN 250 MM, JUNTA ELÁSTICA, INSTALADO EM LOCAL COM NÍVEL ALTO DE INTERFERÊNCIAS - FORNECIMENTO E ASSENTAMENTO. AF_06/2015 | C76: M | D76: 101,64 | E76: CAIXA REFERENCIAL | G76: 90712 | H76: 90712
A77: 90713 | B77: TUBO DE PVC PARA REDE COLETORA DE ESGOTO DE PAREDE MACIÇA, DN 300 MM, JUNTA ELÁSTICA, INSTALADO EM LOCAL COM NÍVEL ALTO DE INTERFERÊNCIAS - FORNECIMENTO E ASSENTAMENTO. AF_06/2015 | C77: M | D77: 161,07 | E77: CAIXA REFERENCIAL | G77: 90713 | H77: 90713
A78: 90714 | B78: TUBO DE PVC PARA REDE COLETORA DE ESGOTO DE PAREDE MACIÇA, DN 350 MM, JUNTA ELÁSTICA, INSTALADO EM LOCAL COM NÍVEL ALTO DE INTERFERÊNCIAS - FORNECIMENTO E ASSENTAMENTO. AF_06/2015 | C78: M | D78: 198,50 | E78: CAIXA REFERENCIAL | G78: 90714 | H78: 90714
A79: 90715 | B79: TUBO DE PVC PARA REDE COLETORA DE ESGOTO DE PAREDE MACIÇA, DN 400 MM, JUNTA ELÁSTICA, INSTALADO EM LOCAL COM NÍVEL ALTO DE INTERFERÊNCIAS - FORNECIMENTO E ASSENTAMENTO. AF_06/2015 | C79: M | D79: 262,35 | E79: CAIXA REFERENCIAL | G79: 90715 | H79: 90715
A80: 90716 | B80: TUBO DE PVC CORRUGADO DE DUPLA PAREDE PARA REDE COLETORA DE ESGOTO, DN 150 MM, JUNTA ELÁSTICA, INSTALADO EM LOCAL COM NÍVEL ALTO DE INTERFERÊNCIAS - FORNECIMENTO E ASSENTAMENTO. AF_06/2015 | C80: M | D80: 37,43 | E80: CAIXA REFERENCIAL | G80: 90716 | H80: 90716
A81: 90717 | B81: TUBO DE PVC CORRUGADO DE DUPLA PAREDE PARA REDE COLETORA DE ESGOTO, DN 200 MM, JUNTA ELÁSTICA, INSTALADO EM LOCAL COM NÍVEL ALTO DE INTERFERÊNCIAS - FORNECIMENTO E ASSENTAMENTO. AF_06/2015 | C81: M | D81: 56,68 | E81: CAIXA REFERENCIAL | G81: 90717 | H81: 90717
A82: 90718 | B82: TUBO DE PVC CORRUGADO DE DUPLA PAREDE PARA REDE COLETORA DE ESGOTO, DN 250 MM, JUNTA ELÁSTICA, INSTALADO EM LOCAL COM NÍVEL ALTO DE INTERFERÊNCIAS - FORNECIMENTO E ASSENTAMENTO. AF_06/2015 | C82: M | D82: 89,85 | E82: CAIXA REFERENCIAL | G82: 90718 | H82: 90718
A83: 90719 | B83: TUBO DE PVC CORRUGADO DE DUPLA PAREDE PARA REDE COLETORA DE ESGOTO, DN 300 MM, JUNTA ELÁSTICA, INSTALADO EM LOCAL COM NÍVEL ALTO DE INTERFERÊNCIAS - FORNECIMENTO E ASSENTAMENTO. AF_06/2015 | C83: M | D83: 122,33 | E83: CAIXA REFERENCIAL | G83: 90719 | H83: 90719
A84: 90720 | B84: TUBO DE PVC CORRUGADO DE DUPLA PAREDE PARA REDE COLETORA DE ESGOTO, DN 350 MM, JUNTA ELÁSTICA, INSTALADO EM LOCAL COM NÍVEL ALTO DE INTERFERÊNCIAS - FORNECIMENTO E ASSENTAMENTO. AF_06/2015 | C84: M | D84: 170,11 | E84: CAIXA REFERENCIAL | G84: 90720 | H84: 90720
A85: 90721 | B85: TUBO DE PVC CORRUGADO DE DUPLA PAREDE PARA REDE COLETORA DE ESGOTO, DN 400 MM, EM JUNTA ELÁSTICA, INSTALADO EM LOCAL COM NÍVEL ALTO DE INTERFERÊNCIAS - FORNECIMENTO E ASSENTAMENTO. AF_06/2015 | C85: M | D85: 205,99 | E85: CAIXA REFERENCIAL | G85: 90721 | H85: 90721
A86: 90723 | B86: TUBO DE PEAD CORRUGADO DE DUPLA PAREDE PARA REDE COLETORA DE ESGOTO, DN 600 MM, JUNTA ELÁSTICA INTEGRADA, INSTALADO EM LOCAL COM NÍVEL ALTO DE INTERFERÊNCIAS - FORNECIMENTO E ASSENTAMENTO. AF_06/2015 | C86: M | D86: 541,82 | E86: CAIXA REFERENCIAL | G86: 90723 | H86: 90723
A87: 90724 | B87: JUNTA ARGAMASSADA ENTRE TUBO DN 100 MM E O POÇO DE VISITA/ CAIXA DE CONCRETO OU ALVENARIA EM REDES DE ESGOTO. AF_06/2015 | C87: UN | D87: 20,86 | E87: CAIXA REFERENCIAL | G87: 90724 | H87: 90724
A88: 90725 | B88: JUNTA ARGAMASSADA ENTRE TUBO DN 150 MM E O POÇO DE VISITA/ CAIXA DE CONCRETO OU ALVENARIA EM REDES DE ESGOTO. AF_06/2015 | C88: UN | D88: 25,79 | E88: CAIXA REFERENCIAL | G88: 90725 | H88: 90725
A89: 90726 | B89: JUNTA ARGAMASSADA ENTRE TUBO DN 200 MM E O POÇO/ CAIXA DE CONCRETO OU ALVENARIA EM REDES DE ESGOTO. AF_06/2015 | C89: UN | D89: 30,71 | E89: CAIXA REFERENCIAL | G89: 90726 | H89: 90726
A90: 90727 | B90: JUNTA ARGAMASSADA ENTRE TUBO DN 250 MM E O POÇO DE VISITA/ CAIXA DE CONCRETO OU ALVENARIA EM REDES DE ESGOTO. AF_06/2015 | C90: UN | D90: 35,62 | E90: CAIXA REFERENCIAL | G90: 90727 | H90: 90727
A91: 90728 | B91: JUNTA ARGAMASSADA ENTRE TUBO DN 300 MM E O POÇO DE VISITA/ CAIXA DE CONCRETO OU ALVENARIA EM REDES DE ESGOTO. AF_06/2015 | C91: UN | D91: 40,55 | E91: CAIXA REFERENCIAL | G91: 90728 | H91: 90728
A92: 90729 | B92: JUNTA ARGAMASSADA ENTRE TUBO DN 350 MM E O POÇO DE VISITA/ CAIXA DE CONCRETO OU ALVENARIA EM REDES DE ESGOTO. AF_06/2015 | C92: UN | D92: 45,47 | E92: CAIXA REFERENCIAL | G92: 90729 | H92: 90729
A93: 90730 | B93: JUNTA ARGAMASSADA ENTRE TUBO DN 400 MM E O POÇO DE VISITA/ CAIXA DE CONCRETO OU ALVENARIA EM REDES DE ESGOTO. AF_06/2015 | C93: UN | D93: 50,45 | E93: CAIXA REFERENCIAL | G93: 90730 | H93: 90730
A94: 90731 | B94: JUNTA ARGAMASSADA ENTRE TUBO DN 450 MM E O POÇO DE VISITA/ CAIXA DE CONCRETO OU ALVENARIA EM REDES DE ESGOTO. AF_06/2015 | C94: UN | D94: 55,37 | E94: CAIXA REFERENCIAL | G94: 90731 | H94: 90731
A95: 90732 | B95: JUNTA ARGAMASSADA ENTRE TUBO DN 600 MM E O POÇO DE VISITA/ CAIXA DE CONCRETO OU ALVENARIA EM REDES DE ESGOTO. AF_06/2015 | C95: UN | D95: 70,13 | E95: CAIXA REFERENCIAL | G95: 90732 | H95: 90732
A96: 90733 | B96: ASSENTAMENTO DE TUBO DE PVC PARA REDE COLETORA DE ESGOTO DE PAREDE MACIÇA, DN 100 MM, JUNTA ELÁSTICA, INSTALADO EM LOCAL COM NÍVEL BAIXO DE INTERFERÊNCIAS (NÃO INCLUI FORNECIMENTO). AF_06/2015 | C96: M | D96: 2,25 | E96: CAIXA REFERENCIAL | G96: 90733 | H96: 90733
A97: 90734 | B97: ASSENTAMENTO DE TUBO DE PVC PARA REDE COLETORA DE ESGOTO DE PAREDE MACIÇA, DN 150 MM, JUNTA ELÁSTICA, INSTALADO EM LOCAL COM NÍVEL BAIXO DE INTERFERÊNCIAS (NÃO INCLUI FORNECIMENTO). AF_06/2015 | C97: M | D97: 2,73 | E97: CAIXA REFERENCIAL | G97: 90734 | H97: 90734
A98: 90735 | B98: ASSENTAMENTO DE TUBO DE PVC PARA REDE COLETORA DE ESGOTO DE PAREDE MACIÇA, DN 200 MM, JUNTA ELÁSTICA, INSTALADO EM LOCAL COM NÍVEL BAIXO DE INTERFERÊNCIAS (NÃO INCLUI FORNECIMENTO). AF_06/2015 | C98: M | D98: 3,25 | E98: CAIXA REFERENCIAL | G98: 90735 | H98: 90735
A99: 90736 | B99: ASSENTAMENTO DE TUBO DE PVC PARA REDE COLETORA DE ESGOTO DE PAREDE MACIÇA, DN 250 MM, JUNTA ELÁSTICA, INSTALADO EM LOCAL COM NÍVEL BAIXO DE INTERFERÊNCIAS (NÃO INCLUI FORNECIMENTO). AF_06/2015 | C99: M | D99: 3,75 | E99: CAIXA REFERENCIAL | G99: 90736 | H99: 90736
A100: 90737 | B100: ASSENTAMENTO DE TUBO DE PVC PARA REDE COLETORA DE ESGOTO DE PAREDE MACIÇA, DN 300 MM, JUNTA ELÁSTICA, INSTALADO EM LOCAL COM NÍVEL BAIXO DE INTERFERÊNCIAS (NÃO INCLUI FORNECIMENTO). AF_06/2015 | C100: M | D100: 4,25 | E100: CAIXA REFERENCIAL | G100: 90737 | H100: 90737
A101: 90738 | B101: ASSENTAMENTO DE TUBO DE PVC PARA REDE COLETORA DE ESGOTO DE PAREDE MACIÇA, DN 350 MM, JUNTA ELÁSTICA, INSTALADO EM LOCAL COM NÍVEL BAIXO DE INTERFERÊNCIAS (NÃO INCLUI FORNECIMENTO). AF_06/2015 | C101: M | D101: 4,75 | E101: CAIXA REFERENCIAL | G101: 90738 | H101: 90738
A102: 90739 | B102: ASSENTAMENTO DE TUBO DE PVC PARA REDE COLETORA DE ESGOTO DE PAREDE MACIÇA, DN 400 MM, JUNTA ELÁSTICA, INSTALADO EM LOCAL COM NÍVEL BAIXO DE INTERFERÊNCIAS (NÃO INCLUI FORNECIMENTO). AF_06/2015 | C102: M | D102: 10,31 | E102: CAIXA REFERENCIAL | G102: 90739 | H102: 90739
A103: 90740 | B103: ASSENTAMENTO DE TUBO DE PVC CORRUGADO DE DUPLA PAREDE PARA REDE COLETORA DE ESGOTO, DN 150 MM, JUNTA ELÁSTICA, INSTALADO EM LOCAL COM NÍVEL BAIXO DE INTERFERÊNCIAS (NÃO INCLUI FORNECIMENTO). AF_06/2015 | C103: M | D103: 5,01 | E103: CAIXA REFERENCIAL | G103: 90740 | H103: 90740
A104: 90741 | B104: ASSENTAMENTO DE TUBO DE PVC CORRUGADO DE DUPLA PAREDE PARA REDE COLETORA DE ESGOTO, DN 200 MM, JUNTA ELÁSTICA, INSTALADO EM LOCAL COM NÍVEL BAIXO DE INTERFERÊNCIAS (NÃO INCLUI FORNECIMENTO). AF_06/2015 | C104: M | D104: 5,51 | E104: CAIXA REFERENCIAL | G104: 90741 | H104: 90741
A105: 90742 | B105: ASSENTAMENTO DE TUBO DE PVC CORRUGADO DE DUPLA PAREDE PARA REDE COLETORA DE ESGOTO, DN 250 MM, JUNTA ELÁSTICA, INSTALADO EM LOCAL COM NÍVEL BAIXO DE INTERFERÊNCIAS (NÃO INCLUI FORNECIMENTO). AF_06/2015 | C105: M | D105: 6,01 | E105: CAIXA REFERENCIAL | G105: 90742 | H105: 90742
A106: 90743 | B106: ASSENTAMENTO DE TUBO DE PVC CORRUGADO DE DUPLA PAREDE PARA REDE COLETORA DE ESGOTO, DN 300 MM, JUNTA ELÁSTICA, INSTALADO EM LOCAL COM NÍVEL BAIXO DE INTERFERÊNCIAS (NÃO INCLUI FORNECIMENTO). AF_06/2015 | C106: M | D106: 6,51 | E106: CAIXA REFERENCIAL | G106: 90743 | H106: 90743
A107: 90744 | B107: ASSENTAMENTO DE TUBO DE PVC CORRUGADO DE DUPLA PAREDE PARA REDE COLETORA DE ESGOTO, DN 350 MM, JUNTA ELÁSTICA, INSTALADO EM LOCAL COM NÍVEL BAIXO DE INTERFERÊNCIAS (NÃO INCLUI FORNECIMENTO). AF_06/2015 | C107: M | D107: 7,01 | E107: CAIXA REFERENCIAL | G107: 90744 | H107: 90744
A108: 90745 | B108: ASSENTAMENTO DE TUBO DE PVC CORRUGADO DE DUPLA PAREDE PARA REDE COLETORA DE ESGOTO, DN 400 MM, JUNTA ELÁSTICA, INSTALADO EM LOCAL COM NÍVEL BAIXO DE INTERFERÊNCIAS (NÃO INCLUI FORNECIMENTO). AF_06/2015 | C108: M | D108: 14,74 | E108: CAIXA REFERENCIAL | G108: 90745 | H108: 90745
A109: 90746 | B109: ASSENTAMENTO DE TUBO DE PEAD CORRUGADO DE DUPLA PAREDE PARA REDE COLETORA DE ESGOTO, DN 450 MM, JUNTA ELÁSTICA INTEGRADA, INSTALADO EM LOCAL COM NÍVEL BAIXO DE INTERFERÊNCIAS (NÃO INCLUI FORNECIMENTO). AF_06/2015 | C109: M | D109: 3,05 | E109: CAIXA REFERENCIAL | G109: 90746 | H109: 90746
A110: 90747 | B110: ASSENTAMENTO DE TUBO DE PEAD CORRUGADO DE DUPLA PAREDE PARA REDE COLETORA DE ESGOTO, DN 600 MM, JUNTA ELÁSTICA INTEGRADA, INSTALADO EM LOCAL COM NÍVEL BAIXO DE INTERFERÊNCIAS (NÃO INCLUI FORNECIMENTO). AF_06/2015 | C110: M | D110: 11,43 | E110: CAIXA REFERENCIAL | G110: 90747 | H110: 90747
A111: 90748 | B111: ASSENTAMENTO DE TUBO DE PVC PARA REDE COLETORA DE ESGOTO DE PAREDE MACIÇA, DN 100 MM, JUNTA ELÁSTICA, INSTALADO EM LOCAL COM NÍVEL ALTO DE INTERFERÊNCIAS (NÃO INCLUI FORNECIMENTO). AF_06/2015 | C111: M | D111: 4,03 | E111: CAIXA REFERENCIAL | G111: 90748 | H111: 90748
A112: 90749 | B112: ASSENTAMENTO DE TUBO DE PVC PARA REDE COLETORA DE ESGOTO DE PAREDE MACIÇA, DN 150 MM, JUNTA ELÁSTICA, INSTALADO EM LOCAL COM NÍVEL ALTO DE INTERFERÊNCIAS (NÃO INCLUI FORNECIMENTO). AF_06/2015 | C112: M | D112: 4,53 | E112: CAIXA REFERENCIAL | G112: 90749 | H112: 90749
A113: 90750 | B113: ASSENTAMENTO DE TUBO DE PVC PARA REDE COLETORA DE ESGOTO DE PAREDE MACIÇA, DN 200 MM, JUNTA ELÁSTICA, INSTALADO EM LOCAL COM NÍVEL ALTO DE INTERFERÊNCIAS (NÃO INCLUI FORNECIMENTO). AF_06/2015 | C113: M | D113: 5,03 | E113: CAIXA REFERENCIAL | G113: 90750 | H113: 90750
A114: 90751 | B114: ASSENTAMENTO DE TUBO DE PVC PARA REDE COLETORA DE ESGOTO DE PAREDE MACIÇA, DN 250 MM, JUNTA ELÁSTICA, INSTALADO EM LOCAL COM NÍVEL ALTO DE INTERFERÊNCIAS (NÃO INCLUI FORNECIMENTO). AF_06/2015 | C114: M | D114: 5,53 | E114: CAIXA REFERENCIAL | G114: 90751 | H114: 90751
A115: 90752 | B115: ASSENTAMENTO DE TUBO DE PVC PARA REDE COLETORA DE ESGOTO DE PAREDE MACIÇA, DN 300 MM, JUNTA ELÁSTICA, INSTALADO EM LOCAL COM NÍVEL ALTO DE INTERFERÊNCIAS (NÃO INCLUI FORNECIMENTO). AF_06/2015 | C115: M | D115: 6,03 | E115: CAIXA REFERENCIAL | G115: 90752 | H115: 90752
A116: 90753 | B116: ASSENTAMENTO DE TUBO DE PVC PARA REDE COLETORA DE ESGOTO DE PAREDE MACIÇA, DN 350 MM, JUNTA ELÁSTICA, INSTALADO EM LOCAL COM NÍVEL ALTO DE INTERFERÊNCIAS (NÃO INCLUI FORNECIMENTO). AF_06/2015 | C116: M | D116: 6,53 | E116: CAIXA REFERENCIAL | G116: 90753 | H116: 90753
A117: 90754 | B117: ASSENTAMENTO DE TUBO DE PVC PARA REDE COLETORA DE ESGOTO DE PAREDE MACIÇA, DN 400 MM, JUNTA ELÁSTICA, INSTALADO EM LOCAL COM NÍVEL ALTO DE INTERFERÊNCIAS (NÃO INCLUI FORNECIMENTO). AF_06/2015 | C117: M | D117: 13,80 | E117: CAIXA REFERENCIAL | G117: 90754 | H117: 90754
A118: 90755 | B118: ASSENTAMENTO DE TUBO DE PVC CORRUGADO DE DUPLA PAREDE PARA REDE COLETORA DE ESGOTO, DN 150 MM, JUNTA ELÁSTICA, INSTALADO EM LOCAL COM NÍVEL ALTO DE INTERFERÊNCIAS (NÃO INCLUI FORNECIMENTO). AF_06/2015 | C118: M | D118: 6,78 | E118: CAIXA REFERENCIAL | G118: 90755 | H118: 90755
A119: 90756 | B119: ASSENTAMENTO DE TUBO DE PVC CORRUGADO DE DUPLA PAREDE PARA REDE COLETORA DE ESGOTO, DN 200 MM, JUNTA ELÁSTICA, INSTALADO EM LOCAL COM NÍVEL ALTO DE INTERFERÊNCIAS (NÃO INCLUI FORNECIMENTO). AF_06/2015 | C119: M | D119: 7,28 | E119: CAIXA REFERENCIAL | G119: 90756 | H119: 90756
A120: 90757 | B120: ASSENTAMENTO DE TUBO DE PVC CORRUGADO DE DUPLA PAREDE PARA REDE COLETORA DE ESGOTO, DN 250 MM, JUNTA ELÁSTICA, INSTALADO EM LOCAL COM NÍVEL ALTO DE INTERFERÊNCIAS (NÃO INCLUI FORNECIMENTO). AF_06/2015 | C120: M | D120: 7,78 | E120: CAIXA REFERENCIAL | G120: 90757 | H120: 90757
A121: 90758 | B121: ASSENTAMENTO DE TUBO DE PVC CORRUGADO DE DUPLA PAREDE PARA REDE COLETORA DE ESGOTO, DN 300 MM, JUNTA ELÁSTICA, INSTALADO EM LOCAL COM NÍVEL ALTO DE INTERFERÊNCIAS (NÃO INCLUI FORNECIMENTO). AF_06/2015 | C121: M | D121: 8,28 | E121: CAIXA REFERENCIAL | G121: 90758 | H121: 90758
A122: 90759 | B122: ASSENTAMENTO DE TUBO DE PVC CORRUGADO DE DUPLA PAREDE PARA REDE COLETORA DE ESGOTO, DN 350 MM, JUNTA ELÁSTICA, INSTALADO EM LOCAL COM NÍVEL ALTO DE INTERFERÊNCIAS (NÃO INCLUI FORNECIMENTO). AF_06/2015 | C122: M | D122: 8,78 | E122: CAIXA REFERENCIAL | G122: 90759 | H122: 90759
A123: 90760 | B123: ASSENTAMENTO DE TUBO DE PVC CORRUGADO DE DUPLA PAREDE PARA REDE COLETORA DE ESGOTO, DN 400 MM, EM JUNTA ELÁSTICA, INSTALADO EM LOCAL COM NÍVEL ALTO DE INTERFERÊNCIAS (NÃO INCLUI FORNECIMENTO). AF_06/2015 | C123: M | D123: 18,24 | E123: CAIXA REFERENCIAL | G123: 90760 | H123: 90760
A124: 90761 | B124: ASSENTAMENTO DE TUBO DE PEAD CORRUGADO DE DUPLA PAREDE PARA REDE COLETORA DE ESGOTO, DN 450 MM, JUNTA ELÁSTICA INTEGRADA, INSTALADO EM LOCAL COM NÍVEL ALTO DE INTERFERÊNCIAS (NÃO INCLUI FORNECIMENTO). AF_06/2015 | C124: M | D124: 3,73 | E124: CAIXA REFERENCIAL | G124: 90761 | H124: 90761
A125: 90762 | B125: ASSENTAMENTO DE TUBO DE PEAD CORRUGADO DE DUPLA PAREDE PARA REDE COLETORA DE ESGOTO, DN 600 MM, JUNTA ELÁSTICA INTEGRADA, INSTALADO EM LOCAL COM NÍVEL ALTO DE INTERFERÊNCIAS (NÃO INCLUI FORNECIMENTO). AF_06/2015 | C125: M | D125: 13,61 | E125: CAIXA REFERENCIAL | G125: 90762 | H125: 90762
A126: 94869 | B126: TUBO DE PEAD CORRUGADO DE DUPLA PAREDE PARA REDE COLETORA DE ESGOTO, DN 250 MM, JUNTA ELÁSTICA INTEGRADA, INSTALADO EM LOCAL COM NÍVEL BAIXO DE INTERFERÊNCIAS - FORNECIMENTO E ASSENTAMENTO. AF_06/2016 | C126: M | D126: 109,63 | E126: CAIXA REFERENCIAL | G126: 94869 | H126: 94869
A127: 94870 | B127: ASSENTAMENTO DE TUBO DE PEAD CORRUGADO DE DUPLA PAREDE PARA REDE COLETORA DE ESGOTO, DN 250 MM, JUNTA ELÁSTICA INTEGRADA, INSTALADO EM LOCAL COM NÍVEL BAIXO DE INTERFERÊNCIAS (NÃO INCLUI FORNECIMENTO). AF_06/2016 | C127: M | D127: 0,75 | E127: CAIXA REFERENCIAL | G127: 94870 | H127: 94870
A128: 94871 | B128: TUBO DE PEAD CORRUGADO DE DUPLA PAREDE PARA REDE COLETORA DE ESGOTO, DN 300 MM, JUNTA ELÁSTICA INTEGRADA, INSTALADO EM LOCAL COM NÍVEL BAIXO DE INTERFERÊNCIAS - FORNECIMENTO E ASSENTAMENTO. AF_06/2016 | C128: M | D128: 130,01 | E128: CAIXA REFERENCIAL | G128: 94871 | H128: 94871
A129: 94872 | B129: ASSENTAMENTO DE TUBO DE PEAD CORRUGADO DE DUPLA PAREDE PARA REDE COLETORA DE ESGOTO, DN 300 MM, JUNTA ELÁSTICA INTEGRADA, INSTALADO EM LOCAL COM NÍVEL BAIXO DE INTERFERÊNCIAS (NÃO INCLUI FORNECIMENTO). AF_06/2016 | C129: M | D129: 1,30 | E129: CAIXA REFERENCIAL | G129: 94872 | H129: 94872
A130: 94875 | B130: TUBO DE PEAD CORRUGADO DE DUPLA PAREDE PARA REDE COLETORA DE ESGOTO, DN 750 MM, JUNTA ELÁSTICA INTEGRADA, INSTALADO EM LOCAL COM NÍVEL BAIXO DE INTERFERÊNCIAS - FORNECIMENTO E ASSENTAMENTO. AF_06/2016 | C130: M | D130: 762,88 | E130: CAIXA REFERENCIAL | G130: 94875 | H130: 94875
A131: 94876 | B131: ASSENTAMENTO DE TUBO DE PEAD CORRUGADO DE DUPLA PAREDE PARA REDE COLETORA DE ESGOTO, DN 750 MM, JUNTA ELÁSTICA INTEGRADA, INSTALADO EM LOCAL COM NÍVEL BAIXO DE INTERFERÊNCIAS (NÃO INCLUI FORNECIMENTO). AF_06/2016 | C131: M | D131: 17,32 | E131: CAIXA REFERENCIAL | G131: 94876 | H131: 94876
A132: 94878 | B132: ASSENTAMENTO DE TUBO DE PEAD CORRUGADO DE DUPLA PAREDE PARA REDE COLETORA DE ESGOTO, DN 900 MM, JUNTA ELÁSTICA INTEGRADA, INSTALADO EM LOCAL COM NÍVEL BAIXO DE INTERFERÊNCIAS (NÃO INCLUI FORNECIMENTO). AF_06/2016 | C132: M | D132: 20,33 | E132: CAIXA REFERENCIAL | G132: 94878 | H132: 94878
A133: 94879 | B133: TUBO DE PEAD CORRUGADO DE DUPLA PAREDE PARA REDE COLETORA DE ESGOTO, DN 1000 MM, JUNTA ELÁSTICA INTEGRADA, INSTALADO EM LOCAL COM NÍVEL BAIXO DE INTERFERÊNCIAS - FORNECIMENTO E ASSENTAMENTO. AF_06/2016 | C133: M | D133: 1.017,50 | E133: CAIXA REFERENCIAL | G133: 94879 | H133: 94879
A134: 94880 | B134: ASSENTAMENTO DE TUBO DE PEAD CORRUGADO DE DUPLA PAREDE PARA REDE COLETORA DE ESGOTO, DN 1000 MM, JUNTA ELÁSTICA INTEGRADA, INSTALADO EM LOCAL COM NÍVEL BAIXO DE INTERFERÊNCIAS (NÃO INCLUI FORNECIMENTO). AF_06/2016 | C134: M | D134: 24,89 | E134: CAIXA REFERENCIAL | G134: 94880 | H134: 94880
A135: 94881 | B135: TUBO DE PEAD CORRUGADO DE DUPLA PAREDE PARA REDE COLETORA DE ESGOTO, DN 1200 MM, JUNTA ELÁSTICA INTEGRADA, INSTALADO EM LOCAL COM NÍVEL BAIXO DE INTERFERÊNCIAS - FORNECIMENTO E ASSENTAMENTO. AF_06/2016 | C135: M | D135: 1.584,65 | E135: CAIXA REFERENCIAL | G135: 94881 | H135: 94881
A136: 94882 | B136: ASSENTAMENTO DE TUBO DE PEAD CORRUGADO DE DUPLA PAREDE PARA REDE COLETORA DE ESGOTO, DN 1200 MM, JUNTA ELÁSTICA INTEGRADA, INSTALADO EM LOCAL COM NÍVEL BAIXO DE INTERFERÊNCIAS (NÃO INCLUI FORNECIMENTO). AF_06/2016 | C136: M | D136: 29,52 | E136: CAIXA REFERENCIAL | G136: =A136*1 -> 94882 | H136: 94882
A137: 94884 | B137: ASSENTAMENTO DE TUBO DE PEAD CORRUGADO DE DUPLA PAREDE PARA REDE COLETORA DE ESGOTO, DN 1500 MM, JUNTA ELÁSTICA INTEGRADA, INSTALADO EM LOCAL COM NÍVEL BAIXO DE INTERFERÊNCIAS (NÃO INCLUI FORNECIMENTO). AF_06/2016 | C137: M | D137: 38,93 | E137: CAIXA REFERENCIAL | G137: 94884 | H137: 94884
A138: 94885 | B138: TUBO DE PEAD CORRUGADO DE DUPLA PAREDE PARA REDE COLETORA DE ESGOTO, DN 250 MM, JUNTA ELÁSTICA INTEGRADA, INSTALADO EM LOCAL COM NÍVEL ALTO DE INTERFERÊNCIAS - FORNECIMENTO E ASSENTAMENTO. AF_06/2016 | C138: M | D138: 109,84 | E138: CAIXA REFERENCIAL | G138: 94885 | H138: 94885
A139: 94886 | B139: ASSENTAMENTO DE TUBO DE PEAD CORRUGADO DE DUPLA PAREDE PARA REDE COLETORA DE ESGOTO, DN 250 MM, JUNTA ELÁSTICA INTEGRADA, INSTALADO EM LOCAL COM NÍVEL ALTO DE INTERFERÊNCIAS (NÃO INCLUI FORNECIMENTO). AF_06/2016 | C139: M | D139: 0,96 | E139: CAIXA REFERENCIAL | G139: 94886 | H139: 94886
A140: 94887 | B140: TUBO DE PEAD CORRUGADO DE DUPLA PAREDE PARA REDE COLETORA DE ESGOTO, DN 300 MM, JUNTA ELÁSTICA INTEGRADA, INSTALADO EM LOCAL COM NÍVEL ALTO DE INTERFERÊNCIAS - FORNECIMENTO E ASSENTAMENTO. AF_06/2016 | C140: M | D140: 130,37 | E140: CAIXA REFERENCIAL | G140: 94887 | H140: 94887
A141: 94888 | B141: ASSENTAMENTO DE TUBO DE PEAD CORRUGADO DE DUPLA PAREDE PARA REDE COLETORA DE ESGOTO, DN 300 MM, JUNTA ELÁSTICA INTEGRADA, INSTALADO EM LOCAL COM NÍVEL ALTO DE INTERFERÊNCIAS (NÃO INCLUI FORNECIMENTO). AF_06/2016 | C141: M | D141: 1,66 | E141: CAIXA REFERENCIAL | G141: 94888 | H141: 94888
A142: 94891 | B142: TUBO DE PEAD CORRUGADO DE DUPLA PAREDE PARA REDE COLETORA DE ESGOTO, DN 750 MM, JUNTA ELÁSTICA INTEGRADA, INSTALADO EM LOCAL COM NÍVEL ALTO DE INTERFERÊNCIAS - FORNECIMENTO E ASSENTAMENTO. AF_06/2016 | C142: M | D142: 765,68 | E142: CAIXA REFERENCIAL | G142: 94891 | H142: 94891
A143: 94892 | B143: ASSENTAMENTO DE TUBO DE PEAD CORRUGADO DE DUPLA PAREDE PARA REDE COLETORA DE ESGOTO, DN 750 MM, JUNTA ELÁSTICA INTEGRADA, INSTALADO EM LOCAL COM NÍVEL ALTO DE INTERFERÊNCIAS (NÃO INCLUI FORNECIMENTO). AF_06/2016 | C143: M | D143: 20,12 | E143: CAIXA REFERENCIAL | G143: 94892 | H143: 94892
A144: 94894 | B144: ASSENTAMENTO DE TUBO DE PEAD CORRUGADO DE DUPLA PAREDE PARA REDE COLETORA DE ESGOTO, DN 900 MM, JUNTA ELÁSTICA INTEGRADA, INSTALADO EM LOCAL COM NÍVEL ALTO DE INTERFERÊNCIAS (NÃO INCLUI FORNECIMENTO). AF_06/2016 | C144: M | D144: 23,36 | E144: CAIXA REFERENCIAL | G144: 94894 | H144: 94894
A145: 94895 | B145: TUBO DE PEAD CORRUGADO DE DUPLA PAREDE PARA REDE COLETORA DE ESGOTO, DN 1000 MM, JUNTA ELÁSTICA INTEGRADA, INSTALADO EM LOCAL COM NÍVEL ALTO DE INTERFERÊNCIAS - FORNECIMENTO E ASSENTAMENTO. AF_06/2016 | C145: M | D145: 1.020,83 | E145: CAIXA REFERENCIAL | G145: 94895 | H145: 94895
A146: 94896 | B146: ASSENTAMENTO DE TUBO DE PEAD CORRUGADO DE DUPLA PAREDE PARA REDE COLETORA DE ESGOTO, DN 1000 MM, JUNTA ELÁSTICA INTEGRADA, INSTALADO EM LOCAL COM NÍVEL ALTO DE INTERFERÊNCIAS (NÃO INCLUI FORNECIMENTO). AF_06/2016 | C146: M | D146: 28,22 | E146: CAIXA REFERENCIAL | G146: 94896 | H146: 94896
A147: 94897 | B147: TUBO DE PEAD CORRUGADO DE DUPLA PAREDE PARA REDE COLETORA DE ESGOTO, DN 1200 MM, JUNTA ELÁSTICA INTEGRADA, INSTALADO EM LOCAL COM NÍVEL ALTO DE INTERFERÊNCIAS - FORNECIMENTO E ASSENTAMENTO. AF_06/2016 | C147: M | D147: 1.588,21 | E147: CAIXA REFERENCIAL | G147: 94897 | H147: 94897
A148: 94898 | B148: ASSENTAMENTO DE TUBO DE PEAD CORRUGADO DE DUPLA PAREDE PARA REDE COLETORA DE ESGOTO, DN 1200 MM, JUNTA ELÁSTICA INTEGRADA, INSTALADO EM LOCAL COM NÍVEL ALTO DE INTERFERÊNCIAS (NÃO INCLUI FORNECIMENTO). AF_06/2016 | C148: M | D148: 33,08 | E148: CAIXA REFERENCIAL | G148: 94898 | H148: 94898
A149: 94900 | B149: ASSENTAMENTO DE TUBO DE PEAD CORRUGADO DE DUPLA PAREDE PARA REDE COLETORA DE ESGOTO, DN 1500 MM, JUNTA ELÁSTICA INTEGRADA, INSTALADO EM LOCAL COM NÍVEL ALTO DE INTERFERÊNCIAS (NÃO INCLUI FORNECIMENTO). AF_06/2016 | C149: M | D149: 42,83 | E149: CAIXA REFERENCIAL | G149: 94900 | H149: 94900
A150: 97121 | B150: ASSENTAMENTO DE TUBO DE PVC PBA PARA REDE DE ÁGUA, DN 50 MM, JUNTA ELÁSTICA INTEGRADA, INSTALADO EM LOCAL COM NÍVEL ALTO DE INTERFERÊNCIAS (NÃO INCLUI FORNECIMENTO). AF_11/2017 | C150: M | D150: 1,69 | E150: CAIXA REFERENCIAL | G150: 97121 | H150: 97121
A151: 97122 | B151: ASSENTAMENTO DE TUBO DE PVC PBA PARA REDE DE ÁGUA, DN 75 MM, JUNTA ELÁSTICA INTEGRADA, INSTALADO EM LOCAL COM NÍVEL ALTO DE INTERFERÊNCIAS (NÃO INCLUI FORNECIMENTO). AF_11/2017 | C151: M | D151: 2,35 | E151: CAIXA REFERENCIAL | G151: 97122 | H151: 97122
A152: 97123 | B152: ASSENTAMENTO DE TUBO DE PVC PBA PARA REDE DE ÁGUA, DN 100 MM, JUNTA ELÁSTICA INTEGRADA, INSTALADO EM LOCAL COM NÍVEL ALTO DE INTERFERÊNCIAS (NÃO INCLUI FORNECIMENTO). AF_11/2017 | C152: M | D152: 2,98 | E152: CAIXA REFERENCIAL | G152: 97123 | H152: 97123
A153: 97124 | B153: ASSENTAMENTO DE TUBO DE PVC PBA PARA REDE DE ÁGUA, DN 50 MM, JUNTA ELÁSTICA INTEGRADA, INSTALADO EM LOCAL COM NÍVEL BAIXO DE INTERFERÊNCIAS (NÃO INCLUI FORNECIMENTO). AF_11/2017 | C153: M | D153: 0,76 | E153: CAIXA REFERENCIAL | G153: 97124 | H153: 97124
A154: 97125 | B154: ASSENTAMENTO DE TUBO DE PVC PBA PARA REDE DE ÁGUA, DN 75 MM, JUNTA ELÁSTICA INTEGRADA, INSTALADO EM LOCAL COM NÍVEL BAIXO DE INTERFERÊNCIAS (NÃO INCLUI FORNECIMENTO). AF_11/2017 | C154: M | D154: 1,06 | E154: CAIXA REFERENCIAL | G154: 97125 | H154: 97125
A155: 97126 | B155: ASSENTAMENTO DE TUBO DE PVC PBA PARA REDE DE ÁGUA, DN 100 MM, JUNTA ELÁSTICA INTEGRADA, INSTALADO EM LOCAL COM NÍVEL BAIXO DE INTERFERÊNCIAS (NÃO INCLUI FORNECIMENTO). AF_11/2017 | C155: M | D155: 1,36 | E155: CAIXA REFERENCIAL | G155: 97126 | H155: 97126
A156: 92833 | B156: TUBO DE CONCRETO PARA REDES COLETORAS DE ESGOTO SANITÁRIO, DIÂMETRO DE 300 MM, JUNTA ELÁSTICA, INSTALADO EM LOCAL COM BAIXO NÍVEL DE INTERFERÊNCIAS - FORNECIMENTO E ASSENTAMENTO. AF_12/2015 | C156: M | D156: 132,76 | E156: CAIXA REFERENCIAL | G156: 92833 | H156: 92833
A157: 92834 | B157: ASSENTAMENTO DE TUBO DE CONCRETO PARA REDES COLETORAS DE ESGOTO SANITÁRIO, DIÂMETRO DE 300 MM, JUNTA ELÁSTICA, INSTALADO EM LOCAL COM BAIXO NÍVEL DE INTERFERÊNCIAS (NÃO INCLUI FORNECIMENTO). AF_12/2015 | C157: M | D157: 6,39 | E157: CAIXA REFERENCIAL | G157: 92834 | H157: 92834
A158: 92835 | B158: TUBO DE CONCRETO PARA REDES COLETORAS DE ESGOTO SANITÁRIO, DIÂMETRO DE 400 MM, JUNTA ELÁSTICA, INSTALADO EM LOCAL COM BAIXO NÍVEL DE INTERFERÊNCIAS - FORNECIMENTO E ASSENTAMENTO. AF_12/2015 | C158: M | D158: 142,56 | E158: CAIXA REFERENCIAL | G158: 92835 | H158: 92835
A159: 92836 | B159: ASSENTAMENTO DE TUBO DE CONCRETO PARA REDES COLETORAS DE ESGOTO SANITÁRIO, DIÂMETRO DE 400 MM, JUNTA ELÁSTICA, INSTALADO EM LOCAL COM BAIXO NÍVEL DE INTERFERÊNCIAS (NÃO INCLUI FORNECIMENTO). AF_12/2015 | C159: M | D159: 8,16 | E159: CAIXA REFERENCIAL | G159: 92836 | H159: 92836
A160: 92837 | B160: TUBO DE CONCRETO PARA REDES COLETORAS DE ESGOTO SANITÁRIO, DIÂMETRO DE 500 MM, JUNTA ELÁSTICA, INSTALADO EM LOCAL COM BAIXO NÍVEL DE INTERFERÊNCIAS - FORNECIMENTO E ASSENTAMENTO. AF_12/2015 | C160: M | D160: 237,57 | E160: CAIXA REFERENCIAL | G160: 92837 | H160: 92837
A161: 92838 | B161: ASSENTAMENTO DE TUBO DE CONCRETO PARA REDES COLETORAS DE ESGOTO SANITÁRIO, DIÂMETRO DE 500 MM, JUNTA ELÁSTICA, INSTALADO EM LOCAL COM BAIXO NÍVEL DE INTERFERÊNCIAS (NÃO INCLUI FORNECIMENTO). AF_12/2015 | C161: M | D161: 9,80 | E161: CAIXA REFERENCIAL | G161: 92838 | H161: 92838
A162: 92839 | B162: TUBO DE CONCRETO PARA REDES COLETORAS DE ESGOTO SANITÁRIO, DIÂMETRO DE 600 MM, JUNTA ELÁSTICA, INSTALADO EM LOCAL COM BAIXO NÍVEL DE INTERFERÊNCIAS - FORNECIMENTO E ASSENTAMENTO. AF_12/2015 | C162: M | D162: 291,09 | E162: CAIXA REFERENCIAL | G162: 92839 | H162: 92839
A163: 92840 | B163: ASSENTAMENTO DE TUBO DE CONCRETO PARA REDES COLETORAS DE ESGOTO SANITÁRIO, DIÂMETRO DE 600 MM, JUNTA ELÁSTICA, INSTALADO EM LOCAL COM BAIXO NÍVEL DE INTERFERÊNCIAS (NÃO INCLUI FORNECIMENTO). AF_12/2015 | C163: M | D163: 11,61 | E163: CAIXA REFERENCIAL | G163: 92840 | H163: 92840
A164: 92841 | B164: TUBO DE CONCRETO PARA REDES COLETORAS DE ESGOTO SANITÁRIO, DIÂMETRO DE 700 MM, JUNTA ELÁSTICA, INSTALADO EM LOCAL COM BAIXO NÍVEL DE INTERFERÊNCIAS - FORNECIMENTO E ASSENTAMENTO. AF_12/2015 | C164: M | D164: 364,41 | E164: CAIXA REFERENCIAL | G164: 92841 | H164: 92841
A165: 92842 | B165: ASSENTAMENTO DE TUBO DE CONCRETO PARA REDES COLETORAS DE ESGOTO SANITÁRIO, DIÂMETRO DE 700 MM, JUNTA ELÁSTICA, INSTALADO EM LOCAL COM BAIXO NÍVEL DE INTERFERÊNCIAS (NÃO INCLUI FORNECIMENTO). AF_12/2015 | C165: M | D165: 13,27 | E165: CAIXA REFERENCIAL | G165: 92842 | H165: 92842
A166: 92843 | B166: TUBO DE CONCRETO PARA REDES COLETORAS DE ESGOTO SANITÁRIO, DIÂMETRO DE 800 MM, JUNTA ELÁSTICA, INSTALADO EM LOCAL COM BAIXO NÍVEL DE INTERFERÊNCIAS - FORNECIMENTO E ASSENTAMENTO. AF_12/2015 | C166: M | D166: 387,74 | E166: CAIXA REFERENCIAL | G166: 92843 | H166: 92843
A167: 92844 | B167: ASSENTAMENTO DE TUBO DE CONCRETO PARA REDES COLETORAS DE ESGOTO SANITÁRIO, DIÂMETRO DE 800 MM, JUNTA ELÁSTICA, INSTALADO EM LOCAL COM BAIXO NÍVEL DE INTERFERÊNCIAS (NÃO INCLUI FORNECIMENTO). AF_12/2015 | C167: M | D167: 15,08 | E167: CAIXA REFERENCIAL | G167: 92844 | H167: 92844
A168: 92845 | B168: TUBO DE CONCRETO PARA REDES COLETORAS DE ESGOTO SANITÁRIO, DIÂMETRO DE 900 MM, JUNTA ELÁSTICA, INSTALADO EM LOCAL COM BAIXO NÍVEL DE INTERFERÊNCIAS - FORNECIMENTO E ASSENTAMENTO. AF_12/2015 | C168: M | D168: 539,15 | E168: CAIXA REFERENCIAL | G168: 92845 | H168: 92845
A169: 92846 | B169: ASSENTAMENTO DE TUBO DE CONCRETO PARA REDES COLETORAS DE ESGOTO SANITÁRIO, DIÂMETRO DE 900 MM, JUNTA ELÁSTICA, INSTALADO EM LOCAL COM BAIXO NÍVEL DE INTERFERÊNCIAS (NÃO INCLUI FORNECIMENTO). AF_12/2015 | C169: M | D169: 16,71 | E169: CAIXA REFERENCIAL | G169: 92846 | H169: 92846
A170: 92847 | B170: TUBO DE CONCRETO PARA REDES COLETORAS DE ESGOTO SANITÁRIO, DIÂMETRO DE 1000 MM, JUNTA ELÁSTICA, INSTALADO EM LOCAL COM BAIXO NÍVEL DE INTERFERÊNCIAS - FORNECIMENTO E ASSENTAMENTO. AF_12/2015 | C170: M | D170: 563,41 | E170: CAIXA REFERENCIAL | G170: 92847 | H170: 92847
A171: 92848 | B171: ASSENTAMENTO DE TUBO DE CONCRETO PARA REDES COLETORAS DE ESGOTO SANITÁRIO, DIÂMETRO DE 1000 MM, JUNTA ELÁSTICA, INSTALADO EM LOCAL COM BAIXO NÍVEL DE INTERFERÊNCIAS (NÃO INCLUI FORNECIMENTO). AF_12/2015 | C171: M | D171: 18,54 | E171: CAIXA REFERENCIAL | G171: 92848 | H171: 92848
A172: 92849 | B172: TUBO DE CONCRETO PARA REDES COLETORAS DE ESGOTO SANITÁRIO, DIÂMETRO DE 300 MM, JUNTA ELÁSTICA, INSTALADO EM LOCAL COM ALTO NÍVEL DE INTERFERÊNCIAS - FORNECIMENTO E ASSENTAMENTO. AF_12/2015 | C172: M | D172: 138,31 | E172: CAIXA REFERENCIAL | G172: 92849 | H172: 92849
A173: 92850 | B173: ASSENTAMENTO DE TUBO DE CONCRETO PARA REDES COLETORAS DE ESGOTO SANITÁRIO, DIÂMETRO DE 300 MM, JUNTA ELÁSTICA, INSTALADO EM LOCAL COM ALTO NÍVEL DE INTERFERÊNCIAS (NÃO INCLUI FORNECIMENTO). AF_12/2015 | C173: M | D173: 12,09 | E173: CAIXA REFERENCIAL | G173: 92850 | H173: 92850
A174: 92851 | B174: TUBO DE CONCRETO PARA REDES COLETORAS DE ESGOTO SANITÁRIO, DIÂMETRO DE 400 MM, JUNTA ELÁSTICA, INSTALADO EM LOCAL COM ALTO NÍVEL DE INTERFERÊNCIAS - FORNECIMENTO E ASSENTAMENTO. AF_12/2015 | C174: M | D174: 149,53 | E174: CAIXA REFERENCIAL | G174: 92851 | H174: 92851
A175: 92852 | B175: ASSENTAMENTO DE TUBO DE CONCRETO PARA REDES COLETORAS DE ESGOTO SANITÁRIO, DIÂMETRO DE 400 MM, JUNTA ELÁSTICA, INSTALADO EM LOCAL COM ALTO NÍVEL DE INTERFERÊNCIAS (NÃO INCLUI FORNECIMENTO). AF_12/2015 | C175: M | D175: 15,30 | E175: CAIXA REFERENCIAL | G175: 92852 | H175: 92852
A176: 92853 | B176: TUBO DE CONCRETO PARA REDES COLETORAS DE ESGOTO SANITÁRIO, DIÂMETRO DE 500 MM, JUNTA ELÁSTICA, INSTALADO EM LOCAL COM ALTO NÍVEL DE INTERFERÊNCIAS - FORNECIMENTO E ASSENTAMENTO. AF_12/2015 | C176: M | D176: 246,16 | E176: CAIXA REFERENCIAL | G176: 92853 | H176: 92853
A177: 92854 | B177: ASSENTAMENTO DE TUBO DE CONCRETO PARA REDES COLETORAS DE ESGOTO SANITÁRIO, DIÂMETRO DE 500 MM, JUNTA ELÁSTICA, INSTALADO EM LOCAL COM ALTO NÍVEL DE INTERFERÊNCIAS (NÃO INCLUI FORNECIMENTO). AF_12/2015 | C177: M | D177: 18,61 | E177: CAIXA REFERENCIAL | G177: 92854 | H177: 92854
A178: 92855 | B178: TUBO DE CONCRETO PARA REDES COLETORAS DE ESGOTO SANITÁRIO, DIÂMETRO DE 600 MM, JUNTA ELÁSTICA, INSTALADO EM LOCAL COM ALTO NÍVEL DE INTERFERÊNCIAS - FORNECIMENTO E ASSENTAMENTO. AF_12/2015 | C178: M | D178: 301,16 | E178: CAIXA REFERENCIAL | G178: 92855 | H178: 92855
A179: 92856 | B179: ASSENTAMENTO DE TUBO DE CONCRETO PARA REDES COLETORAS DE ESGOTO SANITÁRIO, DIÂMETRO DE 600 MM, JUNTA ELÁSTICA, INSTALADO EM LOCAL COM ALTO NÍVEL DE INTERFERÊNCIAS (NÃO INCLUI FORNECIMENTO). AF_12/2015 | C179: M | D179: 21,94 | E179: CAIXA REFERENCIAL | G179: 92856 | H179: 92856
A180: 92857 | B180: TUBO DE CONCRETO PARA REDES COLETORAS DE ESGOTO SANITÁRIO, DIÂMETRO DE 700 MM, JUNTA ELÁSTICA, INSTALADO EM LOCAL COM ALTO NÍVEL DE INTERFERÊNCIAS - FORNECIMENTO E ASSENTAMENTO. AF_12/2015 | C180: M | D180: 375,97 | E180: CAIXA REFERENCIAL | G180: 92857 | H180: 92857
A181: 92858 | B181: ASSENTAMENTO DE TUBO DE CONCRETO PARA REDES COLETORAS DE ESGOTO SANITÁRIO, DIÂMETRO DE 700 MM, JUNTA ELÁSTICA, INSTALADO EM LOCAL COM ALTO NÍVEL DE INTERFERÊNCIAS (NÃO INCLUI FORNECIMENTO). AF_12/2015 | C181: M | D181: 25,12 | E181: CAIXA REFERENCIAL | G181: 92858 | H181: 92858
A182: 92859 | B182: TUBO DE CONCRETO PARA REDES COLETORAS DE ESGOTO SANITÁRIO, DIÂMETRO DE 800 MM, JUNTA ELÁSTICA, INSTALADO EM LOCAL COM ALTO NÍVEL DE INTERFERÊNCIAS - FORNECIMENTO E ASSENTAMENTO. AF_12/2015 | C182: M | D182: 401,16 | E182: CAIXA REFERENCIAL | G182: 92859 | H182: 92859
A183: 92860 | B183: ASSENTAMENTO DE TUBO DE CONCRETO PARA REDES COLETORAS DE ESGOTO SANITÁRIO, DIÂMETRO DE 800 MM, JUNTA ELÁSTICA, INSTALADO EM LOCAL COM ALTO NÍVEL DE INTERFERÊNCIAS (NÃO INCLUI FORNECIMENTO). AF_12/2015 | C183: M | D183: 28,50 | E183: CAIXA REFERENCIAL | G183: 92860 | H183: 92860
A184: 92861 | B184: TUBO DE CONCRETO PARA REDES COLETORAS DE ESGOTO SANITÁRIO, DIÂMETRO DE 900 MM, JUNTA ELÁSTICA, INSTALADO EM LOCAL COM ALTO NÍVEL DE INTERFERÊNCIAS - FORNECIMENTO E ASSENTAMENTO. AF_12/2015 | C184: M | D184: 554,25 | E184: CAIXA REFERENCIAL | G184: 92861 | H184: 92861
A185: 92862 | B185: ASSENTAMENTO DE TUBO DE CONCRETO PARA REDES COLETORAS DE ESGOTO SANITÁRIO, DIÂMETRO DE 900 MM, JUNTA ELÁSTICA, INSTALADO EM LOCAL COM ALTO NÍVEL DE INTERFERÊNCIAS (NÃO INCLUI FORNECIMENTO). AF_12/2015 | C185: M | D185: 31,81 | E185: CAIXA REFERENCIAL | G185: 92862 | H185: 92862
A186: 92863 | B186: TUBO DE CONCRETO PARA REDES COLETORAS DE ESGOTO SANITÁRIO, DIÂMETRO DE 1000 MM, JUNTA ELÁSTICA, INSTALADO EM LOCAL COM ALTO NÍVEL DE INTERFERÊNCIAS - FORNECIMENTO E ASSENTAMENTO. AF_12/2015 | C186: M | D186: 579,60 | E186: CAIXA REFERENCIAL | G186: 92863 | H186: 92863
A187: 92864 | B187: ASSENTAMENTO DE TUBO DE CONCRETO PARA REDES COLETORAS DE ESGOTO SANITÁRIO, DIÂMETRO DE 1000 MM, JUNTA ELÁSTICA, INSTALADO EM LOCAL COM ALTO NÍVEL DE INTERFERÊNCIAS (NÃO INCLUI FORNECIMENTO). AF_12/2015 | C187: M | D187: 35,13 | E187: CAIXA REFERENCIAL | G187: 92864 | H187: 92864
A188: 92210 | B188: TUBO DE CONCRETO PARA REDES COLETORAS DE ÁGUAS PLUVIAIS, DIÂMETRO DE 400 MM, JUNTA RÍGIDA, INSTALADO EM LOCAL COM BAIXO NÍVEL DE INTERFERÊNCIAS - FORNECIMENTO E ASSENTAMENTO. AF_12/2015 | C188: M | D188: 97,63 | E188: CAIXA REFERENCIAL | G188: 92210 | H188: 92210
A189: 92211 | B189: TUBO DE CONCRETO PARA REDES COLETORAS DE ÁGUAS PLUVIAIS, DIÂMETRO DE 500 MM, JUNTA RÍGIDA, INSTALADO EM LOCAL COM BAIXO NÍVEL DE INTERFERÊNCIAS - FORNECIMENTO E ASSENTAMENTO. AF_12/2015 | C189: M | D189: 117,53 | E189: CAIXA REFERENCIAL | G189: 92211 | H189: 92211
A190: 92212 | B190: TUBO DE CONCRETO PARA REDES COLETORAS DE ÁGUAS PLUVIAIS, DIÂMETRO DE 600 MM, JUNTA RÍGIDA, INSTALADO EM LOCAL COM BAIXO NÍVEL DE INTERFERÊNCIAS - FORNECIMENTO E ASSENTAMENTO. AF_12/2015 | C190: M | D190: 171,02 | E190: CAIXA REFERENCIAL | G190: 92212 | H190: 92212
A191: 92213 | B191: TUBO DE CONCRETO PARA REDES COLETORAS DE ÁGUAS PLUVIAIS, DIÂMETRO DE 700 MM, JUNTA RÍGIDA, INSTALADO EM LOCAL COM BAIXO NÍVEL DE INTERFERÊNCIAS - FORNECIMENTO E ASSENTAMENTO. AF_12/2015 | C191: M | D191: 222,15 | E191: CAIXA REFERENCIAL | G191: 92213 | H191: 92213
A192: 92214 | B192: TUBO DE CONCRETO PARA REDES COLETORAS DE ÁGUAS PLUVIAIS, DIÂMETRO DE 800 MM, JUNTA RÍGIDA, INSTALADO EM LOCAL COM BAIXO NÍVEL DE INTERFERÊNCIAS - FORNECIMENTO E ASSENTAMENTO. AF_12/2015 | C192: M | D192: 267,55 | E192: CAIXA REFERENCIAL | G192: 92214 | H192: 92214
A193: 92215 | B193: TUBO DE CONCRETO PARA REDES COLETORAS DE ÁGUAS PLUVIAIS, DIÂMETRO DE 900 MM, JUNTA RÍGIDA, INSTALADO EM LOCAL COM BAIXO NÍVEL DE INTERFERÊNCIAS - FORNECIMENTO E ASSENTAMENTO. AF_12/2015 | C193: M | D193: 307,18 | E193: CAIXA REFERENCIAL | G193: 92215 | H193: 92215
A194: 92216 | B194: TUBO DE CONCRETO PARA REDES COLETORAS DE ÁGUAS PLUVIAIS, DIÂMETRO DE 1000 MM, JUNTA RÍGIDA, INSTALADO EM LOCAL COM BAIXO NÍVEL DE INTERFERÊNCIAS - FORNECIMENTO E ASSENTAMENTO. AF_12/2015 | C194: M | D194: 323,95 | E194: CAIXA REFERENCIAL | G194: 92216 | H194: 92216
A195: 92219 | B195: TUBO DE CONCRETO PARA REDES COLETORAS DE ÁGUAS PLUVIAIS, DIÂMETRO DE 400 MM, JUNTA RÍGIDA, INSTALADO EM LOCAL COM ALTO NÍVEL DE INTERFERÊNCIAS - FORNECIMENTO E ASSENTAMENTO. AF_12/2015 | C195: M | D195: 104,75 | E195: CAIXA REFERENCIAL | G195: 92219 | H195: 92219
A196: 92220 | B196: TUBO DE CONCRETO PARA REDES COLETORAS DE ÁGUAS PLUVIAIS, DIÂMETRO DE 500 MM, JUNTA RÍGIDA, INSTALADO EM LOCAL COM ALTO NÍVEL DE INTERFERÊNCIAS - FORNECIMENTO E ASSENTAMENTO. AF_12/2015 | C196: M | D196: 126,32 | E196: CAIXA REFERENCIAL | G196: 92220 | H196: 92220
A197: 92221 | B197: TUBO DE CONCRETO PARA REDES COLETORAS DE ÁGUAS PLUVIAIS, DIÂMETRO DE 600 MM, JUNTA RÍGIDA, INSTALADO EM LOCAL COM ALTO NÍVEL DE INTERFERÊNCIAS - FORNECIMENTO E ASSENTAMENTO. AF_12/2015 | C197: M | D197: 181,35 | E197: CAIXA REFERENCIAL | G197: 92221 | H197: 92221
A198: 92222 | B198: TUBO DE CONCRETO PARA REDES COLETORAS DE ÁGUAS PLUVIAIS, DIÂMETRO DE 700 MM, JUNTA RÍGIDA, INSTALADO EM LOCAL COM ALTO NÍVEL DE INTERFERÊNCIAS - FORNECIMENTO E ASSENTAMENTO. AF_12/2015 | C198: M | D198: 234,13 | E198: CAIXA REFERENCIAL | G198: 92222 | H198: 92222
A199: 92223 | B199: TUBO DE CONCRETO PARA REDES COLETORAS DE ÁGUAS PLUVIAIS, DIÂMETRO DE 800 MM, JUNTA RÍGIDA, INSTALADO EM LOCAL COM ALTO NÍVEL DE INTERFERÊNCIAS - FORNECIMENTO E ASSENTAMENTO. AF_12/2015 | C199: M | D199: 280,97 | E199: CAIXA REFERENCIAL | G199: 92223 | H199: 92223
A200: 92224 | B200: TUBO DE CONCRETO PARA REDES COLETORAS DE ÁGUAS PLUVIAIS, DIÂMETRO DE 900 MM, JUNTA RÍGIDA, INSTALADO EM LOCAL COM ALTO NÍVEL DE INTERFERÊNCIAS - FORNECIMENTO E ASSENTAMENTO. AF_12/2015 | C200: M | D200: 322,11 | E200: CAIXA REFERENCIAL | G200: =A200*1 -> 92224 | H200: 92224
A201: 92226 | B201: TUBO DE CONCRETO PARA REDES COLETORAS DE ÁGUAS PLUVIAIS, DIÂMETRO DE 1000 MM, JUNTA RÍGIDA, INSTALADO EM LOCAL COM ALTO NÍVEL DE INTERFERÊNCIAS - FORNECIMENTO E ASSENTAMENTO. AF_12/2015 | C201: M | D201: 340,63 | E201: CAIXA REFERENCIAL | G201: 92226 | H201: 92226
A202: 92808 | B202: ASSENTAMENTO DE TUBO DE CONCRETO PARA REDES COLETORAS DE ÁGUAS PLUVIAIS, DIÂMETRO DE 300 MM, JUNTA RÍGIDA, INSTALADO EM LOCAL COM BAIXO NÍVEL DE INTERFERÊNCIAS (NÃO INCLUI FORNECIMENTO). AF_12/2015 | C202: M | D202: 28,86 | E202: CAIXA REFERENCIAL | G202: 92808 | H202: 92808
... 6502 more rows

Sheet Sinapi(Insumos)
A1: PRECOS DE INSUMOS
A3: MES DE COLETA: 08/2020
A4: LOCALIDADE: 3920 - PORTO ALEGRE
A5: ENCARGOS SOCIAIS (%) HORISTA 110,61 MENSALISTA 68,86
A7: CODIGO | B7: DESCRICAO DO INSUMO | C7: UNIDADE | D7: PRECO MEDIANO R$ | E7: ORIGEM DO PRECO
A8: 41758 | B8: !EM PROCESSO DE DESATIVACAO! CADEADO EM ACO INOX, LARGURA DE *50* MM, COM HASTE EM ACO TEMPERADO, SEM MOLA - CHAVES INCLUIDAS | C8: UN | D8: 130,94 | E8: CR
A9: 1363 | B9: !EM PROCESSO DE DESATIVACAO! CHAPA DE MADEIRA COMPENSADA DE PINUS, VIROLA OU EQUIVALENTE, DE *2,2 X 1,6* M, E = 6 MM | C9: M2 | D9: 19,03 | E9: CR
A10: 1344 | B10: !EM PROCESSO DE DESATIVACAO! CHAPA DE MADEIRA COMPENSADA PLASTIFICADA PARA FORMA DE CONCRETO, DE 2,20 x 1,10 M, E = 6 MM | C10: UN | D10: 33,14 | E10: CR
A11: 1342 | B11: !EM PROCESSO DE DESATIVACAO! CHAPA DE MADEIRA COMPENSADA PLASTIFICADA PARA FORMA DE CONCRETO, DE 2,20 X 1,10 m, E = 14 MM | C11: UN | D11: 58,59 | E11: C
A12: 1349 | B12: !EM PROCESSO DE DESATIVACAO! CHAPA DE MADEIRA COMPENSADA PLASTIFICADA PARA FORMA DE CONCRETO, DE 2,20 X 1,10 M, E = 20 MM | C12: UN | D12: 83,56 | E12: CR
A13: 1350 | B13: !EM PROCESSO DE DESATIVACAO! CHAPA DE MADEIRA COMPENSADA RESINADA PARA FORMA DE CONCRETO, DE *2,2 X 1,1* M, E = 10 MM | C13: UN | D13: 39,90 | E13: CR
A14: 1357 | B14: !EM PROCESSO DE DESATIVACAO! CHAPA DE MADEIRA COMPENSADA RESINADA PARA FORMA DE CONCRETO, DE *2,2 X 1,1* M, E = 12 MM | C14: UN | D14: 50,83 | E14: CR
A15: 1359 | B15: !EM PROCESSO DE DESATIVACAO! CHAPA DE MADEIRA COMPENSADA RESINADA PARA FORMA DE CONCRETO, DE *2,2 X 1,1* M, E = 20 MM | C15: UN | D15: 78,52 | E15: C
A16: 1351 | B16: !EM PROCESSO DE DESATIVACAO! CHAPA DE MADEIRA COMPENSADA RESINADA PARA FORMA DE CONCRETO, DE *2,2 X 1,1* M, E = 6 MM | C16: UN | D16: 25,30 | E16: CR
A17: 3113 | B17: !EM PROCESSO DE DESATIVACAO! CREMONA COM CASTANHA BIPARTIDA, COM VARA DE 1.50 M, EM LATAO CROMADO, PARA PORTAS E JANELAS - COMPLETA | C17: CJ | D17: 57,12 | E17: CR
A18: 2404 | B18: !EM PROCESSO DE DESATIVACAO! DIVISORIA COLMEIA CEGA COM MONTANTE E RODAPE DE ALUMINIO ANODIZADO SIMPLES (SEM COLOCACAO) | C18: M2 | D18: 90,00 | E18: CR
A19: 2418 | B19: !EM PROCESSO DE DESATIVACAO! DOBRADICA EM ACO/FERRO, 3" X 2 1/2", E= 1,2 A 1,8 MM, SEM ANEL, CROMADO OU ZINCADO, TAMPA BOLA, COM PARAFUSOS | C19: UN | D19: 8,99 | E19: CR
A20: 2720 | B20: !EM PROCESSO DE DESATIVACAO! ESCAVADEIRA DRAGA DE ARRASTE, CAP. 3/4 JC 140HP (INCL MANUTENCAO/OPERACAO) | C20: H | D20: 244,31 | E20: C
A21: 2719 | B21: !EM PROCESSO DE DESATIVACAO! ESCAVADEIRA HIDRAULICA SOBRE ESTEIRAS DE 99 HP, PESO OPERACIONAL DE *16* T E CAPACIDADE DE 0,85 A 1,00 M3 (LOCACAO COM OPERADOR, COMBUSTIVEL E MANUTENCAO) | C21: H | D21: 207,00 | E21: C
A22: 6086 | B22: !EM PROCESSO DE DESATIVACAO! FUNDO SINTETICO NIVELADOR BRANCO FOSCO PARA MADEIRA | C22: GL | D22: 78,92 | E22: CR
A23: 38968 | B23: !EM PROCESSO DE DESATIVACAO! GRADIL *1320 X 2170* MM (A X L) EM BARRA DE ACO CHATA *25 MM X 2* MM, ENTRELACADA COM BARRA ACO REDONDA *5* MM, MALHA *65 X 132* MM, GALVANIZADO E PINTURA ELETROSTATICA, COR PRETO | C23: M2 | D23: 330,93 | E23: C
A24: 3378 | B24: !EM PROCESSO DE DESATIVACAO! HASTE DE ATERRAMENTO EM ACO COM 3,00 M DE COMPRIMENTO E DN = 3/4", REVESTIDA COM BAIXA CAMADA DE COBRE, SEM CONECTOR | C24: UN | D24: 70,74 | E24: CR
A25: 3380 | B25: !EM PROCESSO DE DESATIVACAO! HASTE DE ATERRAMENTO EM ACO COM 3,00 M DE COMPRIMENTO E DN = 5/8", REVESTIDA COM BAIXA CAMADA DE COBRE, COM CONECTOR TIPO GRAMPO | C25: UN | D25: 49,52 | E25: AS
A26: 3379 | B26: !EM PROCESSO DE DESATIVACAO! HASTE DE ATERRAMENTO EM ACO COM 3,00 M DE COMPRIMENTO E DN = 5/8", REVESTIDA COM BAIXA CAMADA DE COBRE, SEM CONECTOR | C26: UN | D26: 47,81 | E26: CR
A27: 615 | B27: !EM PROCESSO DE DESATIVACAO! JANELA BASCULANTE, ACO, COM BATENTE/REQUADRO, 60 X 80 CM (SEM VIDROS) | C27: M2 | D27: 391,29 | E27: C
A28: 606 | B28: !EM PROCESSO DE DESATIVACAO! JANELA DE CORRER, ACO, BATENTE/REQUADRO DE 6 A 14 CM, QUADRICULADA, PINTURA ANTICORROSIVA, SEM VIDRO, BANDEIRA COM BASCULA, 4 FLS, 120 X 150 CM (A X L) | C28: M2 | D28: 614,67 | E28: CR
A29: 11193 | B29: !EM PROCESSO DE DESATIVACAO! JANELA DE CORRER, ACO, BATENTE/REQUADRO DE 6 A 14 CM, VENEZIANA, PINT ANTICORROSIVA, PINT ACABAMENTO, COM VIDRO, 6 FLS, 120 X 150 CM (A X L) | C29: M2 | D29: 623,21 | E29: AS
A30: 11197 | B30: !EM PROCESSO DE DESATIVACAO! JANELA DE CORRER, ACO, COM BATENTE/REQUADRO DE 6 A 14 CM, SEM DIVISAO, PINT ANTICORROSIVA, PINT ACABAMENTO, COM VIDRO, SEM BANDEIRA, 2 FLS, 120 X 150 CM (A X L) | C30: UN | D30: 853,49 | E30: AS
A31: 3346 | B31: !EM PROCESSO DE DESATIVACAO! LOCACAO DE GRUPO GERADOR *80 A 125* KVA, MOTOR DIESEL, REBOCAVEL, ACIONAMENTO MANUAL | C31: H | D31: 11,25 | E31: AS
A32: 3348 | B32: !EM PROCESSO DE DESATIVACAO! LOCACAO DE GRUPO GERADOR ACIMA DE * 125 ATE 180* KVA, MOTOR DIESEL, REBOCAVEL, ACIONAMENTO MANUAL | C32: H | D32: 13,45 | E32: AS
A33: 3345 | B33: !EM PROCESSO DE DESATIVACAO! LOCACAO DE GRUPO GERADOR ACIMA DE * 20 A 80* KVA, MOTOR DIESEL, REBOCAVEL, ACIONAMENTO MANUAL | C33: H | D33: 8,69 | E33: C
A34: 39833 | B34: !EM PROCESSO DE DESATIVACAO! LOCACAO DE GRUPO GERADOR DE *260* KVA, DIESEL REBOCAVEL, ACIONAMENTO MANUAL | C34: H | D34: 18,43 | E34: CR
A35: 39834 | B35: !EM PROCESSO DE DESATIVACAO! LOCACAO DE GRUPO GERADOR DE *400* KVA, DIESEL REBOCAVEL, ACIONAMENTO MANUAL | C35: H | D35: 31,64 | E35: CR
A36: 39835 | B36: !EM PROCESSO DE DESATIVACAO! LOCACAO DE GRUPO GERADOR DE *550* KVA, DIESEL REBOCAVEL, ACIONAMENTO MANUAL | C36: H | D36: 38,57 | E36: CR
A37: 3779 | B37: !EM PROCESSO DE DESATIVACAO! LONA PLASTICA, PRETA, LARGURA 8 M, E= 150 MICRA | C37: M | D37: 8,41 | E37: CR
A38: 13382 | B38: !EM PROCESSO DE DESATIVACAO! LUMINARIA FECHADA P/ ILUMINACAO PUBLICA, TIPO ABL 50/F OU EQUIV, P/ LAMPADA A VAPOR DE MERCURIO 400W | C38: UN | D38: 223,31 | E38: CR
A39: 4051 | B39: !EM PROCESSO DE DESATIVACAO! MASSA CORRIDA PVA PARA PAREDES INTERNAS | C39: 18L | D39: 79,85 | E39: CR
A40: 4047 | B40: !EM PROCESSO DE DESATIVACAO! MASSA CORRIDA PVA PARA PAREDES INTERNAS | C40: GL | D40: 15,97 | E40: AS
A41: 11367 | B41: !EM PROCESSO DE DESATIVACAO! PORTA DE MADEIRA, FOLHA LEVE (NBR 15930), E = 35 MM, NUCLEO COLMEIA, CAPA LISA EM HDF, ACABAMENTO MELAMINICO EM PADRAO MADEIRA | C41: M2 | D41: 102,18 | E41: CR
A42: 11523 | B42: !EM PROCESSO DE DESATIVACAO! PUXADOR CONCHA DE EMBUTIR, EM LATAO CROMADO, PARA PORTA / JANELA DE CORRER, LISO, SEM FURO PARA CHAVE, COM FUROS PARA FIXAR PARAFUSOS, *30 X 90* MM (LARGURA X ALTURA) | C42: UN | D42: 12,34 | E42: C
A43: 6204 | B43: !EM PROCESSO DE DESATIVACAO! SARRAFO DE MADEIRA NAO APARELHADA *2,5 X 15* CM, MACARANDUBA, ANGELIM OU EQUIVALENTE DA REGIAO | C43: M | D43: 13,60 | E43: CR
A44: 6188 | B44: !EM PROCESSO DE DESATIVACAO! TABUA DE MADEIRA NAO APARELHADA *2,5 X 30 CM (1 X 12 ") PINUS, MISTA OU EQUIVALENTE DA REGIAO | C44: M2 | D44: 23,23 | E44: CR
A45: 4126 | B45: !EM PROCESSO DE DESATIVACAO! TERMINAL DE PORCELANA (MUFLA) UNIPOLAR, USO EXTERNO, TENSAO 3,6/6 KV, PARA CABO DE 10/16 MM2, COM ISOLAMENTO EPR | C45: UN | D45: 188,26 | E45: CR
A46: 7287 | B46: !EM PROCESSO DE DESATIVACAO! TINTA A OLEO BRILHANTE PARA MADEIRA E METAIS | C46: GL | D46: 80,55 | E46: CR
A47: 7347 | B47: !EM PROCESSO DE DESATIVACAO! TINTA ACRILICA PREMIUM PARA PISO | C47: GL | D47: 58,12 | E47: CR
A48: 7345 | B48: !EM PROCESSO DE DESATIVACAO! TINTA LATEX PVA PREMIUM, COR BRANCA | C48: L | D48: 20,91 | E48: CR
A49: 7344 | B49: !EM PROCESSO DE DESATIVACAO! TINTA LATEX PVA PREMIUM, COR BRANCA | C49: GL | D49: 75,30 | E49: AS
A50: 40514 | B50: !EM PROCESSO DE DESATIVACAO! VERNIZ POLIURETANO BRILHANTE PARA MADEIRA, SEM FILTRO SOLAR, USO INTERNO E EXTERNO | C50: L | D50: 25,88 | E50: CR
A51: 4487 | B51: !EM PROCESSO DE DESATIVACAO! VIGOTA DE MADEIRA NAO APARELHADA *5 X 10* CM, MACARANDUBA, ANGELIM OU EQUIVALENTE DA REGIAO | C51: M | D51: 17,21 | E51: CR
A52: 11199 | B52: !EM PROCESSO DE DESATIVACAO!JANELA DE CORRER, ACO, BATENTE/REQUADRO DE 6 A 14 CM, COM DIVISAO HORIZ , PINT ANTICORROSIVA, SEM VIDRO, BANDEIRA COM BASCULA, 4 FLS, 120 X 150 CM (A X L) | C52: UN | D52: 881,99 | E52: CR
A53: 4053 | B53: !EM PROCESSO DE DESATIVACAO!MASSA A OLEO PARA MADEIRA | C53: GL | D53: 60,83 | E53: C
A54: 4056 | B54: !EM PROCESSO DE DESATIVACAO!MASSA ACRILICA PARA PAREDES INTERIOR/EXTERIOR | C54: GL | D54: 31,99 | E54: C
A55: 21136 | B55: !EM PROCESSO DESATIVACAO! ELETRODUTO EM ACO GALVANIZADO ELETROLITICO, LEVE, DIAMETRO 1", PAREDE DE 0,90 MM | C55: M | D55: 14,82 | E55: CR
A56: 21128 | B56: !EM PROCESSO DESATIVACAO! ELETRODUTO EM ACO GALVANIZADO ELETROLITICO, LEVE, DIAMETRO 3/4", PAREDE DE 0,90 MM | C56: M | D56: 11,47 | E56: AS
A57: 21130 | B57: !EM PROCESSO DESATIVACAO! ELETRODUTO EM ACO GALVANIZADO ELETROLITICO, SEMI-PESADO, DIAMETRO 1 1/2", PAREDE DE 1,20 MM | C57: M | D57: 28,97 | E57: CR
A58: 21135 | B58: !EM PROCESSO DESATIVACAO! ELETRODUTO EM ACO GALVANIZADO ELETROLITICO, SEMI-PESADO, DIAMETRO 1 1/4", PAREDE DE 1,20 MM | C58: M | D58: 28,52 | E58: CR
A59: 38605 | B59: ABERTURA PARA ENCAIXE DE CUBA OU LAVATORIO EM BANCADA DE MARMORE/ GRANITO OU OUTRO TIPO DE PEDRA NATURAL | C59: UN | D59: 105,55 | E59: CR
A60: 11270 | B60: ABRACADEIRA DE LATAO PARA FIXACAO DE CABO PARA-RAIO, DIMENSOES 32 X 24 X 24 MM | C60: UN | D60: 1,26 | E60: C
A61: 412 | B61: ABRACADEIRA DE NYLON PARA AMARRACAO DE CABOS, COMPRIMENTO DE *230* X *7,6* MM | C61: UN | D61: 0,87 | E61: CR
A62: 414 | B62: ABRACADEIRA DE NYLON PARA AMARRACAO DE CABOS, COMPRIMENTO DE 100 X 2,5 MM | C62: UN | D62: 0,05 | E62: CR
A63: 410 | B63: ABRACADEIRA DE NYLON PARA AMARRACAO DE CABOS, COMPRIMENTO DE 150 X *3,6* MM | C63: UN | D63: 0,13 | E63: CR
A64: 411 | B64: ABRACADEIRA DE NYLON PARA AMARRACAO DE CABOS, COMPRIMENTO DE 200 X *4,6* MM | C64: UN | D64: 0,17 | E64: CR
A65: 408 | B65: ABRACADEIRA DE NYLON PARA AMARRACAO DE CABOS, COMPRIMENTO DE 390 X *4,6* MM | C65: UN | D65: 0,84 | E65: CR
A66: 39131 | B66: ABRACADEIRA EM ACO PARA AMARRACAO DE ELETRODUTOS, TIPO D, COM 1 1/2" E CUNHA DE FIXACAO | C66: UN | D66: 1,53 | E66: CR
A67: 394 | B67: ABRACADEIRA EM ACO PARA AMARRACAO DE ELETRODUTOS, TIPO D, COM 1 1/2" E PARAFUSO DE FIXACAO | C67: UN | D67: 1,55 | E67: CR
A68: 39130 | B68: ABRACADEIRA EM ACO PARA AMARRACAO DE ELETRODUTOS, TIPO D, COM 1 1/4" E CUNHA DE FIXACAO | C68: UN | D68: 1,39 | E68: CR
A69: 395 | B69: ABRACADEIRA EM ACO PARA AMARRACAO DE ELETRODUTOS, TIPO D, COM 1 1/4" E PARAFUSO DE FIXACAO | C69: UN | D69: 1,49 | E69: C
A70: 39127 | B70: ABRACADEIRA EM ACO PARA AMARRACAO DE ELETRODUTOS, TIPO D, COM 1/2" E CUNHA DE FIXACAO | C70: UN | D70: 0,73 | E70: CR
A71: 392 | B71: ABRACADEIRA EM ACO PARA AMARRACAO DE ELETRODUTOS, TIPO D, COM 1/2" E PARAFUSO DE FIXACAO | C71: UN | D71: 0,75 | E71: CR
A72: 39129 | B72: ABRACADEIRA EM ACO PARA AMARRACAO DE ELETRODUTOS, TIPO D, COM 1" E CUNHA DE FIXACAO | C72: UN | D72: 0,86 | E72: CR
A73: 393 | B73: ABRACADEIRA EM ACO PARA AMARRACAO DE ELETRODUTOS, TIPO D, COM 1" E PARAFUSO DE FIXACAO | C73: UN | D73: 0,90 | E73: CR
A74: 39133 | B74: ABRACADEIRA EM ACO PARA AMARRACAO DE ELETRODUTOS, TIPO D, COM 2 1/2" E CUNHA DE FIXACAO | C74: UN | D74: 2,01 | E74: CR
A75: 397 | B75: ABRACADEIRA EM ACO PARA AMARRACAO DE ELETRODUTOS, TIPO D, COM 2 1/2" E PARAFUSO DE FIXACAO | C75: UN | D75: 2,22 | E75: CR
A76: 39132 | B76: ABRACADEIRA EM ACO PARA AMARRACAO DE ELETRODUTOS, TIPO D, COM 2" E CUNHA DE FIXACAO | C76: UN | D76: 1,60 | E76: CR
A77: 396 | B77: ABRACADEIRA EM ACO PARA AMARRACAO DE ELETRODUTOS, TIPO D, COM 2" E PARAFUSO DE FIXACAO | C77: UN | D77: 1,72 | E77: CR
A78: 39135 | B78: ABRACADEIRA EM ACO PARA AMARRACAO DE ELETRODUTOS, TIPO D, COM 3 1/2" E CUNHA DE FIXACAO | C78: UN | D78: 3,21 | E78: C
A79: 39128 | B79: ABRACADEIRA EM ACO PARA AMARRACAO DE ELETRODUTOS, TIPO D, COM 3/4" E CUNHA DE FIXACAO | C79: UN | D79: 0,80 | E79: CR
A80: 400 | B80: ABRACADEIRA EM ACO PARA AMARRACAO DE ELETRODUTOS, TIPO D, COM 3/4" E PARAFUSO DE FIXACAO | C80: UN | D80: 0,78 | E80: CR
A81: 39125 | B81: ABRACADEIRA EM ACO PARA AMARRACAO DE ELETRODUTOS, TIPO D, COM 3/8" E PARAFUSO DE FIXACAO | C81: UN | D81: 0,80 | E81: CR
A82: 39134 | B82: ABRACADEIRA EM ACO PARA AMARRACAO DE ELETRODUTOS, TIPO D, COM 3" E CUNHA DE FIXACAO | C82: UN | D82: 2,68 | E82: CR
A83: 398 | B83: ABRACADEIRA EM ACO PARA AMARRACAO DE ELETRODUTOS, TIPO D, COM 3" E PARAFUSO DE FIXACAO | C83: UN | D83: 2,47 | E83: CR
A84: 39126 | B84: ABRACADEIRA EM ACO PARA AMARRACAO DE ELETRODUTOS, TIPO D, COM 4" E CUNHA DE FIXACAO | C84: UN | D84: 3,61 | E84: CR
A85: 399 | B85: ABRACADEIRA EM ACO PARA AMARRACAO DE ELETRODUTOS, TIPO D, COM 4" E PARAFUSO DE FIXACAO | C85: UN | D85: 3,18 | E85: CR
A86: 39158 | B86: ABRACADEIRA EM ACO PARA AMARRACAO DE ELETRODUTOS, TIPO ECONOMICA (GOTA), COM 8" | C86: UN | D86: 8,55 | E86: CR
A87: 39141 | B87: ABRACADEIRA EM ACO PARA AMARRACAO DE ELETRODUTOS, TIPO U SIMPLES, COM 1 1/2" | C87: UN | D87: 0,62 | E87: CR
A88: 39140 | B88: ABRACADEIRA EM ACO PARA AMARRACAO DE ELETRODUTOS, TIPO U SIMPLES, COM 1 1/4" | C88: UN | D88: 0,56 | E88: CR
A89: 39137 | B89: ABRACADEIRA EM ACO PARA AMARRACAO DE ELETRODUTOS, TIPO U SIMPLES, COM 1/2" | C89: UN | D89: 0,32 | E89: CR
A90: 39139 | B90: ABRACADEIRA EM ACO PARA AMARRACAO DE ELETRODUTOS, TIPO U SIMPLES, COM 1" | C90: UN | D90: 0,46 | E90: CR
A91: 39143 | B91: ABRACADEIRA EM ACO PARA AMARRACAO DE ELETRODUTOS, TIPO U SIMPLES, COM 2 1/2" | C91: UN | D91: 1,28 | E91: CR
A92: 39142 | B92: ABRACADEIRA EM ACO PARA AMARRACAO DE ELETRODUTOS, TIPO U SIMPLES, COM 2" | C92: UN | D92: 0,91 | E92: CR
A93: 39138 | B93: ABRACADEIRA EM ACO PARA AMARRACAO DE ELETRODUTOS, TIPO U SIMPLES, COM 3/4" | C93: UN | D93: 0,34 | E93: CR
A94: 39136 | B94: ABRACADEIRA EM ACO PARA AMARRACAO DE ELETRODUTOS, TIPO U SIMPLES, COM 3/8" | C94: UN | D94: 0,22 | E94: CR
A95: 39144 | B95: ABRACADEIRA EM ACO PARA AMARRACAO DE ELETRODUTOS, TIPO U SIMPLES, COM 3" | C95: UN | D95: 1,49 | E95: CR
A96: 39145 | B96: ABRACADEIRA EM ACO PARA AMARRACAO DE ELETRODUTOS, TIPO U SIMPLES, COM 4" | C96: UN | D96: 2,46 | E96: CR
A97: 12615 | B97: ABRACADEIRA PVC, PARA CALHA PLUVIAL, DIAMETRO ENTRE 80 E 100 MM, PARA DRENAGEM PREDIAL | C97: UN | D97: 2,99 | E97: CR
A98: 11927 | B98: ABRACADEIRA, GALVANIZADA/ZINCADA, ROSCA SEM FIM, PARAFUSO INOX, LARGURA FITA *12,6 A *14 MM, D = 2" A 2 1/2" | C98: UN | D98: 3,76 | E98: CR
A99: 11928 | B99: ABRACADEIRA, GALVANIZADA/ZINCADA, ROSCA SEM FIM, PARAFUSO INOX, LARGURA FITA *12,6 A *14 MM, D = 3" A 3 3/4" | C99: UN | D99: 4,30 | E99: CR
A100: 11929 | B100: ABRACADEIRA, GALVANIZADA/ZINCADA, ROSCA SEM FIM, PARAFUSO INOX, LARGURA FITA *12,6 A *14 MM, D = 4" A 4 3/4" | C100: UN | D100: 6,66 | E100: CR
A101: 36801 | B101: ACABAMENTO CROMADO PARA REGISTRO PEQUENO, 1/2 " OU 3/4 " | C101: UN | D101: 26,91 | E101: CR
A102: 36246 | B102: ACABAMENTO SIMPLES/CONVENCIONAL PARA FORRO PVC, TIPO "U" OU "C", COR BRANCA, COMPRIMENTO 6 M | C102: M | D102: 2,90 | E102: AS
A103: 37600 | B103: ACESSORIO DE LIGACAO NAO ELETRICO PARA CARGAS EXPLOSIVAS, TUBO DE 6 M | C103: UN | D103: 76,91 | E103: CR
A104: 37599 | B104: ACESSORIO INICIADOR NAO ELETRICO, TUBO DE 6 M, TEMPO DE RETARDO DE *160* MS | C104: UN | D104: 71,59 | E104: CR
A105: 1 | B105: ACETILENO (RECARGA PARA CILINDRO DE CONJUNTO OXICORTE GRANDE) | C105: KG | D105: 45,00 | E105: CR
A106: 3 | B106: ACIDO MURIATICO, DILUICAO 10% A 12% PARA USO EM LIMPEZA | C106: L | D106: 6,51 | E106: CR
A107: 43054 | B107: ACO CA-25, 10,0 MM, OU 12,5 MM, OU 16,0 MM, OU 20,0 MM, OU 25,0 MM, VERGALHAO | C107: KG | D107: 5,83 | E107: CR
A108: 42402 | B108: ACO CA-25, 16,0 MM, BARRA DE TRANSFERENCIA | C108: KG | D108: 5,57 | E108: AS
A109: 42403 | B109: ACO CA-25, 20,0 MM, BARRA DE TRANSFERENCIA | C109: KG | D109: 7,14 | E109: AS
A110: 42404 | B110: ACO CA-25, 25,0 MM, BARRA DE TRANSFERENCIA | C110: KG | D110: 7,10 | E110: C
A111: 42405 | B111: ACO CA-25, 32,0 MM, BARRA DE TRANSFERENCIA | C111: KG | D111: 7,57 | E111: CR
A112: 34341 | B112: ACO CA-25, 32,0 MM, VERGALHAO | C112: KG | D112: 6,57 | E112: CR
A113: 43053 | B113: ACO CA-25, 6,3 MM OU 8,0 MM, VERGALHAO | C113: KG | D113: 5,20 | E113: CR
A114: 43058 | B114: ACO CA-50, 10,0 MM, OU 12,5 MM, OU 16,0 MM, OU 20,0 MM, DOBRADO E CORTADO | C114: KG | D114: 5,40 | E114: CR
A115: 34 | B115: ACO CA-50, 10,0 MM, VERGALHAO | C115: KG | D115: 5,42 | E115: CR
A116: 43055 | B116: ACO CA-50, 12,5 MM OU 16,0 MM, VERGALHAO | C116: KG | D116: 4,70 | E116: CR
A117: 43056 | B117: ACO CA-50, 20,0 MM OU 25,0 MM, VERGALHAO | C117: KG | D117: 5,42 | E117: CR
A118: 43057 | B118: ACO CA-50, 32,0 MM, VERGALHAO | C118: KG | D118: 5,95 | E118: CR
A119: 34449 | B119: ACO CA-50, 6,3 MM, DOBRADO E CORTADO | C119: KG | D119: 6,36 | E119: CR
A120: 32 | B120: ACO CA-50, 6,3 MM, VERGALHAO | C120: KG | D120: 5,72 | E120: C
A121: 33 | B121: ACO CA-50, 8,0 MM, VERGALHAO | C121: KG | D121: 5,75 | E121: CR
A122: 43061 | B122: ACO CA-60, 4,2 MM OU 5,0 MM, DOBRADO E CORTADO | C122: KG | D122: 5,38 | E122: CR
A123: 43059 | B123: ACO CA-60, 4,2 MM, OU 5,0 MM, OU 6,0 MM, OU 7,0 MM, VERGALHAO | C123: KG | D123: 5,13 | E123: CR
A124: 43062 | B124: ACO CA-60, 6,0 MM OU 7,0 MM, DOBRADO E CORTADO | C124: KG | D124: 5,69 | E124: CR
A125: 43060 | B125: ACO CA-60, 8,0 MM OU 9,5 MM, VERGALHAO | C125: KG | D125: 4,47 | E125: CR
A126: 20063 | B126: ACOPLAMENTO DE CONDUTOR PLUVIAL, EM PVC, DIAMETRO ENTRE 80 E 100 MM, PARA DRENAGEM PREDIAL | C126: UN | D126: 2,97 | E126: CR
A127: 40410 | B127: ACOPLAMENTO RIGIDO EM FERRO FUNDIDO PARA SISTEMA DE TUBULACAO RANHURADA, DN 50 MM (2") | C127: UN | D127: 18,21 | E127: CR
A128: 40411 | B128: ACOPLAMENTO RIGIDO EM FERRO FUNDIDO PARA SISTEMA DE TUBULACAO RANHURADA, DN 65 MM (2 1/2") | C128: UN | D128: 19,76 | E128: CR
A129: 40412 | B129: ACOPLAMENTO RIGIDO EM FERRO FUNDIDO PARA SISTEMA DE TUBULACAO RANHURADA, DN 80 MM (3") | C129: UN | D129: 22,18 | E129: CR
A130: 38838 | B130: ADAPTADOR DE COBRE PARA TUBULACAO PEX, DN 16 X 15 MM | C130: UN | D130: 12,47 | E130: AS
A131: 38839 | B131: ADAPTADOR DE COBRE PARA TUBULACAO PEX, DN 20 X 22 MM | C131: UN | D131: 14,68 | E131: AS
A132: 55 | B132: ADAPTADOR DE COMPRESSAO EM POLIPROPILENO (PP), PARA TUBO EM PEAD, 20 MM X 1/2", PARA LIGACAO PREDIAL DE AGUA (NTS 179) | C132: UN | D132: 5,58 | E132: AS
A133: 61 | B133: ADAPTADOR DE COMPRESSAO EM POLIPROPILENO (PP), PARA TUBO EM PEAD, 20 MM X 3/4", PARA LIGACAO PREDIAL DE AGUA (NTS 179) | C133: UN | D133: 5,28 | E133: AS
A134: 62 | B134: ADAPTADOR DE COMPRESSAO EM POLIPROPILENO (PP), PARA TUBO EM PEAD, 32 MM X 1", PARA LIGACAO PREDIAL DE AGUA (NTS 179) | C134: UN | D134: 10,94 | E134: CR
A135: 77 | B135: ADAPTADOR PVC PARA SIFAO METALICO, SOLDAVEL, COM ANEL BORRACHA (JE), 40 MM X 1 1/2" | C135: UN | D135: 0,86 | E135: CR
A136: 76 | B136: ADAPTADOR PVC PARA SIFAO, ROSCAVEL, 40 MM X 1 1/4" | C136: UN | D136: 0,88 | E136: C
A137: 67 | B137: ADAPTADOR PVC ROSCAVEL, COM FLANGES E ANEL DE VEDACAO, 1/2", PARA CAIXA D' AGUA | C137: UN | D137: 8,51 | E137: CR
A138: 71 | B138: ADAPTADOR PVC ROSCAVEL, COM FLANGES E ANEL DE VEDACAO, 1", PARA CAIXA D' AGUA | C138: UN | D138: 15,64 | E138: CR
A139: 73 | B139: ADAPTADOR PVC ROSCAVEL, COM FLANGES E ANEL DE VEDACAO, 3/4", PARA CAIXA D' AGUA | C139: UN | D139: 11,68 | E139: CR
A140: 103 | B140: ADAPTADOR PVC SOLDAVEL CURTO COM BOLSA E ROSCA, 110 MM X 4", PARA AGUA FRIA | C140: UN | D140: 34,75 | E140: CR
A141: 107 | B141: ADAPTADOR PVC SOLDAVEL CURTO COM BOLSA E ROSCA, 20 MM X 1/2", PARA AGUA FRIA | C141: UN | D141: 0,54 | E141: CR
A142: 65 | B142: ADAPTADOR PVC SOLDAVEL CURTO COM BOLSA E ROSCA, 25 MM X 3/4", PARA AGUA FRIA | C142: UN | D142: 0,67 | E142: CR
A143: 108 | B143: ADAPTADOR PVC SOLDAVEL CURTO COM BOLSA E ROSCA, 32 MM X 1", PARA AGUA FRIA | C143: UN | D143: 1,39 | E143: CR
A144: 110 | B144: ADAPTADOR PVC SOLDAVEL CURTO COM BOLSA E ROSCA, 40 MM X 1 1/2", PARA AGUA FRIA | C144: UN | D144: 5,36 | E144: CR
A145: 109 | B145: ADAPTADOR PVC SOLDAVEL CURTO COM BOLSA E ROSCA, 40 MM X 1 1/4", PARA AGUA FRIA | C145: UN | D145: 2,64 | E145: CR
A146: 111 | B146: ADAPTADOR PVC SOLDAVEL CURTO COM BOLSA E ROSCA, 50 MM X 1 1/4", PARA AGUA FRIA | C146: UN | D146: 6,18 | E146: CR
A147: 112 | B147: ADAPTADOR PVC SOLDAVEL CURTO COM BOLSA E ROSCA, 50 MM X1 1/2", PARA AGUA FRIA | C147: UN | D147: 3,36 | E147: CR
A148: 113 | B148: ADAPTADOR PVC SOLDAVEL CURTO COM BOLSA E ROSCA, 60 MM X 2", PARA AGUA FRIA | C148: UN | D148: 9,14 | E148: CR
A149: 104 | B149: ADAPTADOR PVC SOLDAVEL CURTO COM BOLSA E ROSCA, 75 MM X 2 1/2", PARA AGUA FRIA | C149: UN | D149: 13,29 | E149: CR
A150: 102 | B150: ADAPTADOR PVC SOLDAVEL CURTO COM BOLSA E ROSCA, 85 MM X 3", PARA AGUA FRIA | C150: UN | D150: 21,82 | E150: CR
A151: 95 | B151: ADAPTADOR PVC SOLDAVEL, COM FLANGE E ANEL DE VEDACAO, 20 MM X 1/2", PARA CAIXA D'AGUA | C151: UN | D151: 7,39 | E151: CR
A152: 96 | B152: ADAPTADOR PVC SOLDAVEL, COM FLANGE E ANEL DE VEDACAO, 25 MM X 3/4", PARA CAIXA D'AGUA | C152: UN | D152: 8,49 | E152: CR
A153: 97 | B153: ADAPTADOR PVC SOLDAVEL, COM FLANGE E ANEL DE VEDACAO, 32 MM X 1", PARA CAIXA D'AGUA | C153: UN | D153: 11,03 | E153: CR
A154: 98 | B154: ADAPTADOR PVC SOLDAVEL, COM FLANGE E ANEL DE VEDACAO, 40 MM X 1 1/4", PARA CAIXA D'AGUA | C154: UN | D154: 14,87 | E154: CR
A155: 99 | B155: ADAPTADOR PVC SOLDAVEL, COM FLANGE E ANEL DE VEDACAO, 50 MM X 1 1/2", PARA CAIXA D'AGUA | C155: UN | D155: 18,03 | E155: CR
A156: 100 | B156: ADAPTADOR PVC SOLDAVEL, COM FLANGES E ANEL DE VEDACAO, 60 MM X 2", PARA CAIXA D' AGUA | C156: UN | D156: 25,15 | E156: CR
A157: 75 | B157: ADAPTADOR PVC SOLDAVEL, COM FLANGES LIVRES, 110 MM X 4", PARA CAIXA D' AGUA | C157: UN | D157: 262,19 | E157: CR
A158: 114 | B158: ADAPTADOR PVC SOLDAVEL, COM FLANGES LIVRES, 25 MM X 3/4", PARA CAIXA D' AGUA | C158: UN | D158: 9,55 | E158: CR
A159: 68 | B159: ADAPTADOR PVC SOLDAVEL, COM FLANGES LIVRES, 32 MM X 1", PARA CAIXA D' AGUA | C159: UN | D159: 14,61 | E159: CR
A160: 86 | B160: ADAPTADOR PVC SOLDAVEL, COM FLANGES LIVRES, 40 MM X 1 1/4", PARA CAIXA D' AGUA | C160: UN | D160: 27,16 | E160: CR
A161: 66 | B161: ADAPTADOR PVC SOLDAVEL, COM FLANGES LIVRES, 50 MM X 1 1/2", PARA CAIXA D' AGUA | C161: UN | D161: 27,25 | E161: CR
A162: 69 | B162: ADAPTADOR PVC SOLDAVEL, COM FLANGES LIVRES, 60 MM X 2", PARA CAIXA D' AGUA | C162: UN | D162: 41,66 | E162: CR
A163: 83 | B163: ADAPTADOR PVC SOLDAVEL, COM FLANGES LIVRES, 75 MM X 2 1/2", PARA CAIXA D' AGUA | C163: UN | D163: 133,06 | E163: CR
A164: 74 | B164: ADAPTADOR PVC SOLDAVEL, COM FLANGES LIVRES, 85 MM X 3", PARA CAIXA D' AGUA | C164: UN | D164: 185,76 | E164: CR
A165: 106 | B165: ADAPTADOR PVC SOLDAVEL, LONGO, COM FLANGE LIVRE, 110 MM X 4", PARA CAIXA D' AGUA | C165: UN | D165: 282,20 | E165: CR
A166: 87 | B166: ADAPTADOR PVC SOLDAVEL, LONGO, COM FLANGE LIVRE, 25 MM X 3/4", PARA CAIXA D' AGUA | C166: UN | D166: 13,41 | E166: CR
A167: 88 | B167: ADAPTADOR PVC SOLDAVEL, LONGO, COM FLANGE LIVRE, 32 MM X 1", PARA CAIXA D' AGUA | C167: UN | D167: 14,97 | E167: CR
A168: 89 | B168: ADAPTADOR PVC SOLDAVEL, LONGO, COM FLANGE LIVRE, 40 MM X 1 1/4", PARA CAIXA D' AGUA | C168: UN | D168: 22,13 | E168: CR
A169: 90 | B169: ADAPTADOR PVC SOLDAVEL, LONGO, COM FLANGE LIVRE, 50 MM X 1 1/2", PARA CAIXA D' AGUA | C169: UN | D169: 25,36 | E169: CR
A170: 81 | B170: ADAPTADOR PVC SOLDAVEL, LONGO, COM FLANGE LIVRE, 60 MM X 2", PARA CAIXA D' AGUA | C170: UN | D170: 43,37 | E170: CR
A171: 82 | B171: ADAPTADOR PVC SOLDAVEL, LONGO, COM FLANGE LIVRE, 75 MM X 2 1/2", PARA CAIXA D' AGUA | C171: UN | D171: 168,38 | E171: CR
A172: 105 | B172: ADAPTADOR PVC SOLDAVEL, LONGO, COM FLANGE LIVRE, 85 MM X 3", PARA CAIXA D' AGUA | C172: UN | D172: 197,13 | E172: CR
A173: 60 | B173: ADAPTADOR PVC, COM REGISTRO, PARA PEAD, 20 MM X 3/4", PARA LIGACAO PREDIAL DE AGUA | C173: UN | D173: 7,24 | E173: CR
A174: 72 | B174: ADAPTADOR PVC, ROSCAVEL, COM FLANGES E ANEL DE VEDACAO, 1 1/2", PARA CAIXA D'AGUA | C174: UN | D174: 26,51 | E174: CR
A175: 70 | B175: ADAPTADOR PVC, ROSCAVEL, COM FLANGES E ANEL DE VEDACAO, 1 1/4", PARA CAIXA D' AGUA | C175: UN | D175: 22,17 | E175: CR
A176: 85 | B176: ADAPTADOR PVC, ROSCAVEL, COM FLANGES E ANEL DE VEDACAO, 2", PARA CAIXA D' AGUA | C176: UN | D176: 32,18 | E176: CR
A177: 84 | B177: ADAPTADOR PVC, ROSCAVEL, PARA VALVULA PIA OU LAVATORIO, 40 MM | C177: UN | D177: 0,37 | E177: CR
A178: 37997 | B178: ADAPTADOR, CPVC, SOLDAVEL, 15 MM, PARA AGUA QUENTE | C178: UN | D178: 5,60 | E178: CR
A179: 37998 | B179: ADAPTADOR, CPVC, SOLDAVEL, 22 MM, PARA AGUA QUENTE | C179: UN | D179: 5,81 | E179: CR
A180: 10899 | B180: ADAPTADOR, EM LATAO, ENGATE RAPIDO 2 1/2" X ROSCA INTERNA 5 FIOS 2 1/2", PARA INSTALACAO PREDIAL DE COMBATE A INCENDIO | C180: UN | D180: 55,55 | E180: CR
A181: 10900 | B181: ADAPTADOR, EM LATAO, ENGATE RAPIDO1 1/2" X ROSCA INTERNA 5 FIOS 2 1/2", PARA INSTALACAO PREDIAL DE COMBATE A INCENDIO | C181: UN | D181: 43,47 | E181: CR
A182: 46 | B182: ADAPTADOR, PVC PBA, BOLSA/ROSCA, JE, DN 75 / DE 85 MM | C182: UN | D182: 35,80 | E182: CR
A183: 51 | B183: ADAPTADOR, PVC PBA, A BOLSA DEFOFO, JE, DN 100 / DE 110 MM | C183: UN | D183: 98,76 | E183: CR
A184: 12863 | B184: ADAPTADOR, PVC PBA, A BOLSA DEFOFO, JE, DN 50 / DE 60 MM | C184: UN | D184: 22,75 | E184: CR
A185: 50 | B185: ADAPTADOR, PVC PBA, A BOLSA DEFOFO, JE, DN 75 / DE 85 MM | C185: UN | D185: 51,57 | E185: CR
A186: 47 | B186: ADAPTADOR, PVC PBA, BOLSA/ROSCA, JE, DN 100 / DE 110 MM | C186: UN | D186: 61,21 | E186: AS
A187: 48 | B187: ADAPTADOR, PVC PBA, BOLSA/ROSCA, JE, DN 50 / DE 60 MM | C187: UN | D187: 15,96 | E187: AS
A188: 52 | B188: ADAPTADOR, PVC PBA, PONTA/ROSCA, JE, DN 50 / DE 60 MM | C188: UN | D188: 12,13 | E188: AS
A189: 43 | B189: ADAPTADOR, PVC PBA, PONTA/ROSCA, JE, DN 75 / DE 85 MM | C189: UN | D189: 40,94 | E189: AS
A190: 4791 | B190: ADESIVO ACRILICO/COLA DE CONTATO | C190: KG | D190: 19,06 | E190: AS
A191: 157 | B191: ADESIVO ESTRUTURAL A BASE DE RESINA EPOXI PARA INJECAO EM TRINCAS, BICOMPONENTE, BAIXA VISCOSIDADE | C191: KG | D191: 106,99 | E191: AS
A192: 156 | B192: ADESIVO ESTRUTURAL A BASE DE RESINA EPOXI, BICOMPONENTE, FLUIDO | C192: KG | D192: 38,09 | E192: AS
A193: 131 | B193: ADESIVO ESTRUTURAL A BASE DE RESINA EPOXI, BICOMPONENTE, PASTOSO (TIXOTROPICO) | C193: KG | D193: 32,58 | E193: AS
A194: 39719 | B194: ADESIVO LIQUIDO A BASE DE RESINAS PARA COLAGEM DE ESPUMA DE ISOLAMENTO TERMICO FLEXIVEL | C194: L | D194: 83,40 | E194: CR
A195: 21114 | B195: ADESIVO PARA TUBOS CPVC, *75* G | C195: UN | D195: 17,87 | E195: CR
A196: 119 | B196: ADESIVO PLASTICO PARA PVC, BISNAGA COM 75 GR | C196: UN | D196: 7,05 | E196: CR
A197: 20080 | B197: ADESIVO PLASTICO PARA PVC, FRASCO COM 175 GR | C197: UN | D197: 20,21 | E197: CR
A198: 122 | B198: ADESIVO PLASTICO PARA PVC, FRASCO COM 850 GR | C198: UN | D198: 63,68 | E198: CR
A199: 3410 | B199: ADESIVO/COLA PARA EPS (ISOPOR) E OUTROS MATERIAIS | C199: KG | D199: 26,69 | E199: CR
A200: 124 | B200: ADITIVO ACELERADOR DE PEGA E ENDURECIMENTO PARA ARGAMASSAS E CONCRETOS, LIQUIDO E ISENTO DE CLORETOS | C200: L | D200: 12,56 | E200: C
A201: 7334 | B201: ADITIVO ADESIVO LIQUIDO PARA ARGAMASSAS DE REVESTIMENTOS CIMENTICIOS | C201: L | D201: 11,11 | E201: CR
A202: 123 | B202: ADITIVO IMPERMEABILIZANTE DE PEGA NORMAL PARA ARGAMASSAS E CONCRETOS SEM ARMACAO, LIQUIDO E ISENTO DE CLORETOS | C202: L | D202: 5,14 | E202: CR
... 5084 more rows

Sheet Composições novas
A1: CÓDIGO | B1: CÓDIGO COMPONENTE | C1: DESCRIÇÃO | D1: CLASS | E1: Unidade | F1: Coeficiente | G1: Preço (R$) | H1: Preço Material (R$) | I1: Preço Mão de Obra (R$) | J1: Preço Outros (R$) | K1: Preço Total (R$)
A2: comp 001 | C2: Corte, Recorte e Remoção de Árvores 5 cm < DAP < 15 cm | D2: SER.CG. | E2: un | F2: 1 | H2: =SUM(H6:H11) -> 4.23 | I2: =SUM(I3:I11) -> 3.69 | J2: =SUM(J6:J11) -> 3.92644329 | K2: =SUM(H2:J2) -> 11.84644329
B3: Compreende:
B4: Medição: | C4: Por unidade removida
B5: Notas:
B6: 13955 | C6: Motosserra a gasolina de pequeno porte, potência mínima (4 CV) _ Depreciação | D6: EQ.CH. | E6: UN | F6: 0.000633 | G6: 2.683,83 | J6: =F6*G6 -> 1.69886439 | K6: =J6+H6+I6 -> 1.69886439
B7: 13955 | C7: Motosserra a gasolina de pequeno porte, potência mínima (4 CV) _ Juros | D7: EQ.CH. | E7: UN | F7: 8e-05 | G7: 2.683,83 | J7: =F7*G7 -> 0.2147064 | K7: 0.2147064
B8: 13955 | C8: Motosserra a gasolina de pequeno porte, potência mínima (4 CV) _ Manutenção | D8: EQ.CH. | E8: UN | F8: 0.00075 | G8: 2.683,83 | J8: 2.0128725 | K8: 2.0128725
B9: 4222 | C9: Motosserra a gasolina de pequeno porte, potência mínima (4 CV) _ Materiais na Operação_Gasolina | D9: EQ.CH. | E9: L | F9: 1 | G9: 4.23 | H9: =F9*G9 -> 4.23 | K9: =J9+H9+I9 -> 4.23
B10: 88297 | C10: OPERADOR DE MÁQUINAS E EQUIPAMENTOS COM ENCARGOS COMPLEMENTARES | D10: M.O. | E10: H | F10: 0.1 | G10: 20.39 | I10: =F10*G10 -> 2.039 | K10: =J10+H10+I10 -> 2.039
B11: 88316 | C11: SERVENTE COM ENCARGOS COMPLEMENTARES | D11: M.O. | E11: H | F11: 0.1 | G11: 16,51 | I11: =F11*G11 -> 1.651 | K11: 1.651
A13: CÓDIGO | B13: CÓDIGO COMPONENTE | C13: DESCRIÇÃO | D13: CLASS | E13: Unidade | F13: Coeficiente | G13: Preço (R$) | H13: Preço Material (R$) | I13: Preço Mão de Obra (R$) | J13: Preço Outros (R$) | K13: Preço Total (R$)
A14: comp 002 | C14: Enrocamento com pedra de mão, inclusive espalhamento e compactação | D14: SER.CG. | E14: un | F14: 1 | H14: =SUM(H18:H19) -> 0 | I14: =SUM(I15:I19) -> 0 | J14: =SUM(J18:J19) -> 73.9 | K14: =SUM(H14:J14) -> 73.9
B15: Compreende:
B16: Medição: | C16: metro cúbico executado
B17: Notas: | C17: Idêntica a composição SICRO 1505877 -
B18: 1505877 | C18: Enrocamento com pedra de mão, inclusive espalhamento e compactação mecânica - fornecimento e assentamento | D18: EQ.CH. | E18: m³ | F18: 1 | G18: 73.9 | J18: =F18*G18 -> 73.9 | K18: =J18+H18+I18 -> 73.9
A22: comp 003 | C22: Execução de drenos em tubos drenantes, DN100mm envolto em geotêxtil | D22: SER.CG. | E22: un | F22: 1 | H22: =SUM(H26:H30) -> 21.403 | I22: =SUM(I23:I30) -> 1.584225 | J22: =SUM(J26:J30) -> 0 | K22: =SUM(H22:J22) -> 22.987225
B23: Compreende:
B24: Medição: | C24: Por metro
B25: Notas: | C25: Análogo ao código sinapi 74017/1 sem o material brita n.3 e n.4
B26: 88267 | C26: Encanador ou bombeiro hidráulico com encargos | D26: M.O. | E26: H | F26: 0.0175 | G26: 19.77 | I26: =F26*G26 -> 0.345975 | K26: =J26+H26+I26 -> 0.345975
B27: 88316 | C27: Servente com encargos complementares | D27: M.O. | E27: H | F27: 0.075 | G27: 16.51 | I27: =F27*G27 -> 1.23825 | K27: 1.23825
B28: 9833 | C28: Tubo pvc, flexivel, corrugado, perfurado, DN 110 | D28: MAT | E28: m³ | F28: 1 | G28: 8.03 | H28: =F28*G28 -> 8.03 | K28: 8.03
B29: 4021 | C29: Geotextil nao tecido agulhado de filamentos | D29: MAT | E29: m² | F29: 2.15 | G29: 6.22 | H29: =F29*G29 -> 13.373 | K29: =J29+H29+I29 -> 13.373
A32: comp 004 | C32: Execução proteção mecânica em concreto simples | D32: SER.CG. | E32: un | F32: 1 | H32: =SUM(H36:H41) -> 384.7632 | I32: =SUM(I33:I41) -> 91.4956 | J32: =SUM(J36:J41) -> 0 | K32: =SUM(H32:J32) -> 476.2588
B33: Compreende:
B34: Medição: | C34: Por m² executado
B35: Notas: | C35: Idêntica a composição SINAPI 94991 execução de passeio (calçada) ou piso de concreto com concreto moldado in loco, usinado, acabamento convencional, não armado. af_07/2016
B36: 88309 | C36: Pedreiro com encargos complementares | D36: M.O. | E36: H | F36: 0.26 | G36: 19.99 | I36: =F36*G36 -> 5.1974 | K36: =J36+H36+I36 -> 5.1974
B37: 88316 | C37: Servente com encargos complementares | D37: M.O. | E37: H | F37: 2.516 | G37: 16.51 | I37: =F37*G37 -> 41.53916 | K37: 41.53916
B38: 34492 | C38: Concreto usinado bombeavel, classe de resistencia c20, com brita 0 e 1, slump = 100 +/- 20mm exclui servico de bombeamento (nbr 8953) | D38: MAT. | E38: M³ | F38: 1.213 | G38: 296.4 | H38: =F38*G38 -> 359.5332 | K38: 359.5332
B39: 4460 | C39: Sarrafo de madeira nao aparelhada *2,5 x 10 cm, macaranduba, angelim ou equivalente da regiao | D39: MAT. | E39: M | F39: 2.5 | G39: 9.1 | H39: =F39*G39 -> 22.75 | K39: 22.75
B40: 4517 | C40: Sarrafo *2,5 x 7,5* cm em pinus, mista ou equivalente da regiao | D40: MAT. | E40: M | F40: 2 | G40: 1.24 | H40: =F40*G40 -> 2.48 | K40: 2.48
B41: 88262 | C41: Carpinteiro de formas com encargos complementares | D41: M.O. | E41: H | F41: 2.256 | G41: 19.84 | I41: =F41*G41 -> 44.75904 | K41: 44.75904
A43: comp 005 | C43: Ligação provisória de água e esgotos | D43: SER.CG. | E43: un | F43: 1 | H43: 151.2 | I43: 410.64 | J43: 0 | K43: 561.84
B44: Compreende:
B45: Medição:
B46: Notas:
B47: 88267 | C47: ENCANADOR OU BOMBEIRO HIDRÁULICO COM ENCARGOS COMPLEMENTARES | D47: M.O. | E47: H | F47: 8 | G47: 19,77 | I47: 158.16 | K47: 158.16
B48: 88316 | C48: SERVENTE COM ENCARGOS COMPLEMENTARES | D48: M.O. | E48: H | F48: 8 | G48: 16,51 | I48: 132.08 | K48: 132.08
B49: 88248 | C49: AUXILIAR DE ENCANADOR OU BOMBEIRO HIDRÁULICO COM ENCARGOS COMPLEMENTARES | D49: M.O. | E49: H | F49: 8 | G49: 15,05 | I49: 120.4 | K49: 120.4
B50: 9836 | C50: TUBO PVC SERIE NORMAL, DN 100 MM, PARA ESGOTO PREDIAL (NBR 5688) | D50: MAT. | E50: M | F50: 12 | G50: 9,77 | H50: 117.24 | K50: 117.24
B51: 9868 | C51: TUBO PVC, SOLDAVEL, DN 25 MM, AGUA FRIA (NBR-5648) | D51: MAT. | E51: M | F51: 12 | G51: 2,83 | H51: 33.96 | K51: 33.96
A53: comp 006 | C53: Ligação provisória de força e luz | D53: SER.CG. | E53: un | F53: 1 | H53: =SUM(H54:H68) -> 1017.88 | I53: =SUM(I54:I68) -> 925.68 | J53: =SUM(J54:J68) -> 0 | K53: =SUM(K57:K68) -> 1943.56
B54: Compreende:
B55: Medição:
B56: Notas:
B57: 88264 | C57: =VLOOKUP($C57,Sinapi_Compo,2,FALSE) -> ELETRICISTA COM ENCARGOS COMPLEMENTARES | D57: M.O. | E57: =VLOOKUP(B57,Sinapi_Compo,3,FALSE) -> H | F57: 24 | G57: =VLOOKUP($B57,Sinapi_Compo,4,FALSE) -> 22,06 | I57: =ROUND(G57*F57,2) -> 529.44 | K57: =SUM(H57:J57) -> 529.44
B58: 88316 | C58: =VLOOKUP($B58,Sinapi_Compo,2,FALSE) -> SERVENTE COM ENCARGOS COMPLEMENTARES | D58: M.O. | E58: =VLOOKUP(B58,Sinapi_Compo,3,FALSE) -> H | F58: 24 | G58: =VLOOKUP($B58,Sinapi_Compo,4,FALSE) -> 16,51 | I58: =ROUND(G58*F58,2) -> 396.24 | K58: 396.24
B59: 392 | C59: =VLOOKUP(B59,Sinapi_Insumos,2,FALSE) -> ABRACADEIRA EM ACO PARA AMARRACAO DE ELETRODUTOS, TIPO D, COM 1/2" E PARAFUSO DE FIXACAO | D59: MAT. | E59: =VLOOKUP(B59,Sinapi_Insumos,3,FALSE) -> UN | F59: 1 | G59: =VLOOKUP($B59,Sinapi_Insumos,4,FALSE) -> 0,75 | H59: =ROUND(G59*F59,2) -> 0.75 | K59: 0.75
B60: 979 | C60: CABO DE COBRE, FLEXIVEL, CLASSE 4 OU 5, ISOLACAO EM PVC/A, ANTICHAMA BWF-B, 1 CONDUTOR, 450/750 V, SECAO NOMINAL 16 MM2 | D60: MAT. | E60: M | F60: 20 | G60: 9,59 | H60: 191.8 | K60: 191.8
B61: 1875 | C61: CURVA 90 GRAUS, LONGA, DE PVC RIGIDO ROSCAVEL, DE 1 1/2", PARA ELETRODUTO | D61: MAT. | E61: UN | F61: 2 | G61: 4,17 | H61: 8.34 | K61: 8.34
B62: 2673 | C62: ELETRODUTO DE PVC RIGIDO ROSCAVEL DE 1/2 ", SEM LUVA | D62: MAT. | E62: M | F62: 12 | G62: 2,83 | H62: 33.96 | K62: 33.96
B63: 3406 | C63: ISOLADOR DE PORCELANA, TIPO PINO MONOCORPO, PARA TENSAO DE *15* KV | D63: MAT. | E63: UN | F63: 4 | G63: 20,18 | H63: 80.72 | K63: 80.72
B64: 4481 | C64: VIGA DE MADEIRA NAO APARELHADA 8 X 16 CM, MACARANDUBA, ANGELIM OU EQUIVALENTE DA REGIAO | D64: MAT. | E64: M | F64: 6 | G64: 35,47 | H64: 212.82 | K64: 212.82
B65: 7701 | C65: TUBO ACO GALVANIZADO COM COSTURA, CLASSE MEDIA, DN 2.1/2", E = *3,65* MM, PESO *6,51* KG/M (NBR 5580) | D65: MAT. | E65: M | F65: 2 | G65: 62,52 | H65: 125.04 | K65: 125.04
B66: 12056 | C66: ELETRODUTO FLEXIVEL, EM ACO, TIPO CONDUITE, DIAMETRO DE 1 1/2" | D66: MAT. | E66: M | F66: 1 | G66: 27,18 | H66: 27.18 | K66: 27.18
B67: 13369 | C67: CHAVE SECCIONADORA-FUSIVEL BLINDADA TRIPOLAR, ABERTURA COM CARGA, PARA FUSIVEL NH00, CORRENTE NOMINAL DE 160 A, TENSAO DE 500 V | D67: MAT. | E67: UN | F67: 1 | G67: 328,51 | H67: 328.51 | K67: 328.51
B68: 12344 | C68: FUSIVEL DIAZED 20 A TAMANHO DII, CAPACIDADE DE INTERRUPCAO DE 50 KA EM VCA E 8 KA EM VCC, TENSAO NOMIMNAL DE 500 V | D68: MAT. | E68: UN | F68: 3 | G68: 2,92 | H68: 8.76 | K68: 8.76
A70: comp 007 | C70: Ponto de água externo | D70: SER.CG. | E70: un | F70: 1 | H70: =SUM(H71:H78) -> 32.26 | I70: =SUM(I71:I78) -> 139.28 | J70: =SUM(J71:J78) -> 0 | K70: =SUM(K74:K78) -> 171.54
B71: Compreende:
B72: Medição:
B73: Notas:
B74: 88267 | C74: =VLOOKUP(B74,Sinapi_Compo,2,FALSE) -> ENCANADOR OU BOMBEIRO HIDRÁULICO COM ENCARGOS COMPLEMENTARES | D74: M.O. | E74: =VLOOKUP(B74,Sinapi_Compo,3,FALSE) -> H | F74: 4 | G74: =VLOOKUP($B74,Sinapi_Compo,4,FALSE) -> 19,77 | I74: =ROUND(G74*F74,2) -> 79.08 | K74: =H74+I74+J74 -> 79.08
B75: 3522 | C75: =VLOOKUP(B75,Sinapi_Insumos,2,FALSE) -> JOELHO PVC, SOLDAVEL COM ROSCA, 90 GRAUS, 25 MM X 3/4", PARA AGUA FRIA PREDIAL | D75: MAT. | E75: =VLOOKUP(B75,Sinapi_Insumos,3,FALSE) -> UN | F75: 2 | G75: =VLOOKUP($B75,Sinapi_Insumos,4,FALSE) -> 2,54 | H75: =ROUND(G75*F75,2) -> 5.08 | K75: =H75+I75+J75 -> 5.08
B76: 88248 | C76: =VLOOKUP(B76,Sinapi_Compo,2,FALSE) -> AUXILIAR DE ENCANADOR OU BOMBEIRO HIDRÁULICO COM ENCARGOS COMPLEMENTARES | D76: M.O. | E76: =VLOOKUP(B76,Sinapi_Compo,3,FALSE) -> H | F76: 4 | G76: =VLOOKUP($B76,Sinapi_Compo,4,FALSE) -> 15,05 | I76: =ROUND(G76*F76,2) -> 60.2 | K76: =H76+I76+J76 -> 60.2
B77: 7602 | C77: =VLOOKUP(B77,Sinapi_Insumos,2,FALSE) -> TORNEIRA METAL AMARELO COM BICO PARA JARDIM, PADRAO POPULAR, 1/2 " OU 3/4 " (REF 1128) | D77: MAT. | E77: =VLOOKUP(B77,Sinapi_Insumos,3,FALSE) -> UN | F77: 1 | G77: =VLOOKUP($B77,Sinapi_Insumos,4,FALSE) -> 18,69 | H77: =ROUND(G77*F77,2) -> 18.69 | K77: =H77+I77+J77 -> 18.69
B78: 9868 | C78: =VLOOKUP(B78,Sinapi_Insumos,2,FALSE) -> TUBO PVC, SOLDAVEL, DN 25 MM, AGUA FRIA (NBR-5648) | D78: MAT. | E78: =VLOOKUP(B78,Sinapi_Insumos,3,FALSE) -> M | F78: 3 | G78: =VLOOKUP($B78,Sinapi_Insumos,4,FALSE) -> 2,83 | H78: =ROUND(G78*F78,2) -> 8.49 | K78: =H78+I78+J78 -> 8.49
A80: comp 008 | C80: Ponto de luz externo | D80: SER.CG. | E80: un | F80: 1 | H80: =SUM(H81:H90) -> 118.08 | I80: =SUM(I81:I90) -> 154.96 | J80: =SUM(J81:J90) -> 0 | K80: =SUM(K84:K90) -> 273.04
B81: Compreende:
B82: Medição:
B83: Notas:
B84: 2512 | C84: =VLOOKUP(B84,Sinapi_Insumos,2,FALSE) -> BRACO P/ LUMINARIA PUBLICA 1 X 1,50M ROMAGNOLE OU EQUIV | D84: MAT. | E84: =VLOOKUP(B84,Sinapi_Insumos,3,FALSE) -> UN | F84: 0.5 | G84: =VLOOKUP($B84,Sinapi_Insumos,4,FALSE) -> 22,33 | H84: =ROUND(G84*F84,2) -> 11.17 | K84: =H84+I84+J84 -> 11.17
B85: 3798 | C85: =VLOOKUP(B85,Sinapi_Insumos,2,FALSE) -> LUMINARIA ABERTA P/ ILUMINACAO PUBLICA, TIPO X-57 PETERCO OU EQUIV | D85: MAT. | E85: =VLOOKUP(B85,Sinapi_Insumos,3,FALSE) -> UN | F85: 0.5 | G85: =VLOOKUP($B85,Sinapi_Insumos,4,FALSE) -> 47,85 | H85: =ROUND(G85*F85,2) -> 23.93 | K85: 23.93
B86: 88264 | C86: =VLOOKUP($B86,Sinapi_Compo,2,FALSE) -> ELETRICISTA COM ENCARGOS COMPLEMENTARES | D86: M.O. | E86: =VLOOKUP(B86,Sinapi_Compo,3,FALSE) -> H | F86: 4 | G86: =VLOOKUP($B86,Sinapi_Compo,4,FALSE) -> 22,06 | I86: =ROUND(G86*F86,2) -> 88.24 | K86: 88.24
B87: 2736 | C87: =VLOOKUP(B87,Sinapi_Insumos,2,FALSE) -> MADEIRA ROLICA SEM TRATAMENTO, EUCALIPTO OU EQUIVALENTE DA REGIAO, H = 3 M, D = 20 A 24 CM (PARA ESCORAMENTO) | D87: MAT. | E87: =VLOOKUP(B87,Sinapi_Insumos,3,FALSE) -> M | F87: 0.5 | G87: =VLOOKUP($B87,Sinapi_Insumos,4,FALSE) -> 9,07 | H87: =ROUND(G87*F87,2) -> 4.54 | K87: 4.54
B88: 3750 | C88: =VLOOKUP(B88,Sinapi_Insumos,2,FALSE) -> LAMPADA DE LUZ MISTA 250 W, BASE E27 (220 V) | D88: MAT. | E88: =VLOOKUP(B88,Sinapi_Insumos,3,FALSE) -> UN | F88: 1 | G88: =VLOOKUP($B88,Sinapi_Insumos,4,FALSE) -> 41,24 | H88: =ROUND(G88*F88,2) -> 41.24 | K88: 41.24
B89: 88247 | C89: =VLOOKUP($B89,Sinapi_Compo,2,FALSE) -> AUXILIAR DE ELETRICISTA COM ENCARGOS COMPLEMENTARES | D89: M.O. | E89: =VLOOKUP(B89,Sinapi_Compo,3,FALSE) -> H | F89: 4 | G89: =VLOOKUP($B89,Sinapi_Compo,4,FALSE) -> 16,68 | I89: =ROUND(G89*F89,2) -> 66.72 | K89: 66.72
B90: 938 | C90: =VLOOKUP(B90,Sinapi_Insumos,2,FALSE) -> FIO DE COBRE, SOLIDO, CLASSE 1, ISOLACAO EM PVC/A, ANTICHAMA BWF-B, 450/750V, SECAO NOMINAL 1,5 MM2 | D90: MAT. | E90: =VLOOKUP(B90,Sinapi_Insumos,3,FALSE) -> M | F90: 40 | G90: =VLOOKUP($B90,Sinapi_Insumos,4,FALSE) -> 0,93 | H90: =ROUND(G90*F90,2) -> 37.2 | K90: 37.2
A93: comp 009 | C93: Placa do agente financiador - 3m² | D93: SER.CG. | E93: un | F93: 1 | H93: =SUM(H97:H98) -> 900 | I93: =SUM(I97:I98) -> 49.53 | J93: 0 | K93: =SUM(K97:K98) -> 949.53
B94: Compreende:
B95: Medição: | C95: Unidade
B96: Notas:
B97: 4813 | C97: =VLOOKUP(B97,Sinapi_Insumos,2,FALSE) -> PLACA DE OBRA (PARA CONSTRUCAO CIVIL) EM CHAPA GALVANIZADA *N. 22*, ADESIVADA, DE *2,0 X 1,125* M | D97: MAT. | E97: M2 | F97: 3 | G97: =VLOOKUP($B97,Sinapi_Insumos,4,FALSE) -> 300,00 | H97: =F97*G97 -> 900 | K97: =H97+I97+J97 -> 900
B98: 88316 | C98: SERVENTE COM ENCARGOS COMPLEMENTARES | D98: M.O. | E98: H | F98: 3 | G98: =VLOOKUP($B98,Sinapi_Compo,4,FALSE) -> 16,51 | I98: =F98*G98 -> 49.53 | K98: =H98+I98+J98 -> 49.53
A100: comp 010 | C100: Portão acesso | D100: SER.CG. | E100: pç | F100: 1 | H100: =ROUND(SUM(H101:H113),2) -> 1820.77 | I100: =ROUND(SUM(I101:I113),2) -> 2527.83 | J100: =ROUND(SUM(J101:J113),2) -> 87.07 | K100: =ROUND(SUM(K101:K113),2) -> 4435.67
B101: Compreende:
B102: Medição: | C102: Unidade
B103: Notas:
B104: 7167 | C104: =VLOOKUP(B104,Sinapi_Insumos,2,FALSE) -> TELA DE ARAME GALVANIZADA QUADRANGULAR / LOSANGULAR, FIO 2,11 MM (14 BWG), MALHA 5 X 5 CM, H = 2 M | D104: MAT. | E104: =VLOOKUP(B104,Sinapi_Insumos,3,FALSE) -> M2 | F104: 6.358 | G104: =VLOOKUP(B104,Sinapi_Insumos,4,FALSE) -> 11,79 | H104: =TRUNC(G104*F104,2) -> 74.96 | K104: =SUM(H104:J104) -> 74.96
B105: 7697 | C105: =VLOOKUP(B105,Sinapi_Insumos,2,FALSE) -> TUBO ACO GALVANIZADO COM COSTURA, CLASSE MEDIA, DN 1.1/2", E = *3,25* MM, PESO *3,61* KG/M (NBR 5580) | D105: MAT. | E105: =VLOOKUP(B105,Sinapi_Insumos,3,FALSE) -> M | F105: 8.2755 | G105: =VLOOKUP(B105,Sinapi_Insumos,4,FALSE) -> 34,93 | H105: =TRUNC(G105*F105,2) -> 289.06 | K105: 289.06
B106: 10997 | C106: =VLOOKUP(B106,Sinapi_Insumos,2,FALSE) -> ELETRODO REVESTIDO AWS - E7018, DIAMETRO IGUAL A 4,00 MM | D106: MAT. | E106: =VLOOKUP(B106,Sinapi_Insumos,3,FALSE) -> KG | F106: 19.4786 | G106: =VLOOKUP(B106,Sinapi_Insumos,4,FALSE) -> 30,78 | H106: =TRUNC(G106*F106,2) -> 599.55 | K106: 599.55
B107: 21010 | C107: =VLOOKUP(B107,Sinapi_Insumos,2,FALSE) -> TUBO ACO GALVANIZADO COM COSTURA, CLASSE LEVE, DN 25 MM ( 1"), E = 2,65 MM, *2,11* KG/M (NBR 5580) | D107: MAT. | E107: =VLOOKUP(B107,Sinapi_Insumos,3,FALSE) -> M | F107: 38.9612 | G107: =VLOOKUP(B107,Sinapi_Insumos,4,FALSE) -> 21,67 | H107: =TRUNC(G107*F107,2) -> 844.28 | K107: 844.28
B108: 88315 | C108: =VLOOKUP(B108,Sinapi_Compo,2,FALSE) -> SERRALHEIRO COM ENCARGOS COMPLEMENTARES | D108: M.O. | E108: =VLOOKUP(B108,Sinapi_Compo,3,FALSE) -> H | F108: 40.46 | G108: =VLOOKUP(B108,Sinapi_Compo,4,FALSE) -> 19,88 | I108: =TRUNC(G108*F108,2) -> 804.34 | K108: 804.34
B109: 88316 | C109: =VLOOKUP(B109,Sinapi_Compo,2,FALSE) -> SERVENTE COM ENCARGOS COMPLEMENTARES | D109: M.O. | E109: =VLOOKUP(B109,Sinapi_Compo,3,FALSE) -> H | F109: 66.47 | G109: =VLOOKUP(B109,Sinapi_Compo,4,FALSE) -> 16,51 | I109: =TRUNC(G109*F109,2) -> 1097.41 | K109: 1097.41
B110: 88317 | C110: =VLOOKUP(B110,Sinapi_Compo,2,FALSE) -> SOLDADOR COM ENCARGOS COMPLEMENTARES | D110: M.O. | E110: =VLOOKUP(B110,Sinapi_Compo,3,FALSE) -> H | F110: 26 | G110: =VLOOKUP(B110,Sinapi_Compo,4,FALSE) -> 24,08 | I110: =TRUNC(G110*F110,2) -> 626.08 | K110: 626.08
B111: 98764 | C111: =VLOOKUP(B111,Sinapi_Compo,2,FALSE) -> INVERSOR DE SOLDA MONOFÁSICO DE 160 A, POTÊNCIA DE 5400 W, TENSÃO DE 220 V, PARA SOLDA COM ELETRODOS DE 2,0 A 4,0 MM E PROCESSO TIG - CHP DIURNO. AF_06/2018 | D111: EQ.CH. | E111: =VLOOKUP(B111,Sinapi_Compo,3,FALSE) -> CHP | F111: 22.079 | G111: =VLOOKUP(B111,Sinapi_Compo,4,FALSE) -> 3,93 | J111: =TRUNC(G111*F111,2) -> 86.77 | K111: 86.77
B112: 98765 | C112: =VLOOKUP(B112,Sinapi_Compo,2,FALSE) -> INVERSOR DE SOLDA MONOFÁSICO DE 160 A, POTÊNCIA DE 5400 W, TENSÃO DE 220 V, PARA SOLDA COM ELETRODOS DE 2,0 A 4,0 MM E PROCESSO TIG - CHI DIURNO. AF_06/2018 | D112: EQ.CH. | E112: =VLOOKUP(B112,Sinapi_Compo,3,FALSE) -> CHI | F112: 3.872 | G112: =VLOOKUP(B112,Sinapi_Compo,4,FALSE) -> 0,08 | J112: =TRUNC(G112*F112,2) -> 0.3 | K112: 0.3
B113: 339 | C113: =VLOOKUP(B113,Sinapi_Insumos,2,FALSE) -> ARAME FARPADO GALVANIZADO, 14 BWG (2,11 MM), CLASSE 250 | D113: MAT. | E113: =VLOOKUP(B113,Sinapi_Insumos,3,FALSE) -> M | F113: 17 | G113: =VLOOKUP(B113,Sinapi_Insumos,4,FALSE) -> 0,76 | H113: =TRUNC(G113*F113,2) -> 12.92 | K113: 12.92
A115: comp 011 | C115: Caminhonete cabine simples com motor 1.6 FLEX, sem motorista (100 CV) | D115: SER.CH. | E115: hprod | F115: 1 | H115: =SUM(H119:H123) -> 0 | I115: =SUM(I119:I123) -> 0 | J115: =SUM(J119:J123) -> 34.18 | K115: =SUM(K119:K123) -> 34.18
B116: Compreende:
B117: Medição:
B118: Notas: | C118: Análogo à composição SINAPI 92145 CAMINHONETE CABINE SIMPLES COM MOTOR 1.6 FLEX, CÂMBIO MANUAL, POTÊNCIA 101/104 CV, 2 PORTAS - CHP DIURNO. AF_11/2015, excluído a composição SINAPI 88284 MOTORISTA DE VEIÍCULO LEVE COM ENCARGOS COMPLEMENTARES.
B119: 92140 | C119: =VLOOKUP(B119,Sinapi_Compo,2,FALSE) -> CAMINHONETE CABINE SIMPLES COM MOTOR 1.6 FLEX, CÂMBIO MANUAL, POTÊNCIA 101/104 CV, 2 PORTAS - DEPRECIAÇÃO. AF_11/2015 | D119: EQ.CH. | E119: =VLOOKUP(B119,Sinapi_Compo,3,FALSE) -> H | F119: 1 | G119: =VLOOKUP(B119,Sinapi_Compo,4,FALSE) -> 2,39 | J119: =TRUNC(G119*F119,2) -> 2.39 | K119: =SUM(H119:J119) -> 2.39
B120: 92141 | C120: =VLOOKUP(B120,Sinapi_Compo,2,FALSE) -> CAMINHONETE CABINE SIMPLES COM MOTOR 1.6 FLEX, CÂMBIO MANUAL, POTÊNCIA 101/104 CV, 2 PORTAS - JUROS. AF_11/2015 | D120: EQ.CH. | E120: =VLOOKUP(B120,Sinapi_Compo,3,FALSE) -> H | F120: 1 | G120: =VLOOKUP(B120,Sinapi_Compo,4,FALSE) -> 0,37 | J120: =TRUNC(G120*F120,2) -> 0.37 | K120: =SUM(H120:J120) -> 0.37
B121: 92142 | C121: =VLOOKUP(B121,Sinapi_Compo,2,FALSE) -> CAMINHONETE CABINE SIMPLES COM MOTOR 1.6 FLEX, CÂMBIO MANUAL, POTÊNCIA 101/104 CV, 2 PORTAS - IMPOSTOS E SEGUROS. AF_11/2015 | D121: EQ.CH. | E121: =VLOOKUP(B121,Sinapi_Compo,3,FALSE) -> H | F121: 1 | G121: =VLOOKUP(B121,Sinapi_Compo,4,FALSE) -> 0,14 | J121: =TRUNC(G121*F121,2) -> 0.14 | K121: =SUM(H121:J121) -> 0.14
B122: 92143 | C122: =VLOOKUP(B122,Sinapi_Compo,2,FALSE) -> CAMINHONETE CABINE SIMPLES COM MOTOR 1.6 FLEX, CÂMBIO MANUAL, POTÊNCIA 101/104 CV, 2 PORTAS - MANUTENÇÃO. AF_11/2015 | D122: EQ.CH. | E122: =VLOOKUP(B122,Sinapi_Compo,3,FALSE) -> H | F122: 1 | G122: =VLOOKUP(B122,Sinapi_Compo,4,FALSE) -> 2,99 | J122: =TRUNC(G122*F122,2) -> 2.99 | K122: =SUM(H122:J122) -> 2.99
B123: 92144 | C123: =VLOOKUP(B123,Sinapi_Compo,2,FALSE) -> CAMINHONETE CABINE SIMPLES COM MOTOR 1.6 FLEX, CÂMBIO MANUAL, POTÊNCIA 101/104 CV, 2 PORTAS - MATERIAIS NA OPERAÇÃO. AF_11/2015 | D123: EQ.CH. | E123: =VLOOKUP(B123,Sinapi_Compo,3,FALSE) -> H | F123: 1 | G123: =VLOOKUP(B123,Sinapi_Compo,4,FALSE) -> 28,29 | J123: =TRUNC(G123*F123,2) -> 28.29 | K123: =SUM(H123:J123) -> 28.29
A125: comp 012 | C125: Caminhonete cabine simples com motor 1.6 FLEX, sem motorista (100 CV) | D125: SER.CH. | E125: himp | F125: 1 | H125: =SUM(H129:H131) -> 0 | I125: =SUM(I129:I131) -> 0 | J125: =SUM(J129:J131) -> 2.9 | K125: =SUM(K129:K131) -> 2.9
B126: Compreende:
B127: Medição:
B128: Notas: | C128: Análogo à composição SINAPI 92146 CAMINHONETE CABINE SIMPLES COM MOTOR 1.6 FLEX, CÂMBIO MANUAL, POTÊNCIA 101/104 CV, 2 PORTAS - CHI DIURNO. AF_11/2015, excluído a composição SINAPI 88284 MOTORISTA DE VEIÍCULO LEVE COM ENCARGOS COMPLEMENTARES.
B129: 92140 | C129: =VLOOKUP(B129,Sinapi_Compo,2,FALSE) -> CAMINHONETE CABINE SIMPLES COM MOTOR 1.6 FLEX, CÂMBIO MANUAL, POTÊNCIA 101/104 CV, 2 PORTAS - DEPRECIAÇÃO. AF_11/2015 | D129: EQ.CH. | E129: =VLOOKUP(B129,Sinapi_Compo,3,FALSE) -> H | F129: 1 | G129: =VLOOKUP(B129,Sinapi_Compo,4,FALSE) -> 2,39 | J129: =TRUNC(G129*F129,2) -> 2.39 | K129: =SUM(H129:J129) -> 2.39
B130: 92141 | C130: =VLOOKUP(B130,Sinapi_Compo,2,FALSE) -> CAMINHONETE CABINE SIMPLES COM MOTOR 1.6 FLEX, CÂMBIO MANUAL, POTÊNCIA 101/104 CV, 2 PORTAS - JUROS. AF_11/2015 | D130: EQ.CH. | E130: =VLOOKUP(B130,Sinapi_Compo,3,FALSE) -> H | F130: 1 | G130: =VLOOKUP(B130,Sinapi_Compo,4,FALSE) -> 0,37 | J130: =TRUNC(G130*F130,2) -> 0.37 | K130: =SUM(H130:J130) -> 0.37
B131: 92142 | C131: =VLOOKUP(B131,Sinapi_Compo,2,FALSE) -> CAMINHONETE CABINE SIMPLES COM MOTOR 1.6 FLEX, CÂMBIO MANUAL, POTÊNCIA 101/104 CV, 2 PORTAS - IMPOSTOS E SEGUROS. AF_11/2015 | D131: EQ.CH. | E131: =VLOOKUP(B131,Sinapi_Compo,3,FALSE) -> H | F131: 1 | G131: =VLOOKUP(B131,Sinapi_Compo,4,FALSE) -> 0,14 | J131: =TRUNC(G131*F131,2) -> 0.14 | K131: =SUM(H131:J131) -> 0.14

Sheet MEM
A34: Partindo da área de implantação da 1ª fase da ETE, foram extraídos os seguintes dados elaborados
A35: com AutoCad Civil 3D
A37: Tabela 1 - Quantitativos de volumes para movimentação de solo
A38: Valores lidos no AutoCad Civil 3D
A39: QUANTITATIVO DE VOLUME - ETE LUIZ RAU
A41: ITEM | B41: CORTE | D41: ATERRO
B42: MATERIAL | C42: QUANTIDADE | D42: MATERIAL | E42: QUANTIDADE
A43: LIMPEZA SUPERFICIAL p/ h=30cm (m³) | B43: SOLO | C43: 12876.14 | D43: - | E43: 0
A44: PLATO-01 Casa Preparação de Polimeros | B44: SOLO | C44: 13.53 | D44: ARGILA | E44: 21561.75
A45: PLATO-02 Tratamento Primario | B45: SOLO | C45: 0 | D45: ARGILA | E45: 30147.68
A46: PLATO-03 Elevatória Final | B46: SOLO | C46: 0 | D46: ARGILA | E46: 6531.88
A47: PLATO-04 Borda lagoa | B47: SOLO | C47: 0 | D47: ARGILA | E47: 6364.03
A48: PLATO-05 Laboratório | B48: SOLO | C48: 233.03 | D48: ARGILA | E48: 1213.51
A49: PLATO-06 Talude Estacionamento | B49: SOLO | C49: 68.45 | D49: ARGILA | E49: 25.24
A50: PLATO-07 Lagoa Oeste AREIA | B50: SOLO | C50: 0 | D50: AREIA | E50: 2901.22
A51: PLATO-07 Lagoa Oeste ARGILA | B51: SOLO | C51: 43.6 | D51: ARGILA | E51: =1275.74+43.6 -> 1319.34
A52: PLATO-07 Lagoa Oeste CONCRETO | B52: - | C52: - | D52: CONCRETO | E52: 270.63
A53: TALUDE - Argila | B53: SOLO | C53: 15.36 | D53: ARGILA | E53: 7835.89
A54: TALUDE - Cut-off | B54: SOLO | C54: 17.99 | D54: ARGILA | E54: 1739.78
A55: TALUDE - Enrocamento | B55: SOLO | C55: 0.41 | D55: ROCHA | E55: 1601.01
A56: VIAS INTERNAS Terraplenagem | B56: SOLO | C56: 1449.34 | D56: ARGILA | E56: 28840.59
A57: TOTAL | B57: =SUM(C43:C56) -> 14717.85 | D57: =SUM(E43:E56) -> 110352.55
A59: ITEM | B59: QUANTIDADE
A60: GEOMEMBRANA - TEXTURIZADA NOS DOIS LADOS (e=1mm) | B60: 4295.02
A61: GEOTÊXTIL - NÃO TECIDO (400g/m²) | B61: 3100.4
A65: ÁREA DE LIMPEZA (em vermelho) = | B65: 12876,14/0,3 = | C65: =ROUNDUP(C43/0.3,0) -> 42921 | D65: m²
A66: Considerou-se h= 30 cm
A68: Quantitativo de indivíduos a serem removidos:
A69: *informações coletadas no documento: 1591-R-EST-AMB-01-03.pdf
A71: Estágio Inicial | B71: Ind/ha | C71: média
A72: superior | B72: 1260.19 | C72: =AVERAGE(B72:B73) -> 1100
A73: Inferior | B73: 939.81
D74: =AVERAGE(C72:C78) -> 1137.5 | E74: média
A76: Estágio Médio | B76: Ind/ha | C76: média
A77: superior | B77: 1388.14 | C77: =AVERAGE(B77:B78) -> 1175 | E77: 1138 | F77: indivíduos por hectare
A78: Inferior | B78: 961.86
A80: Através de imagem de satélite (google), foi escolhida um pedaço da área onde
A81: correspondeu a região mais densa da vegetação para definir o quantitativo de
A82: supressão
A109: Área considerada para supressão: | C109: 30517 | D109: m²
C110: =C109/10000 -> 3.0517 | D110: ha
A111: Resultado de indivíduos (unidades):
A112: =ROUNDUP(D74*C110,0) -> 3472
A114: Movimento de solo | M114: Segundo o livro Como Preparar Orçamentos de Obras, de Aldo Dórea Mattos, publicado pela
M115: Editora PINI, cada tipo de solo possui uma taxa de empolamento. Veja:
A116: Escavações | B116: =ROUNDUP(C44+C48+C49+C51+C53+C54+C55+C56,0) -> 1842 | C116: m³ | M116: MATERIAL E (EMPOLAMENTO %)
M117: Rocha detonada - E 50%
M118: Solo argiloso - E 40%
A119: Materiais importados | M119: Terra comum- E 25%
A120: Argila | B120: =ROUNDUP(E44+E45+E46+E47+E48+E49+E51+E53+E54+E56,0) -> 105580 | C120: m³ | M120: Solo arenoso seco - E 12%
A121: Areia | B121: =ROUNDUP(E50,0) -> 2902 | C121: m³
A122: Enrocamento | B122: =ROUNDUP(E55,0) -> 1602 | C122: m³
A124: Serviços de terraplenagem:
A125: Compactação de aterro argiloso | B125: =B120 -> 105580 | C125: m³
A126: Execução de espalhamento de areia | B126: =B121 -> 2902 | C126: m³
A131: Transporte solo para empréstimo (argila)
A132: Para empolamento de 1,4 - Volume = | B132: =B120*1.4 -> 147812 | C132: m³
A133: Dist. Jazida = | B133: 7.8 | C133: Km
B134: =ROUNDUP(B132*B133,0) -> 1152934 | C134: m³xKm
A136: Transporte solo para empréstimo (areia)
A137: Para empolamento de 1,12 - Volume = | B137: =B121*1.12 -> 3250.24 | C137: m³
A138: Dist. Jazida = | B138: 7.5 | C138: Km
B139: =ROUNDUP(B137*B138,0) -> 24377 | C139: m³xKm
A143: Volume do bota fora (com empolamento de 30%)
A144: =(C44+C48+C49+C51+C53+C54+C55+C56+C43)*1.3 -> 19133.205
A146: Distância bota fora = | B146: 2.7 | C146: Km
A148: Valor para bota fora m³xKm = | B148: =ROUNDUP(B146*A144,0) -> 51660 | C148: m³xKm
A156: Área de Geomembrana:
A183: Área total de Geomembrana = | B183: =B60 -> 4295.02 | C183: m²
A185: Área de Geotextil:
A209: Área = | B209: 3100.4 | C209: m²

Sheet Adm Local
B2: CÓDIGO COMPONENTE | C2: DESCRIÇÃO | D2: CLASS | E2: Unidade | F2: Coeficiente | G2: Custo (R$) | H2: Custo Material (R$) | I2: Custo Mão de Obra (R$) | J2: Custo Outros (R$) | K2: Custo Total (R$)
C3: CANTEIRO DE OBRAS
C4: Operação e Supervisão do Canteiro
C5: Administração local - Custo Mensal | D5: SER.CG | E5: un | F5: 1 | H5: =ROUND(SUM(H6:H18),2) -> 636.6 | I5: =ROUND(SUM(I6:I18),2) -> 31126.86 | J5: =ROUND(SUM(J6:J18),2) -> 1270.69 | K5: =ROUND(SUM(K6:K18),2) -> 33034.15
B6: Compreende:
B7: Medição:
B8: Notas:
B9: 40811 | C9: =VLOOKUP($B30,Sinapi_Insumos,2,FALSE) -> ENGENHEIRO CIVIL DE OBRA JUNIOR (MENSALISTA) | D9: M.O. | E9: mês | F9: 0.8 | G9: =VLOOKUP($B9,Sinapi_Insumos,4,FALSE) -> 15.164,30 | I9: =F9*G9 -> 12131.44 | K9: =J9+I9+H9 -> 12131.44
B10: 40813 | C10: =VLOOKUP(B31,Sinapi_Insumos,2,FALSE) -> ENGENHEIRO CIVIL DE OBRA PLENO (MENSALISTA) | D10: M.O. | E10: mês | F10: 0 | G10: 17.260,09 | I10: =F10*G10 -> 0 | K10: =J10+I10+H10 -> 0
B11: 40814 | C11: =VLOOKUP(B32,Sinapi_Insumos,2,FALSE) -> ENGENHEIRO CIVIL DE OBRA SENIOR (MENSALISTA) | D11: M.O. | E11: mês | F11: 0 | G11: 23.594,08 | I11: 0 | K11: 0
B12: 40819 | C12: =VLOOKUP(B33,Sinapi_Insumos,2,FALSE) -> MESTRE DE OBRAS (MENSALISTA) | D12: M.O. | E12: mês | F12: 1 | G12: 10.588,73 | I12: 10588.73 | K12: 10588.73
B13: 40931 | C13: =VLOOKUP(B34,Sinapi_Insumos,2,FALSE) -> AUXILIAR TECNICO / ASSISTENTE DE ENGENHARIA (MENSALISTA) | D13: M.O. | E13: mês | F13: 1 | G13: 4.220,72 | I13: 4220.72 | K13: 4220.72
B14: 40818 | C14: =VLOOKUP(B35,Sinapi_Insumos,2,FALSE) -> ENCARREGADO GERAL DE OBRAS (MENSALISTA) | D14: M.O. | E14: mês | F14: 0.6 | G14: 6.976,61 | I14: 4185.966 | K14: 4185.966
B15: comp 011 | C15: Caminhonete cabine simples com motor 1.6 FLEX, sem motorista (100 CV) - CHP | D15: EQ. CH | E15: mês | F15: 0.2 | G15: =K36 -> 6425.84 | J15: 1027.04 | K15: 1027.04
B16: comp 012 | C16: Caminhonete cabine simples com motor 1.6 FLEX, sem motorista (100 CV) - CHI | D16: EQ. CH | E16: mês | F16: 0.65 | G16: =K37 -> 545.2 | J16: 243.65 | K16: 243.65
B17: 14583 | C17: =VLOOKUP(B17,Sinapi_Insumos,2,FALSE) -> TARIFA "A" ENTRE 0 E 20M3 FORNECIMENTO D'AGUA | D17: MAT. | E17: m³ | F17: 30 | G17: =VLOOKUP($B17,Sinapi_Insumos,4,FALSE) -> 15,89 | H17: =F17*G17 -> 476.7 | K17: =J17+I17+H17 -> 476.7
B18: 2705 | C18: =VLOOKUP(B18,Sinapi_Insumos,2,FALSE) -> ENERGIA ELETRICA ATE 2000 KWH INDUSTRIAL, SEM DEMANDA | D18: MAT. | E18: KW/H | F18: 195 | G18: =VLOOKUP($B18,Sinapi_Insumos,4,FALSE) -> 0,82 | H18: =F18*G18 -> 159.9 | K18: 159.9
C20: ADMINISTRAÇÃO LOCAL
C21: Número de meses | D21: 4
C22: Valor Mensal | D22: =K5 -> 33034.15
C23: Administração local | D23: =D21*D22 -> 132136.6
B27: FORMAÇÃO DOS PREÇOS MENSAIS
B29: CÓDIGO | C29: DESCRIÇÃO | I29: Custo horário (R$ / h) | J29: HORAS / MÊS | K29: Custo mensal (R$ / mês)
B30: 40811 | C30: =VLOOKUP(B30,Sinapi_Insumos,2,FALSE) -> ENGENHEIRO CIVIL DE OBRA JUNIOR (MENSALISTA) | I30: 0 | J30: 200 | K30: =VLOOKUP(B30,Sinapi_Insumos,4,FALSE) -> 15.164,30
B31: 40813 | C31: ENGENHEIRO CIVIL DE OBRA PLENO (MENSALISTA) | I31: 0 | J31: 200 | K31: 17.260,09
B32: 40814 | C32: ENGENHEIRO CIVIL DE OBRA SENIOR (MENSALISTA) | I32: 0 | J32: 200 | K32: 23.594,08
B33: 40819 | C33: MESTRE DE OBRAS (MENSALISTA) | I33: 0 | J33: 200 | K33: 10.588,73
B34: 40931 | C34: AUXILIAR TECNICO / ASSISTENTE DE ENGENHARIA (MENSALISTA) | I34: 0 | J34: 200 | K34: 4.220,72
B35: 40818 | C35: ENCARREGADO GERAL DE OBRAS (MENSALISTA) | I35: 0 | J35: 200 | K35: 6.976,61
B36: comp 011 | C36: Caminhonete cabine simples com motor 1.6 FLEX, sem motorista (100 CV) - CHP | I36: =VLOOKUP(B36,'Composições novas'!A1:K242,11,FALSE) -> 34.18 | J36: 188 | K36: =I36*J36 -> 6425.84
B37: comp 012 | C37: Caminhonete cabine simples com motor 1.6 FLEX, sem motorista (100 CV) - CHI | I37: =VLOOKUP(B37,'Composições novas'!A2:K243,11,FALSE) -> 2.9 | J37: 188 | K37: =I37*J37 -> 545.2

Sheet 0 - INSTRUÇÕES (hidden)

Sheet 1 - BDI (hidden)
B2: NOME DA EMPRESA PARTICIPANTE DO CERTAME
B3: COMPOSIÇÃO ANALÍTICA DO B.D.I. (BENEFÍCIOS E DESPESAS INDIRETAS) - SERVIÇOS
B4: MUNICÍPIO: PORTÃO
B5: OBRA: SES - PORTÃO - RS
F6: 1º Quartil | G6: VALOR DA PROPOSTA | H6: 3º Quartil
B7: ITEM | C7: DISCRIMINAÇÃO | D7: TOTAL
B10: 1 | C10: DESPESAS INDIRETAS - DI
B11: 1.1 | C11: Administração Central | D11: =G11 -> 0 | F11: 0.0343 | H11: 0.0671
B13: 2 | C13: DESPESAS EVENTUAIS E RISCOS - DE
B14: 2.1 | C14: Risco | D14: =G14 -> 0 | F14: 0.01 | H14: 0.0174
B15: 2.2 | C15: Seguro de Responsabilidade Civil | D15: =G15 -> 0 | F15: 0 | H15: 0.0075
B16: 2.3 | C16: Custo Financeiro da Caução | D16: =G16 -> 0 | F16: 0 | H16: 0.0075
B18: 3 | C18: DESPESAS FINANCEIRAS - DF
B19: 3.1 | C19: Despesas Financeiras | D19: =G19 -> 0 | F19: 0.0094 | H19: 0.0117
B21: 4 | C21: LUCRO BRUTO - LB
B22: 4.1 | C22: Lucro Bruto | D22: =G22 -> 0 | F22: 0.0674 | H22: 0.094
B24: 5 | C24: DESPESAS LEGAIS - DL
B25: 5.1 | C25: ISS | D25: =G25 -> 0 | F25: 0.02 | H25: 0.03
B26: 5.2 | C26: PIS | D26: =G26 -> 0.0065 | F26: 0.0065 | G26: 0.0065 | H26: 0.0065
B27: 5.3 | C27: COFINS | D27: =G27 -> 0.03 | F27: 0.03 | G27: 0.03 | H27: 0.03
B28: 5.4 | C28: CIENTEC | D28: =G28 -> 0 | F28: 0 | G28: 0 | H28: 0.01
B29: 5.5 | C29: DESONERAÇÃO (MEDIDA PROV. 601/2012) | D29: =G29 -> 0 | F29: 0 | H29: 0.045
C42: MEMÓRIA DE CÁLCULO
C43: (1 + DI + DE) | D43: =1+D11+D14+D15+D16 -> 1
C44: (1 + DF) | D44: =1+D19 -> 1
C45: (1 + LB) | D45: =1+D22 -> 1
C46: (1 + (DI + DE) x (1 + DF) x (1 + LB) | D46: =D43*D44*D45 -> 1
C47: (1 - DL) | D47: =1-D25-D26-D27-D28-D29 -> 0.9635
C48: (((1 + (DI + DE) x (1 + DF) x (1 + LB)) / (1 - DL)) - 1 | D48: =(D46/D47-1) -> 0.03788271925
B51: BDI ( % ) | D51: =ROUND(D48*100,1) -> 3.8
B55: COMPOSIÇÃO ANALÍTICA DO B.D.I. (BENEFÍCIOS E DESPESAS INDIRETAS) - MATERIAIS
B56: MUNICÍPIO: PORTÃO
B57: OBRA: SES - PORTÃO - RS
F58: 1º Quartil | G58: VALOR DA PROPOSTA | H58: 3º Quartil
B59: ITEM | C59: DISCRIMINAÇÃO | D59: TOTAL
B62: 1 | C62: DESPESAS INDIRETAS - DI
B63: 1.1 | C63: Administração Central | D63: =G63 -> 0 | F63: 0.015 | H63: 0.0449
B65: 2 | C65: DESPESAS EVENTUAIS E RISCOS - DE
B66: 2.1 | C66: Risco | D66: =G66 -> 0 | F66: 0.0056 | H66: 0.0089
B67: 2.2 | C67: Seguro de Responsabilidade Civil | D67: =G67 -> 0 | F67: 0 | H67: 0.0082
B68: 2.3 | C68: Custo Financeiro da Caução | D68: =G68 -> 0 | F68: 0 | H68: 0.0082
B70: 3 | C70: DESPESAS FINANCEIRAS - DF
B71: 3.1 | C71: Despesas Financeiras | D71: =G71 -> 0 | F71: 0.0085 | H71: 0.0111
B73: 4 | C73: LUCRO BRUTO - LB
B74: 4.1 | C74: Lucro Bruto | D74: =G74 -> 0 | F74: 0.035 | H74: 0.0622
B76: 5 | C76: DESPESAS LEGAIS - DL
B77: 5.1 | C77: ISS | D77: =G77 -> 0 | F77: 0 | G77: 0 | H77: 0
B78: 5.2 | C78: PIS | D78: =G78 -> 0.0065 | F78: 0.0065 | G78: 0.0065 | H78: 0.0065
B79: 5.3 | C79: COFINS | D79: =G79 -> 0.03 | F79: 0.03 | G79: 0.03 | H79: 0.03
B80: 5.4 | C80: CIENTEC | D80: =G80 -> 0 | F80: 0 | G80: 0 | H80: 0.01
B81: 5.5 | C81: DESONERAÇÃO (MEDIDA PROV. 601/2012) | D81: =G81 -> 0 | F81: 0 | H81: 0.045
C94: MEMÓRIA DE CÁLCULO
C95: (1 + DI + DE) | D95: =1+D63+D66+D67+D68 -> 1
C96: (1 + DF) | D96: =1+D71 -> 1
C97: (1 + LB) | D97: =1+D74 -> 1
C98: (1 + (DI + DE) x (1 + DF) x (1 + LB) | D98: =D95*D96*D97 -> 1
C99: (1 - DL) | D99: =1-D77-D78-D79-D80-D81 -> 0.9635
C100: (((1 + (DI + DE) x (1 + DF) x (1 + LB)) / (1 - DL)) - 1 | D100: =(D98/D99-1) -> 0.03788271925
B103: BDI ( % ) | D103: =ROUND(D100*100,1) -> 3.8

Sheet 2 - POB (hidden)
B2: NOME DA EMPRESA PARTICIPANTE DO CERTAME | M2: B.D.I. para Serviços | N2: =IF('1 - BDI'!D103/100=0.038,"BDI não preenchido",'1 - BDI'!D103/100) -> BDI não preenchido | P2: PERCENTUAL DE DESCONTO LINEAR (COM 4 CASAS DECIMAIS) | S2: =IF(P3=0,"","O PERCETNUAL DE DESCONTO DEVE SER ESTABELECIDO NO MÁXIMO ATÉ A 4ª CASA DECIMAL DO PERCENTUAL") -> 
B3: PLANILHA DE ORÇAMENTO BÁSICO | M3: B.D.I. para Materiais | N3: =IF('1 - BDI'!D51/100=0.038,"BDI não preenchido",'1 - BDI'!D51/100) -> BDI não preenchido | P3: =TRUNC(Q3,6)-Q3 -> 0 | Q3: 0

Sheet 3 - CONFERÊNCIA (hidden)
B1: COMPANHIA RIOGRANDENSE DE SANEAMENTO
B2: VERIFICAÇÃO DE PREÇOS
B3: ITEM | C3: DISCRIMINAÇÃO | D3: CÓDIGO | E3: UN | F3: QTDE | G3: CUSTO | I3: B.D.I. APLICADO | J3: PREÇO MÁXIMO ADMISSÍVEL | M3: LINHA ONDE O ITEM SE ENCONTRA
F4: QUANT | G4: (SEM B.D.I.) | J4: (COM B.D.I.)
G5: UNITÁRIO | H5: TOTAL | J5: UNITÁRIO | K5: TOTAL
B8: Não há nenhum Item que apresente preço unitário igual a 'zero'.
B12: Não há nenhum Item idêntido que apresente preço unitário diferente entre si.

Sheet 4 - POB Resumo (hidden)
A1: NOME DA EMPRESA PARTICIPANTE DO CERTAME
A2: PLANILHA DE ORÇAMENTO BÁSICO
A3: MUNICÍPIO:
A4: OBRA:
A5: CAPÍTULO | B5: DISCRIMINAÇÃO | C5: TOTAL SEM B.D.I. | D5: TOTAL COM B.D.I. | F5: PREÇO MÁXIMO ADMISSÍVEL PARA ESTA LICITAÇÃO
A51: RAZÃO SOCIAL DO PROPONENTE: | C51: RESPONSÁVEL PROPONENTE:
A53: DATA:
A54: MUNICÍPIO: João
A55: OBRA: Teste
A56: CAPÍTULO | B56: DISCRIMINAÇÃO | C56: TOTAL SEM B.D.I. | D56: TOTAL COM B.D.I. | F56: PREÇO MÁXIMO ADMISSÍVEL PARA ESTA LICITAÇÃO
A101: TOTAL ( R$ ) | C101: =SUM(C8:C100) -> 0 | D101: =SUM(D8:D100) -> 0 | F101: =SUM(F8:F100) -> 0
A102: RAZÃO SOCIAL DO PROPONENTE: | C102: RESPONSÁVEL PROPONENTE:
A104: DATA:

Sheet 5 - ES (hidden)
B2: NOME DA EMPRESA PARTICIPANTE DO CERTAME
B3: DEMONSTRATIVO DA COMPOSIÇÃO DOS ENCARGOS SOCIAIS SOBRE MÃO DE OBRA
B4: MUNICÍPIO: PORTÃO
B5: OBRA: SES - PORTÃO - RS
B7: ITEM | C7: DISCRIMINAÇÃO | D7: TOTAL
B10: 1 | C10: GRUPO A
B11: A1 | C11: INSS
B12: A2 | C12: SESI
B13: A3 | C13: SENAI
B14: A4 | C14: INCRA
B15: A5 | C15: SEBRAE
B16: A6 | C16: Salário Educação
B17: A7 | C17: Seguro Contra Acidentes de Trabalho
B18: A8 | C18: FGTS
B19: A9 | C19: SECONCI
C20: TOTAL | D20: =SUM(D11:D19) -> 0
C22: GRUPO B
B23: B1 | C23: Repouso Semanal Remunerado
B24: B2 | C24: Feriados
B25: B3 | C25: Auxílio - enfermidade
B26: B4 | C26: 13º Salário
B27: B5 | C27: Licença Paternidade
B28: B6 | C28: Faltas Justificadas
B29: B7 | C29: Dias de Chuvas
B30: B8 | C30: Auxílio Acidente de Trabalho
B31: B9 | C31: Férias Gozadas
B32: B10 | C32: Salário Maternidade
C33: TOTAL | D33: =SUM(D23:D32) -> 0
C35: GRUPO C
B36: C1 | C36: Aviso Prévio Indenizado
B37: C2 | C37: Aviso Prévio Trabalhado
B38: C3 | C38: Férias Indenizadas
B39: C4 | C39: Depósito Rescisão sem Justa Causa
B40: C5 | C40: Indenização Adicional
C41: TOTAL | D41: =SUM(D36:D40) -> 0
C43: GRUPO D
B44: D1 | C44: Reincidência do Grupo A sobre o Grupo B
B45: D2 | C45: Reincidência do Grupo A sobre Aviso Prévio Trabalhado e Reincidência do FGTS
C46: sobre Aviso Prévio Indenizado
C47: TOTAL | D47: =SUM(D42:D46) -> 0
B51: Total ( % ) | D51: =SUM(D47,D41,D33,D20) -> 0
